Workbook

Sheet Cotizador
C7: COTIZACION FINANCIAMIENTO VEHICULAR DINERS CLUB
C9: FECHA COMPRA / VENTA | F9: 2018-05-21 | G9: AAAA/MM/DD
C13: NOMBRE DEL VENDEDOR: | F13: PEDRO SALINAS
C15: DATOS INFORMATIVOS DEL CLIENTE
C17: APELLIDOS: | F17: DOMINGUEZ | L17: RUALES
C19: NOMBRES: | F19: ANA | L19: CAROLINA | Q19: =CONCATENATE(F19," ",L19) -> ANA CAROLINA
C21: TELEFONOS: | F21: 3188179 | L21: 0985352479
C23: DATOS DEL VEHICULO
C25: MARCA: | F25: MAZDA
C27: MODELO: | F27: CX3
C29: AÑO: | F29: 2019
C31: VALOR DE COMPRA / VENTA: | F31: 34483.5
F32: =+F35/F31 -> 0.2319950121
C33: VALIDACION % DE ENTRADA: | F33: =IF(F32>=25%,F32,"ENTRADA MENOR AL 25%") -> ENTRADA MENOR AL 25%
C35: VALOR DE ENTRADA: | F35: 8000
C37: PLAZO FINANCIAMIENTO: | F37: 4
C39: TIPO DE CLIENTE: | F39: PERSONAL
C41: TIPO DEL VEHICULO: | F41: LIVIANO
C43: TASA DE INTERES VIGENTE: | F43: =IF(F39=AR89,AR83,AR84) -> 0.1606
C45: REQUIERE DISPOSITIVO | F45: =IF(F31>=20000,"REQUIERE DISPOSITIVO DE RASTREO","NO APLICA DISPOSITIVO") -> REQUIERE DISPOSITIVO DE RASTREO
C47: DISPOSITIVO | F47: MARESA SATELITAL BY HUNTER
C49: PLAZO GASTOS LEGALES | F49: 3 MESES SIN INTERESES
C51: CUOTA SEGURO VEHICULO MES: | F51: =IF(Cotizador!$F$41="PESADO HASTA 7.5 TN",$AC$83,VLOOKUP($F$31,$T$84:$AC$86,10,TRUE)) -> 100.460376
C53: CUOTA GASTOS LEGALES | F53: =IF($F$49="3 MESES SIN INTERESES",FORM!$F$132/3,FORM!$F$132) -> 139.9391667
C55: CUOTA MENSUAL DISPOSITIVO | F55: =+FORM!F138 -> 35.58333333
C57: CUOTA MENSUAL SEGURO DESGRAVAMEN | F57: 0,099% MENSUAL SOBRE EL SALDO DE LA TARJETA DE CREDITO
C59: CUOTA MENSUALVEHICULO | F59: =+FORM!F142 -> 754.353057
C61: VALOR A PAGAR MENSUALMENTE SIN G. LEGALES | F61: =F51+F55+F59 -> 890.3967664
C63: CONTRIBUCION 0.5% | F63: =IF(F49="3 MESES SIN INTERESES",$D$161*((0.5%/12)*3)+(0.5%*F67),(0.5%*F67)) -> 132.9422719
C65: DATOS PARA LLENAR EL VOUCHER
C67: CAPITAL | F67: =+F31-F35 -> 26483.5
C69: INTERES | F69: =+'PAG ORD'!D5-Cotizador!F67 -> 9725.446738
C82: DISPOSITIVOS | G82: AÑO | I82: VALOR LEGALES | K82: CIUDAD | N82: MES | Q82: COLOR | S82: CÓDIGO COLOR | T82: Min | U82: Max | V82: TASA | W82: TASA | X82: PRIMA US $ | Y82: SÚPER BANCOS | Z82: S.S. Campesino | AA82: IVA | AB82: DERECHOS EMISIÓN | AC82: PRIMA TOTAL | AD82: MARCA SISE | AE82: CÓDIGO MARCA SISE | AF82: MARCA | AG82: CÓDIGO MARCA SISE | AH82: MODELO | AI82: CÓDIGO MODELO SISE | AJ82: TIPO | AK82: GENERO | AL82: DIA | AM82: ESTADO CIVIL | AN82: % USO | AO82: AÑOS | AP82: GASTOS LEGALES | AR82: tasa por producto | AS82: PAÍS DE ORIGEN | AU82: % ENTRADA | AV82: % RESTANTE | AW82: VALOR RESTANTE | AX82: CALCULO DÍAS | AZ82: BIN | BA82: FECHA PAGO | BB82: EXTRAER1 | BC82: EXTRAER 2
C83: TRACKLINK INTERACTIVO 12 | D83: 46.57333333 | E83: 469.28 | G83: 2018 | I83: 37.184 | K83: QUITO | N83: ENERO | Q83: AMARILLO | S83: 1 | T83: 0 | U83: 0 | V83: 4.3 | W83: =+(V83/12)/100 -> 0.003583333333 | X83: =ROUND((FORM!$F$100*$W$83),2) -> 123.57 | Y83: =ROUND(($X$83*3.5%),2) -> 4.32 | Z83: =+X83*0.5% -> 0.61785 | AA83: =SUM(X83:Z83)*12% -> 15.420942 | AB83: 0.04 | AC83: =SUM(X83:AB83) -> 143.968792 | AD83: ALFA ROMEO | AE83: 24 | AF83: ALFA ROMEO | AG83: 24 | AH83: 146 | AI83: 1 | AJ83: SEDAN | AK83: MASCULINO | AL83: 1 | AM83: SOLTERO | AN83: 5 | AO83: 1 | AP83: CORRIENTE | AR83: 0.1606 | AS83: ALEMANIA | AU83: =+F35/F31 -> 0.2319950121 | AV83: =100%-AU83 -> 0.7680049879 | AW83: =+F31-F35 -> 26483.5 | AX83: =+F37/12 -> 0.3333333333 | AZ83: 360041 | BA83: 16 | BB83: =MID(F60,1,6) ->  | BC83: =MID(F60,7,8) -> 
C84: TRACKLINK INTERACTIVO 24 | D84: 33.55333333 | E84: 592.48 | G84: 2019 | I84: 17.92 | K84: GUAYAQUIL | N84: FEBRERO | Q84: AZUL | S84: 2 | T84: 0 | U84: 24999 | V84: 3.5 | W84: =+(V84/12)/100 -> 0.002916666667 | X84: =ROUND((FORM!$F$100*$W$84),2) -> 100.58 | Y84: =ROUND(($X$84*3.5%),2) -> 3.52 | Z84: =+X84*0.5% -> 0.5029 | AA84: =SUM(X84:Z84)*12% -> 12.552348 | AB84: 0.04 | AC84: =SUM(X84:AB84) -> 117.195248 | AD84: AUDI | AE84: 1 | AF84: ALFA ROMEO | AG84: 24 | AH84: 155 | AI84: 2 | AJ84: SEDAN | AK84: FEMENINO | AL84: 2 | AM84: CASADO | AN84: 10 | AO84: 2 | AP84: 3 MESES SIN INTERESES | AR84: 0.1123 | AS84: ARGENTINA | AZ84: 361329 | BA84: 16
C85: TRACKLINK INTERACTIVO 36 | D85: 29.21333333 | E85: 715.68 | G85: 2020 | I85: 1.2 | K85: CUENCA | N85: MARZO | Q85: BEIGE | S85: 3 | T85: =+U84+0.01 -> 24999.01 | U85: 39999 | V85: 3 | W85: =+(V85/12)/100 -> 0.0025 | X85: =ROUND((FORM!$F$100*$W$85),2) -> 86.21 | Y85: =ROUND(($X$85*3.5%),2) -> 3.02 | Z85: =+X85*0.5% -> 0.43105 | AA85: =SUM(X85:Z85)*12% -> 10.759326 | AB85: 0.04 | AC85: =SUM(X85:AB85) -> 100.460376 | AD85: AUSTIN | AE85: 26 | AF85: ALFA ROMEO | AG85: 24 | AH85: 156 | AI85: 3 | AJ85: SEDAN | AL85: 3 | AM85: VIUDO | AN85: 15 | AO85: 3 | AR85: 0.1123 | AS85: BRASIL | AZ85: 361349 | BA85: 1
C86: TRACKLINK INTERACTIVO 48 | D86: 27.04333333 | E86: 962.08 | G86: 2021 | I86: 1000 | K86: AMBATO | N86: ABRIL | Q86: BLANCO | S86: 4 | T86: =+U85+0.01 -> 39999.01 | U86: 200000 | V86: 2.5 | W86: =+(V86/12)/100 -> 0.002083333333 | X86: =ROUND((FORM!$F$100*$W$86),2) -> 71.84 | Y86: =ROUND(($X$86*3.5%),2) -> 2.51 | Z86: =+X86*0.5% -> 0.3592 | AA86: =SUM(X86:Z86)*12% -> 8.965104 | AB86: 0.04 | AC86: =SUM(X86:AB86) -> 83.714304 | AD86: BMW | AE86: 2 | AF86: ALFA ROMEO | AG86: 24 | AH86: 165 | AI86: 4 | AJ86: SEDAN | AL86: 4 | AM86: DIVORCIADO | AN86: 20 | AO86: 4 | AR86: 0.1123 | AS86: CANADÁ | AZ86: 362062 | BA86: 1
C87: TRACKLINK INTERACTIVO 60 | D87: 25.74133333 | E87: 1208.48 | G87: 2022 | I87: 1.12 | K87: IBARRA | N87: MAYO | Q87: CAFÉ | S87: 5 | AD87: BUICK | AE87: 81 | AF87: ALFA ROMEO | AG87: 24 | AH87: 166 | AI87: 5 | AJ87: SEDAN | AL87: 5 | AM87: UNIÓN LIBRE | AN87: 25 | AO87: 5 | AS87: CHINA | AZ87: 362620 | BA87: 1
C88: TRACKLINK CONTROL 12 | D88: 54.04 | E88: 388.64 | F88: 419 | I88: 44.8 | K88: MANTA | N88: JUNIO | Q88: CELESTE | S88: 6 | AD88: CHANGAN | AE88: 83 | AF88: ALFA ROMEO | AG88: 24 | AH88: SPIDER | AI88: 6 | AJ88: SEDAN | AL88: 6 | AN88: 30 | AR88: tipo de cliente | AS88: CHILE | AZ88: 362621 | BA88: 1
C89: TRACKLINK CONTROL 24 | D89: 39.62 | E89: 511.84 | I89: =IF(F10>4000,F10-4000,44.8) -> 44.8 | K89: PORTOVIEJO | N89: JULIO | Q89: CREMA | S89: 7 | AD89: CHEVROLET | AE89: 3 | AF89: ALFA ROMEO | AG89: 24 | AH89: 33 | AI89: 7 | AJ89: SEDAN | AL89: 7 | AN89: 35 | AR89: PERSONAL | AS89: COLOMBIA | AZ89: 362622 | BA89: 16
C90: TRACKLINK CONTROL 36 | D90: 34.81333333 | E90: 635.04 | I90: 22.4 | K90: MACHALA | N90: AGOSTO | Q90: FUCSIA | S90: 8 | AD90: CHRYSLER | AE90: 4 | AF90: ALFA ROMEO | AG90: 24 | AH90: GIO | AI90: 8 | AJ90: SEDAN | AL90: 8 | AN90: 40 | AR90: CORPORATIVO | AS90: ECUADOR | AZ90: 363999 | BA90: 16
C91: TRACKLINK CONTROL 48 | D91: 32.41 | E91: 881.44 | I91: 56 | K91: LOJA | N91: SEPTIEMBRE | Q91: GRIS | S91: 9 | T91: TIPO DE VEHÍCLO | AD91: CITROEN | AE91: 28 | AF91: ALFA ROMEO | AG91: 24 | AH91: 164 | AI91: 9 | AJ91: SEDAN | AL91: 9 | AN91: 45 | AR91: EMPRESARIAL | AS91: ESPAÑA | AZ91: 364170 | BA91: 16
C92: TRACKLINK CONTROL 60 | D92: 30.968 | E92: 1127.84 | F92: =+E87/48 -> 25.17666667 | K92: ALAMOR | N92: OCTUBRE | Q92: LILA | S92: 10 | T92: LIVIANO | AD92: DACIA | AE92: 29 | AF92: ALFA ROMEO | AG92: 24 | AH92: GTV3 | AI92: 10 | AJ92: SEDAN | AL92: 10 | AN92: 50 | AR92: PYME | AS92: ESTADOS UNIDOS | AZ92: 364171 | BA92: 1
C93: TRACKLINK CONTROL PLUS 12 | D93: 69.90666667 | E93: 586.88 | F93: =+(E88*1.05) -> 408.072 | K93: ALAUSI | N93: NOVIEMBRE | Q93: MORADO | S93: 11 | T93: PESADO HASTA 7.5 TN | AD93: DAEWOO | AE93: 5 | AF93: ALFA ROMEO | AG93: 24 | AH93: 145 | AI93: 11 | AJ93: COUPE | AL93: 11 | AN93: 55 | AS93: NORUEGA | AZ93: 364172 | BA93: 16
C94: TRACKLINK CONTROL PLUS 24 | D94: 47.50666667 | E94: 736.96 | K94: AMBUQUI | N94: DICIEMBRE | Q94: NARANJA | S94: 12 | AD94: DAIHATSU | AE94: 6 | AF94: ALFA ROMEO | AG94: 24 | AH94: 147 | AI94: 12 | AJ94: SEDAN | AL94: 12 | AN94: 60 | AS94: HONG KONG | AZ94: 364173 | BA94: 1
C95: TRACKLINK CONTROL PLUS 36 | D95: 40.04 | E95: 887.04 | K95: ANTONIO ANTE | Q95: NEGRO | S95: 13 | AD95: DATSUN | AE95: 30 | AF95: AUDI | AG95: 1 | AH95: 80 | AI95: 1 | AJ95: SEDAN | AL95: 13 | AN95: 65 | AS95: FRANCIA | AZ95: 364190 | BA95: 16
C96: TRACKLINK CONTROL PLUS 48 | D96: 36.30666667 | E96: 1187.2 | K96: ANTONIO ANTE | Q96: PLATA | S96: 14 | AD96: DEER | AE96: 111 | AF96: AUDI | AG96: 1 | AH96: A3 | AI96: 2 | AJ96: SEDAN | AL96: 14 | AN96: 70 | AS96: INGLATERRA | AZ96: 364234 | BA96: 16
C97: TRACKLINK CONTROL PLUS 60 | D97: 34.06666667 | E97: 1487.36 | F97: =+E92/48 -> 23.49666667 | K97: ARCHIDONA | Q97: PLATEADO | S97: 15 | AD97: DODGE | AE97: 31 | AF97: AUDI | AG97: 1 | AH97: TT COUPE 1.8 QUATTRO | AI97: 3 | AJ97: SEDAN | AL97: 15 | AN97: 75 | AS97: ITALIA | AZ97: 364261 | BA97: 16
C98: TRACKLINK CONTROL TOTAL 12 | D98: 88.57333333 | K98: ARENILLAS | Q98: PLOMO | S98: 16 | AD98: FIAT | AE98: 7 | AF98: AUDI | AG98: 1 | AH98: A4 | AI98: 4 | AJ98: SEDAN | AL98: 16 | AN98: 80 | AS98: JAPÓN | AZ98: 364444 | BA98: 1
C99: TRACKLINK CONTROL TOTAL 24 | D99: 60.15333333 | K99: ATACAMES | Q99: ROJO | S99: 17 | AD99: FORD | AE99: 8 | AF99: AUDI | AG99: 1 | AH99: A6 | AI99: 5 | AJ99: SEDAN | AL99: 17 | AN99: 85 | AS99: COREA | AZ99: 364522 | BA99: 16
C100: TRACKLINK CONTROL TOTAL 36 | D100: 50.68 | K100: ATUNTAQUI | Q100: VERDE | S100: 18 | AD100: FSO | AE100: 77 | AF100: AUDI | AG100: 1 | AH100: 808 | AI100: 6 | AJ100: SEDAN | AL100: 18 | AN100: 90 | AS100: MÉXICO | AZ100: 364700 | BA100: 1
C101: TRACKLINK CONTROL TOTAL 48 | D101: 45.94333333 | K101: AZOGUEZ | Q101: VINO | S101: 19 | AD101: GMC | AE101: 70 | AF101: AUDI | AG101: 1 | AH101: A 62.8 | AI101: 7 | AJ101: SEDAN | AL101: 19 | AN101: 95 | AS101: PERU | AZ101: 364701 | BA101: 16
C102: TRACKLINK CONTROL TOTAL 60 | D102: 43.10133333 | K102: BABAHOYO | Q102: BRONCE | S102: 20 | AD102: GREAT WALL | AE102: 108 | AF102: AUDI | AG102: 1 | AH102: ALLROAD | AI102: 8 | AJ102: SEDAN | AL102: 20 | AN102: 100 | AS102: REPUBLICA CHECA | AZ102: 364702 | BA102: 16
C103: SHERLOC 12 | D103: 53.2 | F103: =+(E98*1.05) -> 0 | I103: 870 | K103: BAHÍA DE CARÁQUEZ | Q103: CHAMPAGNE | S103: 21 | AD103: HONDA | AE103: 9 | AF103: AUDI | AG103: 1 | AH103: A8 | AI103: 9 | AJ103: SEDAN | AL103: 21 | AS103: RUSIA | AZ103: 364703 | BA103: 1
C104: SHERLOC 24 | D104: 40.55 | K104: BALAO | Q104: DORADO | S104: 22 | AD104: HUMMER | AE104: 115 | AF104: AUSTIN | AG104: 26 | AH104: MINI 1000 | AI104: 1 | AJ104: COUPE | AL104: 22 | AS104: SUECIA | AZ104: 364716 | BA104: 1
C105: SHERLOC 36 | D105: 36.34 | K105: BALSAS | Q105: HABANO | S105: 23 | AD105: HYUNDAI | AE105: 10 | AF105: AUSTIN | AG105: 26 | AH105: MINI CORD | AI105: 2 | AJ105: COUPE | AL105: 23 | AS105: VENEZUELA | AZ105: 364717 | BA105: 1
C106: SHERLOC 48 | D106: 31.9 | K106: BALZAR | Q106: MARRÓN | S106: 24 | AD106: INTERNATIONAL | AE106: 44 | AF106: BMW | AG106: 2 | AH106: 318 | AI106: 1 | AJ106: SEDAN | AL106: 24 | AS106: YUGOSLAVIA | AZ106: 364719 | BA106: 16
C107: SHERLOC 60 | D107: 29.23 | F107: =+E102/48 -> 0 | K107: BAÑOS | Q107: STRATO | S107: 25 | AD107: ISUZU | AE107: 34 | AF107: BMW | AG107: 2 | AH107: 330I | AI107: 2 | AJ107: SEDAN | AL107: 25 | AZ107: 365001 | BA107: 16
C108: HUNTER LOJACK 12 | D108: 41.888 | K108: BIBLIAN | Q108: VIOLETA | S108: 26 | AD108: JAGUAR | AE108: 35 | AF108: BMW | AG108: 2 | AH108: 328I | AI108: 3 | AJ108: SEDAN | AL108: 26 | AZ108: 365147 | BA108: 16
C109: HUNTER LOJACK 24 | D109: 33.6 | K109: BOLÍVAR | Q109: TURQUESA | S109: 27 | AD109: JEEP | AE109: 71 | AF109: BMW | AG109: 2 | AH109: 325I | AI109: 4 | AJ109: SEDAN | AL109: 27 | AZ109: 365166 | BA109: 1
C110: HUNTER LOJACK 36 | D110: 30.24 | K110: BUENA FE | Q110: ROSADO | S110: 28 | AD110: KIA | AE110: 11 | AF110: BMW | AG110: 2 | AH110: X5 4X4 5P | AI110: 5 | AJ110: JEEP | AL110: 28 | AZ110: 365167 | BA110: 1
C111: HUNTER LOJACK 48 | D111: 29.12 | K111: CALUMA | Q111: ARENA | S111: 29 | AD111: LADA | AE111: 13 | AF111: BMW | AG111: 2 | AH111: 528I | AI111: 6 | AJ111: SEDAN | AL111: 29 | AZ111: 365168 | BA111: 16
C112: HUNTER LOJACK 60 | D112: 28 | K112: CAÑAR | Q112: ILUSIÓN | S112: 30 | AD112: LANCIA | AE112: 36 | AF112: BMW | AG112: 2 | AH112: 316I | AI112: 7 | AJ112: SEDAN | AL112: 30 | AZ112: 365169 | BA112: 1
C113: H. MONITOREO BASICO 12 | D113: 51.52 | K113: CARIAMANGA | Q113: ROBLE | S113: 31 | AD113: LAND ROVER | AE113: 12 | AF113: BMW | AG113: 2 | AH113: 320I | AI113: 8 | AJ113: SEDAN | AL113: 31 | AZ113: 365181 | BA113: 1
C114: H. MONITOREO BASICO 24 | D114: 39.2 | K114: CATAMAYO | Q114: MOSTAZA | S114: 32 | AD114: LEXUS | AE114: 37 | AF114: BMW | AG114: 2 | AH114: 323I | AI114: 9 | AJ114: SEDAN | AZ114: 365420 | BA114: 1
C115: H. MONITOREO BASICO 36 | D115: 35.84 | K115: CAYAMBE | AD115: LINCOLN | AE115: 38 | AF115: BMW | AG115: 2 | AH115: 523I | AI115: 10 | AJ115: SEDAN | AZ115: 365421 | BA115: 16
C116: H. MONITOREO BASICO 48 | D116: 33.6 | K116: CELICA | AD116: MAHINDRA | AE116: 101 | AF116: BMW | AG116: 2 | AH116: 525I | AI116: 11 | AJ116: SEDAN | AZ116: 365422 | BA116: 1
C117: H. MONITOREO BASICO 60 | D117: 32.48 | K117: CHICA | AD117: MAZDA | AE117: 14 | AF117: BMW | AG117: 2 | AH117: Z3 | AI117: 12 | AJ117: COUPE | AZ117: 365423 | BA117: 16
C118: H. MONITOREO BÁSICO GOLDEN 12 | D118: 63.84 | K118: CHIMBO | AD118: MERCEDES BENZ | AE118: 15 | AF118: BMW | AG118: 2 | AH118: Z8 | AI118: 13 | AJ118: COUPE | AZ118: 365424 | BA118: 16
C119: H. MONITOREO BÁSICO GOLDEN 24 | D119: 45.92 | K119: CHONE | AD119: MITSUBISHI | AE119: 16 | AF119: BMW | AG119: 2 | AH119: M3 | AI119: 14 | AJ119: COUPE | AZ119: 365425 | BA119: 1
C120: H. MONITOREO BÁSICO GOLDEN 36 | D120: 40.32 | K120: COCA | AD120: NISSAN | AE120: 17 | AF120: BMW | AG120: 2 | AH120: M5 | AI120: 15 | AJ120: COUPE | AZ120: 365427 | BA120: 1
C121: H. MONITOREO BÁSICO GOLDEN 48 | D121: 36.96 | K121: CONCORDIA | AD121: OLDSMOBIL | AE121: 73 | AF121: BMW | AG121: 2 | AH121: 520 | AI121: 16 | AJ121: SEDAN | AZ121: 365428 | BA121: 1
C122: H. MONITOREO BÁSICO GOLDEN 60 | D122: 35.168 | K122: COTACACHI | AD122: OLTCIT | AE122: 40 | AF122: BMW | AG122: 2 | AH122: 530IA | AI122: 17 | AJ122: SEDAN | AZ122: 365429 | BA122: 16
C123: MARESA SATELITAL BY HUNTER 12 | D123: 49.93333333 | K123: CUMBAYÁ | AD123: PEUGEOT | AE123: 18 | AF123: BMW | AG123: 2 | AH123: 318TI | AI123: 18 | AJ123: COUPE | AZ123: 365453 | BA123: 16
C124: MARESA SATELITAL BY HUNTER 24 | D124: 40.36666667 | K124: DAULE | AD124: PLYMOUTH | AE124: 54 | AF124: BMW | AG124: 2 | AH124: 740 | AI124: 19 | AJ124: SEDAN | AZ124: 365454 | BA124: 16
C125: MARESA SATELITAL BY HUNTER 36 | D125: 37.17777778 | K125: DURAN | AD125: PORCHE | AE125: 56 | AF125: BMW | AG125: 2 | AH125: 1602 | AI125: 21 | AJ125: SEDAN
C126: MARESA SATELITAL BY HUNTER 48 | D126: 35.58333333 | K126: EL ÁNGEL | AD126: RENAULT | AE126: 19 | AF126: BMW | AG126: 2 | AH126: 366 | AI126: 22 | AJ126: SEDAN
C127: MARESA SATELITAL BY HUNTER 60 | D127: 34.62666667 | K127: EL CARMEN | AD127: SAAB | AE127: 45 | AF127: BMW | AG127: 2 | AH127: 530 | AI127: 23 | AJ127: SEDAN
K128: EL CORAZÓN | AD128: SAEHAN | AE128: 57 | AF128: BMW | AG128: 2 | AH128: 540 | AI128: 25 | AJ128: SEDAN
K129: EL EMPALME | AD129: SAMSUNG | AE129: 74 | AF129: BMW | AG129: 2 | AH129: 318IS | AI129: 26 | AJ129: SEDAN
K130: EL GUABO | AD130: SANGYONG | AE130: 42 | AF130: BMW | AG130: 2 | AH130: 318I LIMUSIN | AI130: 27 | AJ130: SEDAN
K131: EL NARANJAL | AD131: SEAT | AE131: 105 | AF131: BMW | AG131: 2 | AH131: Z4 | AI131: 29 | AJ131: COUPE
C132: Sin Dispositivo | K132: EL TAMBO | AD132: SKODA | AE132: 20 | AF132: BMW | AG132: 2 | AH132: X3 | AI132: 31 | AJ132: JEEP
C133: TRACKLINK INTERACTIVO | K133: EL TRIUNFO | AD133: SUBARU | AE133: 58 | AF133: BUICK | AG133: 81 | AH133: CENTURY | AI133: 1 | AJ133: SEDAN
C134: TRACKLINK CONTROL | K134: ESMERALDAS | AD134: SUZUKI | AE134: 60 | AF134: CHANGAN | AG134: 83 | AH134: SC1011CG | AI134: 1 | AJ134: PICK-UP
C135: TRACKLINK CONTROL PLUS | K135: FLAVIO ALFARO | AD135: TALBOT | AE135: 59 | AF135: CHANGAN | AG135: 83 | AH135: MINI VAN | AI135: 2 | AJ135: MINI VAN
C136: TRACKLINK CONTROL TOTAL | K136: GIRÓN | AD136: TATA | AE136: 75 | AF136: CHANGAN | AG136: 83 | AH136: SC1018AA100 | AI136: 3 | AJ136: PICK-UP
C137: SHERLOC | K137: GONZALO PIZARRO | AD137: TOYOTA | AE137: 21 | AF137: CHEVROLET | AG137: 3 | AH137: FORSA | AI137: 1 | AJ137: COUPE
C138: HUNTER LOJACK | K138: GUALACEO | AD138: VOLKSWAGEN | AE138: 22 | AF138: CHEVROLET | AG138: 3 | AH138: CORSA 3P | AI138: 2 | AJ138: COUPE
C139: H. MONITOREO BASICO | K139: GUALAQUIZA | AD139: VOLVO | AE139: 23 | AF139: CHEVROLET | AG139: 3 | AH139: CORSA 4P | AI139: 3 | AJ139: SEDAN
C140: H. MONITOREO BÁSICO GOLDEN | K140: GUAMOTE | AD140: WORLDSTAR | AE140: 99 | AF140: CHEVROLET | AG140: 3 | AH140: CORSA 5P | AI140: 4 | AJ140: SEDAN
C141: MARESA SATELITAL BY HUNTER | K141: GUANO | AD141: ZASTAVA | AE141: 61 | AF141: CHEVROLET | AG141: 3 | AH141: CORSA SPORT | AI141: 5 | AJ141: SEDAN
K142: GUARANDA | AF142: CHEVROLET | AG142: 3 | AH142: CORSA P/U 1600 | AI142: 6 | AJ142: PICK-UP
K143: GUAYLLABAMBA | AF143: CHEVROLET | AG143: 3 | AH143: SAN REMO | AI143: 7 | AJ143: SEDAN
K144: HUAQUILLAS | AF144: CHEVROLET | AG144: 3 | AH144: MONZA | AI144: 8 | AJ144: SEDAN
K145: JIPIJAPA | AF145: CHEVROLET | AG145: 3 | AH145: SWIFT | AI145: 9 | AJ145: SEDAN
K146: JUNIN | AF146: CHEVROLET | AG146: 3 | AH146: SWIFT EMOTION | AI146: 10 | AJ146: SEDAN
K147: LA CONCORDIA | AF147: CHEVROLET | AG147: 3 | AH147: ESTEEM 4P | AI147: 11 | AJ147: SEDAN
K148: LA MANA | AF148: CHEVROLET | AG148: 3 | AH148: ESTEEM S. WAGON | AI148: 12 | AJ148: STATION WAGON
K149: LA UNIÓN | AF149: CHEVROLET | AG149: 3 | AH149: LUV 4X2 C/S | AI149: 13 | AJ149: PICK-UP
K150: LAGO AGRIO | AF150: CHEVROLET | AG150: 3 | AH150: LUV 4X2 D/C | AI150: 14 | AJ150: PICK-UP
K151: LAS LAJAS | AF151: CHEVROLET | AG151: 3 | AH151: LUV 4X4 C/S | AI151: 15 | AJ151: PICK-UP
C152: Valor del vehículo | D152: =+$F$31 -> 34483.5 | K152: LASSO | AF152: CHEVROLET | AG152: 3 | AH152: LUV 4X4 D/C | AI152: 16 | AJ152: PICK-UP
C153: INSCRIPCIÓN EN REGISTRO MERCANTIL | K153: LATACUNGA | AF153: CHEVROLET | AG153: 3 | AH153: VITARA 3P | AI153: 17 | AJ153: JEEP
C154: VALOR BASE POR CONTRATO | D154: 25 | K154: LIBERTAD | AF154: CHEVROLET | AG154: 3 | AH154: VITARA 5P | AI154: 18 | AJ154: JEEP
C155: CESIÓN DE DERECHOS | D155: 30 | K155: LIMÓN | AF155: CHEVROLET | AG155: 3 | AH155: RODEO 4X2 | AI155: 19 | AJ155: JEEP
C156: 0.5% SOBRE LA CUANTÍA DEL CONTRATO (PRECIO DE VENTA). | D156: =D152*0.5% -> 172.4175 | K156: QUEVEDO | AF156: CHEVROLET | AG156: 3 | AH156: RODEO 4X4 | AI156: 20 | AJ156: JEEP
C157: TOTAL | D157: =SUM(D154:D156) -> 227.4175 | K157: LOS BANCOS | AF157: CHEVROLET | AG157: 3 | AH157: CAVALIER STD | AI157: 21 | AJ157: SEDAN
C158: OTROS GASTOS | K158: MACARA | AF158: CHEVROLET | AG158: 3 | AH158: CAVALIER DLX | AI158: 22 | AJ158: SEDAN
C159: TRAMITACIÓN LEGAL, SERVICIO DE TERCERO | D159: =162.4+30 -> 192.4 | K159: MACAS | AF159: CHEVROLET | AG159: 3 | AH159: SÚPER CARRY PICK UP | AI159: 23 | AJ159: PICK-UP
K160: MACHACHI | AF160: CHEVROLET | AG160: 3 | AH160: GRAND BLAZER 3P | AI160: 26 | AJ160: JEEP
C161: Tarifa gastos legales | D161: =+D157+D159 -> 419.8175 | K161: MÉNDEZ | AF161: CHEVROLET | AG161: 3 | AH161: GRAND BLAZER 5P | AI161: 27 | AJ161: JEEP
K162: MILAGRO | AF162: CHEVROLET | AG162: 3 | AH162: TAHOE 5P. USA | AI162: 28 | AJ162: JEEP
K163: MIRA | AF163: CHEVROLET | AG163: 3 | AH163: BLAZER 4X4 | AI163: 29 | AJ163: JEEP
K164: MOCACHE | AF164: CHEVROLET | AG164: 3 | AH164: BLAZER 4X2 | AI164: 30 | AJ164: JEEP
C165: Declaración unico vehículo | K165: MONTALVO | AF165: CHEVROLET | AG165: 3 | AH165: SILVERADO | AI165: 31 | AJ165: PICK-UP
C166: Si | K166: MONTECRISTI | AF166: CHEVROLET | AG166: 3 | AH166: CHEYENNE | AI166: 32 | AJ166: PICK-UP
C167: No | K167: MONTUFAR | AF167: CHEVROLET | AG167: 3 | AH167: TROOPER 2.300 3P. | AI167: 33 | AJ167: JEEP
K168: MUISNE | AF168: CHEVROLET | AG168: 3 | AH168: TROOPER 3P | AI168: 34 | AJ168: JEEP
K169: NARANJITO | AF169: CHEVROLET | AG169: 3 | AH169: TROOPER 5P | AI169: 35 | AJ169: JEEP
K170: NUEVA LOJA | AF170: CHEVROLET | AG170: 3 | AH170: GRAND VITARA 3P | AI170: 36 | AJ170: JEEP
K171: OTAVALO | AF171: CHEVROLET | AG171: 3 | AH171: GRAND VITARA 5P | AI171: 37 | AJ171: JEEP
K172: PAJAN | AF172: CHEVROLET | AG172: 3 | AH172: ALTO 5P | AI172: 38 | AJ172: SEDAN
K173: PALENQUE | AF173: CHEVROLET | AG173: 3 | AH173: ASTRA 2P | AI173: 39 | AJ173: COUPE
K174: PALESTINA | AF174: CHEVROLET | AG174: 3 | AH174: ASTRA 4P | AI174: 40 | AJ174: SEDAN
K175: PALLATANGA | AF175: CHEVROLET | AG175: 3 | AH175: ASKA | AI175: 41 | AJ175: SEDAN
K176: PASAJE | AF176: CHEVROLET | AG176: 3 | AH176: ASTROVAN | AI176: 42 | AJ176: MINI VAN
K177: PASTAZA | AF177: CHEVROLET | AG177: 3 | AH177: CHEVETTE | AI177: 44 | AJ177: COUPE
K178: PATATE | AF178: CHEVROLET | AG178: 3 | AH178: CONDOR | AI178: 45 | AJ178: COUPE
K179: PAUTE | AF179: CHEVROLET | AG179: 3 | AH179: CORSICA | AI179: 46 | AJ179: SEDAN
K180: PEDERNALES | AF180: CHEVROLET | AG180: 3 | AH180: GEMINI | AI180: 47 | AJ180: SEDAN
K181: PEDRO CARBO | AF181: CHEVROLET | AG181: 3 | AH181: IMPALA | AI181: 48 | AJ181: SEDAN
K182: PELILEO | AF182: CHEVROLET | AG182: 3 | AH182: VEGA | AI182: 49 | AJ182: SEDAN
K183: PIFO | AF183: CHEVROLET | AG183: 3 | AH183: ZAFIRA 5P | AI183: 51 | AJ183: MINI VAN
K184: PILLARO | AF184: CHEVROLET | AG184: 3 | AH184: CARGO | AI184: 52 | AJ184: PICK-UP
K185: PIMAMPIRO | AF185: CHEVROLET | AG185: 3 | AH185: CHEVY VAN | AI185: 53 | AJ185: MINI VAN
K186: PINDAL | AF186: CHEVROLET | AG186: 3 | AH186: MINI BLAZER 4X2 | AI186: 55 | AJ186: JEEP
K187: PIÑAS | AF187: CHEVROLET | AG187: 3 | AH187: MINI BLAZER 4X4 | AI187: 56 | AJ187: JEEP
K188: PLAYAS | AF188: CHEVROLET | AG188: 3 | AH188: CITATION | AI188: 57 | AJ188: SEDAN
K189: PORTOVELO | AF189: CHEVROLET | AG189: 3 | AH189: C10 | AI189: 60 | AJ189: PICK-UP
K190: PUEBLO VIEJO | AF190: CHEVROLET | AG190: 3 | AH190: CREW CAB 4X4 | AI190: 65 | AJ190: PICK-UP
K191: PUEMBO | AF191: CHEVROLET | AG191: 3 | AH191: C1500 | AI191: 66 | AJ191: PICK-UP
K192: PUERTO CAYO | AF192: CHEVROLET | AG192: 3 | AH192: AVALANCHE | AI192: 68 | AJ192: PICK-UP
K193: PUERTO LOPEZ | AF193: CHEVROLET | AG193: 3 | AH193: CORSA EVOLUTION | AI193: 70 | AJ193: SEDAN
K194: PUERTO QUITO | AF194: CHEVROLET | AG194: 3 | AH194: TRAIL BLAZER 4X4 | AI194: 71 | AJ194: JEEP
K195: PUJILI | AF195: CHEVROLET | AG195: 3 | AH195: TRAIL BLAZER 4X2 | AI195: 72 | AJ195: JEEP
K196: PUYANGO | AF196: CHEVROLET | AG196: 3 | AH196: ASTRA 3P | AI196: 73 | AJ196: COUPE
K197: PUYO | AF197: CHEVROLET | AG197: 3 | AH197: CORSA WIND | AI197: 74 | AJ197: SEDAN
K198: QUERO | AF198: CHEVROLET | AG198: 3 | AH198: JIMNY 4X4 | AI198: 75 | AJ198: JEEP
K199: QUININDE | AF199: CHEVROLET | AG199: 3 | AH199: SPARK | AI199: 76 | AJ199: SEDAN
K200: QUITO | AF200: CHEVROLET | AG200: 3 | AH200: CHEYENNE 4X2 | AI200: 77 | AJ200: PICK-UP
K201: RIOBAMBA | AF201: CHEVROLET | AG201: 3 | AH201: CHEYENNE 4X4 | AI201: 78 | AJ201: PICK-UP
K202: ROCAFUERTE | AF202: CHEVROLET | AG202: 3 | AH202: OPTRA | AI202: 79 | AJ202: SEDAN
K203: SALCEDO | AF203: CHEVROLET | AG203: 3 | AH203: GRAND VITARA 5P XL7 4X4 | AI203: 80 | AJ203: JEEP
K204: SALINAS | AF204: CHEVROLET | AG204: 3 | AH204: GRAND VITARA 5P XL7 4X2 | AI204: 81 | AJ204: JEEP
K205: SAMBORONDON | AF205: CHEVROLET | AG205: 3 | AH205: LUV D-MAX C/S 4X2 | AI205: 82 | AJ205: PICK-UP
K206: SAME | AF206: CHEVROLET | AG206: 3 | AH206: LUV D-MAX C/D 4X2 | AI206: 83 | AJ206: PICK-UP
K207: SAN CAMILO | AF207: CHEVROLET | AG207: 3 | AH207: LUV D-MAX C/S 4X4 | AI207: 84 | AJ207: PICK-UP
K208: SAN GABRIEL | AF208: CHEVROLET | AG208: 3 | AH208: LUV D-MAX C/D 4X4 | AI208: 85 | AJ208: PICK-UP
K209: SAN LORENZO | AF209: CHRYSLER | AG209: 4 | AH209: GRAND CHEROKEE LAREDO 4X4 | AI209: 1 | AJ209: JEEP
K210: SAN MIGUEL | AF210: CHRYSLER | AG210: 4 | AH210: GRAND CHEROKEE LIMITED 4X4 | AI210: 2 | AJ210: JEEP
K211: SAN RAFAEL | AF211: CHRYSLER | AG211: 4 | AH211: CHEROKEE LAREDO | AI211: 3 | AJ211: JEEP
K212: SAN VICENTE | AF212: CHRYSLER | AG212: 4 | AH212: NEON 2000CC | AI212: 4 | AJ212: SEDAN
K213: SANGOLQUI | AF213: CHRYSLER | AG213: 4 | AH213: CARAVAN | AI213: 5 | AJ213: MINI VAN
K214: SANTA ANA | AF214: CHRYSLER | AG214: 4 | AH214: GRAND CARAVAN | AI214: 6 | AJ214: MINI VAN
K215: SANTA CRUZ | AF215: CHRYSLER | AG215: 4 | AH215: LEBARON | AI215: 7 | AJ215: SEDAN
K216: SANTA ELENA | AF216: CHRYSLER | AG216: 4 | AH216: LIBERTY | AI216: 8 | AJ216: JEEP
K217: SANTA ISABEL | AF217: CHRYSLER | AG217: 4 | AH217: STRATUS | AI217: 9 | AJ217: SEDAN
K218: SANTA ISABEL | AF218: CHRYSLER | AG218: 4 | AH218: RENEGADO | AI218: 10 | AJ218: JEEP
K219: SANTA ROSA | AF219: CHRYSLER | AG219: 4 | AH219: TOWN & COUNTRY | AI219: 11 | AJ219: PICK-UP
K220: SANTO DOMINGO | AF220: CITROEN | AG220: 28 | AH220: AX GT | AI220: 1 | AJ220: SEDAN
K221: SAQUISILI | AF221: CITROEN | AG221: 28 | AH221: BERLINGO | AI221: 2 | AJ221: SEDAN
K222: SARAGURO | AF222: CITROEN | AG222: 28 | AH222: SAXO SX | AI222: 3 | AJ222: SEDAN
K223: SHUSHUFINDI | AF223: CITROEN | AG223: 28 | AH223: XANTIA | AI223: 4 | AJ223: SEDAN
K224: SIGCHOS | AF224: CITROEN | AG224: 28 | AH224: XSARA VTS | AI224: 5 | AJ224: SEDAN
K225: SIGSIG | AF225: CITROEN | AG225: 28 | AH225: ZX VOLCANE | AI225: 6 | AJ225: SEDAN
K226: SUCRE | AF226: CITROEN | AG226: 28 | AH226: ALLUER 5P | AI226: 7 | AJ226: STATION WAGON
K227: SUCUA | AF227: CITROEN | AG227: 28 | AH227: XSARA PICASSO | AI227: 8 | AJ227: SEDAN
K228: SUCUMBIOS | AF228: CITROEN | AG228: 28 | AH228: C3 SX 14I | AI228: 9 | AJ228: SEDAN
K229: TABABELA | AF229: DACIA | AG229: 29 | AH229: 1304 DROP-SIDE | AI229: 1 | AJ229: PICK-UP
K230: TABACUNDO | AF230: DACIA | AG230: 29 | AH230: BREAK | AI230: 2 | AJ230: SEDAN
K231: TAMBILLO | AF231: DACIA | AG231: 29 | AH231: RAPSODIE | AI231: 3 | AJ231: SEDAN
K232: TENA | AF232: DAEWOO | AG232: 5 | AH232: TICO 5P. SX | AI232: 1 | AJ232: SEDAN
K233: TONSUPA | AF233: DAEWOO | AG233: 5 | AH233: MATIZ | AI233: 2 | AJ233: SEDAN
K234: TOSAGUA | AF234: DAEWOO | AG234: 5 | AH234: LANOS 4P | AI234: 3 | AJ234: SEDAN
K235: TULCAN | AF235: DAEWOO | AG235: 5 | AH235: LANOS 5P | AI235: 4 | AJ235: SEDAN
K236: TUMBACO | AF236: DAEWOO | AG236: 5 | AH236: LANOS 3P | AI236: 5 | AJ236: SEDAN
K237: URCUQUI | AF237: DAEWOO | AG237: 5 | AH237: NUBIRA | AI237: 6 | AJ237: SEDAN
K238: URDANETA | AF238: DAEWOO | AG238: 5 | AH238: TACUMA | AI238: 7 | AJ238: MINI VAN
K239: VENTANAS | AF239: DAEWOO | AG239: 5 | AH239: ESPERO | AI239: 8 | AJ239: SEDAN
K240: VINCES | AF240: DAEWOO | AG240: 5 | AH240: RACER | AI240: 9 | AJ240: SEDAN
K241: YAGUACHI | AF241: DAEWOO | AG241: 5 | AH241: CIELO | AI241: 10 | AJ241: SEDAN
K242: ZAMORA | AF242: DAEWOO | AG242: 5 | AH242: COACH | AI242: 11 | AJ242: SEDAN
K243: ZAPOTILLO | AF243: DAEWOO | AG243: 5 | AH243: DAMAS | AI243: 12 | AJ243: SEDAN
K244: ZARUMA | AF244: DAEWOO | AG244: 5 | AH244: KORANDO | AI244: 13 | AJ244: JEEP
AF245: DAEWOO | AG245: 5 | AH245: MUSSO | AI245: 14 | AJ245: JEEP
AF246: DAEWOO | AG246: 5 | AH246: LEGANZA | AI246: 15 | AJ246: SEDAN
AF247: DAIHATSU | AG247: 6 | AH247: TERIOS | AI247: 1 | AJ247: JEEP
AF248: DAIHATSU | AG248: 6 | AH248: APLAUSSE | AI248: 2 | AJ248: SEDAN
AF249: DAIHATSU | AG249: 6 | AH249: CHARADE | AI249: 3 | AJ249: SEDAN
... 430 more rows

Sheet FORM
C6: FINANCIAMIENTO VEHICULAR DINERS CLUB
C8: FECHA DE COMPRA / VENTA: | F8: =+Cotizador!F9 -> 2018-05-21 | G8: AAAA/MM/DD
C11: DATOS DEL CONCESIONARIO
C13: CONCESIONARIO: | F13: AUTOMOTORES CONTINENTAL
C15: REPRESENTANTE LEGAL: | F15: GERARDO DORFFLINGER
C17: NACIONALIDAD DEL REPRESENTANTE LEGAL: | F17: ECUATORIANO
C19: CARGO: | F19: GERENTE GENERAL
C21: RUC: | F21: 1713882247001
C23: DIRECCIÓN: | F23: AV 10 DE AGOSTO Y AV GASPAR DE VILLAROEL ESQUINA
C25: CIUDAD: | F25: PORTOVIEJO
C27: NOMBRE DEL VENDEDOR: | F27: =Cotizador!$F$13 -> PEDRO SALINAS
C29: CÉDULA DEL VENDEDOR: | F29: 1524885547
C31: DATOS DEL CLIENTE
C33: APELLIDOS: | F33: =Cotizador!$F$17 -> DOMINGUEZ | L33: =IF(Cotizador!L17=0," ",Cotizador!L17) -> RUALES | Q33: =IF(L33=0,F33,CONCATENATE(F33," ",L33)) -> DOMINGUEZ RUALES
C35: NOMBRES: | F35: =Cotizador!$F$19 -> ANA | L35: =IF(Cotizador!L19=0," ",Cotizador!L19) -> CAROLINA | Q35: =IF(L35=0,F35,CONCATENATE(F35," ",L35)) -> ANA CAROLINA
C37: TELEFONOS: | F37: =Cotizador!$F$21 -> 3188179 | L37: =Cotizador!$L$21 -> 0985352479 | Q37: =CONCATENATE(Q35," ",Q33) -> ANA CAROLINA DOMINGUEZ RUALES
C39: No. CEDULA / RUC: | F39: 1234567890
C41: NACIONALIDAD DEL CLIENTE: | F41: ECUATORIANA
C43: GENERO: | F43: FEMENINO
C45: DIRECCION: | F45: AV PEDRO DE ALVARADO N56-72 Y CARLOS V
C47: CIUDAD: | F47: PORTOVIEJO
C49: E-MAIL: | F49: ANADOMINGE@HOTMAIL.COM
C51: LUGAR DE TRABAJO: | F51: INTERDIN
C53: DIRECCIÓN DE TRABAJO: | F53: AV AMAZONAS 45 45 Y PEREIRA
C55: TELEFONO DE TRABAJO: | F55: 2981300
C57: PROFESIÓN U OCUPACIÓN: | F57: INGENIRA
C59: ES EL UNICO VEHÍCULO DE USO FAMILIAR: | F59: Si
C61: DATOS INFORMATIVOS DEL CONYUGE
C63: APELLIDOS: | F63: CLVACHE | L63: ONTANEDA | Q63: =IF(L63=0,F63,CONCATENATE(F63," ",L63)) -> CLVACHE ONTANEDA
C65: NOMBRES: | F65: DAVID | L65: EDUARDO | Q65: =IF(L65=0,F65,CONCATENATE(F65," ",L65)) -> DAVID EDUARDO
C67: No. CEDULA / RUC: | F67: 1239876589
C69: NACIONALIDAD DEL CONYUGUE: | F69: COLOMBIANO
C71: LUGAR DE TRABAJO: | F71: MARESA
C73: PROFESIÓN U OCUPACIÓN: | F73: INGENIERO
C75: DATOS VEHÍCULO
C77: MARCA: | F77: =Cotizador!$F$25 -> MAZDA
C79: MODELO: | F79: =Cotizador!$F$27 -> CX3
C81: CLASE: | F81: AUTOMOVIL
C84: TIPO: | F84: SEDAN
C86: AÑO: | F86: =Cotizador!$F$29 -> 2019
C88: COLOR: | F88: ROJO
C90: No. DE MOTOR: | F90: BU456792826RE7
C92: No. DE CHASIS: | F92: CG5342892U
C94: PAIS DE ORIGEN: | F94: KOREA
C96: TONELAJE: | F96: 0,45
C98: CILINDRAJE: | F98: 2000
C100: VALOR DE COMPRA / VENTA: | F100: =Cotizador!F31 -> 34483.5
C102: VALOR DE ENTRADA | F102: =Cotizador!F35 -> 8000
C104: PLAZO FINANCIAMIENTO | F104: =Cotizador!F37 -> 4
C106: TASA DE INTERES VIGENTE: | F106: =+Cotizador!F43 -> 0.1606
C108: CUOTA VEHICULO: | F108: =+'TAB AMORT'!C14 -> 754.353057
C110: REQUIERE DISPOSITIVO | F110: =IF(F100>15000,"REQUIERE DISPOSITIVO DE RASTREO","NO APLICA DISPOSITIVO") -> REQUIERE DISPOSITIVO DE RASTREO
C112: DISPOSITIVO | F112: =Cotizador!F47 -> MARESA SATELITAL BY HUNTER
C114: DISPOSITIVO | F114: =CONCATENATE(F112," ",F104*12) -> MARESA SATELITAL BY HUNTER 48
C116: TASA GASTOS LEGALIZACIÓN CONTRATOS | F116: =+Cotizador!D161 -> 419.8175
C118: CONDUCTORES DEL VEHICULO
C120: NOMBRE Y APELLIDO | F120: FECHA NACIMIENTO | I120: GENERO | L120: ESTADO CIVIL | O120: % DE USO
C122: ANA DOMINGUEZ | F122: 1974-06-25 | I122: FEMENINO | L122: CASADO | O122: 20
C123: PEDRO CALVACHE | F123: 2004-03-31 | I123: MASCULINO | L123: SOLTERO | O123: 30
C124: DAVID CALVACHE | F124: 1972-08-30 | I124: MASCULINO | L124: CASADO | O124: 50
C128: VALORES ADICIONALES
C130: CUOTA SEGURO VEHICULO: | F130: =+Cotizador!F51 -> 100.460376
C132: GASTOS LEGALES: | F132: =+Cotizador!$D$161 -> 419.8175
C134: PLAZO GASTOS LEGALES | F134: =Cotizador!F49 -> 3 MESES SIN INTERESES
C136: CUOTA GASTOS LEGALES | F136: =+Cotizador!F53 -> 139.9391667
C138: CUOTA MENSUAL DISPOSITIVO | F138: =IF(F112="SIN DISPOSITIVO",0,VLOOKUP(F114,Cotizador!$C$83:$D$127,2,FALSE)) -> 35.58333333
C140: CUOTA MENSUAL SEGURO DESGRAVAMEN | F140: 0,099% MENSUAL SOBRE EL SALDO DE LA TARJETA DE CREDITO
C142: CUOTA MENSUALVEHICULO | F142: =+F108 -> 754.353057
C144: FORMA DE PAGO
C146: No. DE TARJETA: | F146: 365023 | L146: 25370040
C148: FECHA DE CADUCIDAD: | F148: 2022-05-01 | L148: =TODAY() -> 2019-10-22
C166: DISPOSITIVOS | G166: AÑO | I166: VALOR LEGALES | K166: CIUDAD | L166: Rep Legal | M166: CI REP LEG | N166: MES | Q166: COLOR | S166: CÓDIGO COLOR | T166: TASA | U166: PRIMA NETA | V166: SÚPER BANCOS | W166: DERECHOS EMISIÓN | X166: IVA | Y166: PRIMA TOTAL | Z166: MARCA SISE | AA166: CÓDIGO MARCA SISE | AB166: MARCA | AC166: CÓDIGO MARCA SISE | AD166: MODELO | AE166: CÓDIGO MODELO SISE | AF166: TIPO | AG166: GENERO | AH166: DIA | AI166: ESTADO CIVIL | AJ166: % USO | AK166: AÑOS | AL166: GASTOS LEGALES | AO166: PAÍS DE ORIGEN | AQ166: % ENTRADA | AR166: % RESTANTE | AS166: VALOR RESTANTE | AT166: CALCULO DÍAS | AV166: BIN | AW166: FECHA PAGO | AX166: EXTRAER1 | AY166: EXTRAER 2 | AZ166: ES VEHICULO FAMILIAR
C167: TRACKLINK INTERACTIVO 12 | D167: 46.57333333 | E167: 469.28 | G167: 2008 | I167: 37.184 | K167: QUITO | L167: SILVIA JANNETH LEMA TAIPE | M167: 1715916951 | N167: ENERO | Q167: AMARILLO | S167: 1 | T167: =(3.85/12)/100 -> 0.003208333333 | U167: =ROUND(([3]FORM!$F$105*$T$167),2) -> 0 | V167: =ROUND(($U$167*3.5%),2) -> 0 | W167: 0.04 | X167: =+[3]CERT!I18 -> 0.0048 | Y167: =+[3]CERT!I20 -> 0.0448 | Z167: ALFA ROMEO | AA167: 24 | AB167: ALFA ROMEO | AC167: 24 | AD167: 146 | AE167: 1 | AF167: SEDAN | AG167: MASCULINO | AH167: 1 | AI167: SOLTERO | AJ167: 5 | AK167: 1 | AL167: CORRIENTE | AO167: ALEMANIA | AQ167: =+F102/F100 -> 0.2319950121 | AR167: =100%-AQ167 -> 0.7680049879 | AS167: =+F100-F102 -> 26483.5 | AT167: =+F104/12 -> 0.3333333333 | AV167: 360041 | AW167: 16 | AX167: =MID(F146,1,6) -> 365023 | AY167: =MID(F146,7,8) ->  | AZ167: SI
C168: TRACKLINK INTERACTIVO 24 | D168: 33.55333333 | E168: 592.48 | G168: 2009 | I168: 17.92 | K168: GUAYAQUIL | L168: ERNEST FERDINAND VALLEJO COBOS | M168: 0926201138 | N168: FEBRERO | Q168: AZUL | S168: 2 | T168: =(3.25/12)/100 -> 0.002708333333 | U168: =ROUND(([3]FORM!$F$105*$T$168),2) -> 0 | V168: =ROUND(($U$168*3.5%),2) -> 0 | W168: 0.04 | X168: =+[3]CERT!I18 -> 0.0048 | Y168: =+Y167 -> 0.0448 | Z168: AUDI | AA168: 1 | AB168: ALFA ROMEO | AC168: 24 | AD168: 155 | AE168: 2 | AF168: SEDAN | AG168: FEMENINO | AH168: 2 | AI168: CASADO | AJ168: 10 | AK168: 2 | AL168: 3 MESES SIN INTERESES | AO168: ARGENTINA | AV168: 361329 | AW168: 16 | AZ168: NO
C169: TRACKLINK INTERACTIVO 36 | D169: 29.21333333 | E169: 715.68 | G169: 2010 | I169: 1.2 | K169: CUENCA | L169: ERNEST FERDINAND VALLEJO COBOS | M169: 0926201138 | N169: MARZO | Q169: BEIGE | S169: 3 | T169: =(2.5/12)/100 -> 0.002083333333 | U169: =ROUND(([3]FORM!$F$105*$T$169),2) -> 0 | V169: =ROUND(($U$169*3.5%),2) -> 0 | W169: 0.04 | X169: =+[3]CERT!I18 -> 0.0048 | Y169: =+Y168 -> 0.0448 | Z169: AUSTIN | AA169: 26 | AB169: ALFA ROMEO | AC169: 24 | AD169: 156 | AE169: 3 | AF169: SEDAN | AH169: 3 | AI169: VIUDO | AJ169: 15 | AK169: 3 | AO169: BRASIL | AV169: 361349 | AW169: 1
C170: TRACKLINK INTERACTIVO 48 | D170: 27.04333333 | E170: 962.08 | G170: 2011 | I170: 1000 | K170: AMBATO | L170: SILVIA JANNETH LEMA TAIPE | M170: 1715916951 | N170: ABRIL | Q170: BLANCO | S170: 4 | Z170: BMW | AA170: 2 | AB170: ALFA ROMEO | AC170: 24 | AD170: 165 | AE170: 4 | AF170: SEDAN | AH170: 4 | AI170: DIVORCIADO | AJ170: 20 | AK170: 4 | AO170: CANADÁ | AV170: 362062 | AW170: 1
C171: TRACKLINK INTERACTIVO 60 | D171: 25.74133333 | E171: 1208.48 | G171: 2012 | I171: 1.12 | K171: IBARRA | L171: SILVIA JANNETH LEMA TAIPE | M171: 1715916951 | N171: MAYO | Q171: CAFÉ | S171: 5 | Z171: BUICK | AA171: 81 | AB171: ALFA ROMEO | AC171: 24 | AD171: 166 | AE171: 5 | AF171: SEDAN | AH171: 5 | AI171: UNIÓN LIBRE | AJ171: 25 | AO171: CHINA | AV171: 362620 | AW171: 1
C172: TRACKLINK CONTROL 12 | D172: 54.04 | E172: 388.64 | F172: 419 | G172: 2013 | I172: 44.8 | K172: MANTA | L172: ERNEST FERDINAND VALLEJO COBOS | M172: 0926201138 | N172: JUNIO | Q172: CELESTE | S172: 6 | Z172: CHANGAN | AA172: 83 | AB172: ALFA ROMEO | AC172: 24 | AD172: SPIDER | AE172: 6 | AF172: SEDAN | AH172: 6 | AJ172: 30 | AO172: CHILE | AV172: 362621 | AW172: 1
C173: TRACKLINK CONTROL 24 | D173: 39.62 | E173: 511.84 | G173: 2014 | I173: =IF(F100>4000,F100-4000,44.8) -> 30483.5 | K173: MACHALA | L173: ERNEST FERDINAND VALLEJO COBOS | M173: 0926201138 | N173: JULIO | Q173: CREMA | S173: 7 | Z173: CHEVROLET | AA173: 3 | AB173: ALFA ROMEO | AC173: 24 | AD173: 33 | AE173: 7 | AF173: SEDAN | AH173: 7 | AJ173: 35 | AO173: COLOMBIA | AV173: 362622 | AW173: 16
C174: TRACKLINK CONTROL 36 | D174: 34.81333333 | E174: 635.04 | G174: 2015 | I174: 22.4 | K174: LOJA | L174: ERNEST FERDINAND VALLEJO COBOS | M174: 0926201138 | N174: AGOSTO | Q174: FUCSIA | S174: 8 | Z174: CHRYSLER | AA174: 4 | AB174: ALFA ROMEO | AC174: 24 | AD174: GIO | AE174: 8 | AF174: SEDAN | AH174: 8 | AJ174: 40 | AO174: ECUADOR | AV174: 363999 | AW174: 16
C175: TRACKLINK CONTROL 48 | D175: 32.41 | E175: 881.44 | G175: 2016 | I175: 56 | K175: PORTOVIEJO | L175: ERNEST FERDINAND VALLEJO COBOS | M175: 0926201138 | N175: SEPTIEMBRE | Q175: GRIS | S175: 9 | Z175: CITROEN | AA175: 28 | AB175: ALFA ROMEO | AC175: 24 | AD175: 164 | AE175: 9 | AF175: SEDAN | AH175: 9 | AJ175: 45 | AO175: ESPAÑA | AV175: 364170 | AW175: 16
C176: TRACKLINK CONTROL 60 | D176: 30.968 | E176: 1127.84 | F176: =+E171/48 -> 25.17666667 | K176: ALAMOR | N176: OCTUBRE | Q176: LILA | S176: 10 | Z176: DACIA | AA176: 29 | AB176: ALFA ROMEO | AC176: 24 | AD176: GTV3 | AE176: 10 | AF176: SEDAN | AH176: 10 | AJ176: 50 | AO176: ESTADOS UNIDOS | AV176: 364171 | AW176: 1
C177: TRACKLINK CONTROL PLUS 12 | D177: 69.90666667 | E177: 586.88 | F177: =+(E172*1.05) -> 408.072 | K177: ALAUSI | N177: NOVIEMBRE | Q177: MORADO | S177: 11 | Z177: DAEWOO | AA177: 5 | AB177: ALFA ROMEO | AC177: 24 | AD177: 145 | AE177: 11 | AF177: COUPE | AH177: 11 | AJ177: 55 | AO177: NORUEGA | AV177: 364172 | AW177: 16
C178: TRACKLINK CONTROL PLUS 24 | D178: 47.50666667 | E178: 736.96 | K178: AMBUQUI | N178: DICIEMBRE | Q178: NARANJA | S178: 12 | Z178: DAIHATSU | AA178: 6 | AB178: ALFA ROMEO | AC178: 24 | AD178: 147 | AE178: 12 | AF178: SEDAN | AH178: 12 | AJ178: 60 | AO178: HONG KONG | AV178: 364173 | AW178: 1
C179: TRACKLINK CONTROL PLUS 36 | D179: 40.04 | E179: 887.04 | K179: ANTONIO ANTE | Q179: NEGRO | S179: 13 | Z179: DATSUN | AA179: 30 | AB179: AUDI | AC179: 1 | AD179: 80 | AE179: 1 | AF179: SEDAN | AH179: 13 | AJ179: 65 | AO179: FRANCIA | AV179: 364190 | AW179: 16
C180: TRACKLINK CONTROL PLUS 48 | D180: 36.30666667 | E180: 1187.2 | K180: ANTONIO ANTE | Q180: PLATA | S180: 14 | Z180: DEER | AA180: 111 | AB180: AUDI | AC180: 1 | AD180: A3 | AE180: 2 | AF180: SEDAN | AH180: 14 | AJ180: 70 | AO180: INGLATERRA | AV180: 364234 | AW180: 16
C181: TRACKLINK CONTROL PLUS 60 | D181: 34.06666667 | E181: 1487.36 | F181: =+E176/48 -> 23.49666667 | K181: ARCHIDONA | Q181: PLATEADO | S181: 15 | Z181: DODGE | AA181: 31 | AB181: AUDI | AC181: 1 | AD181: TT COUPE 1.8 QUATTRO | AE181: 3 | AF181: SEDAN | AH181: 15 | AJ181: 75 | AO181: ITALIA | AV181: 364261 | AW181: 16
C182: TRACKLINK CONTROL TOTAL 12 | D182: 88.57333333 | E182: 506.24 | F182: =+(E177*1.05) -> 616.224 | K182: ARENILLAS | Q182: PLOMO | S182: 16 | Z182: FIAT | AA182: 7 | AB182: AUDI | AC182: 1 | AD182: A4 | AE182: 4 | AF182: SEDAN | AH182: 16 | AJ182: 80 | AO182: JAPÓN | AV182: 364444 | AW182: 1
C183: TRACKLINK CONTROL TOTAL 24 | D183: 60.15333333 | E183: 656.32 | K183: ATACAMES | Q183: ROJO | S183: 17 | Z183: FORD | AA183: 8 | AB183: AUDI | AC183: 1 | AD183: A6 | AE183: 5 | AF183: SEDAN | AH183: 17 | AJ183: 85 | AO183: COREA | AV183: 364522 | AW183: 16
C184: TRACKLINK CONTROL TOTAL 36 | D184: 50.68 | E184: 806.4 | K184: ATUNTAQUI | Q184: VERDE | S184: 18 | Z184: FSO | AA184: 77 | AB184: AUDI | AC184: 1 | AD184: 808 | AE184: 6 | AF184: SEDAN | AH184: 18 | AJ184: 90 | AO184: MÉXICO | AV184: 364700 | AW184: 1
C185: TRACKLINK CONTROL TOTAL 48 | D185: 45.94333333 | E185: 1106.56 | K185: AZOGUEZ | Q185: VINO | S185: 19 | Z185: GMC | AA185: 70 | AB185: AUDI | AC185: 1 | AD185: A 62.8 | AE185: 7 | AF185: SEDAN | AH185: 19 | AJ185: 95 | AO185: PERU | AV185: 364701 | AW185: 16
C186: TRACKLINK CONTROL TOTAL 60 | D186: 43.10133333 | E186: 1406.72 | F186: =+E181/48 -> 30.98666667 | K186: BABAHOYO | Q186: BRONCE | S186: 20 | Z186: GREAT WALL | AA186: 108 | AB186: AUDI | AC186: 1 | AD186: ALLROAD | AE186: 8 | AF186: SEDAN | AH186: 20 | AJ186: 100 | AO186: REPUBLICA CHECA | AV186: 364702 | AW186: 16
C187: SHERLOC 12 | D187: 53.2 | E187: =+D198*24 -> 940.8 | F187: =+(E182*1.05) -> 531.552 | I187: 870 | K187: BAHÍA DE CARÁQUEZ | Q187: CHAMPAGNE | S187: 21 | Z187: HONDA | AA187: 9 | AB187: AUDI | AC187: 1 | AD187: A8 | AE187: 9 | AF187: SEDAN | AH187: 21 | AO187: RUSIA | AV187: 364703 | AW187: 1
C188: SHERLOC 24 | D188: 40.55 | E188: =+D199*24 -> 860.16 | K188: BALAO | Q188: DORADO | S188: 22 | Z188: HUMMER | AA188: 115 | AB188: AUSTIN | AC188: 26 | AD188: MINI 1000 | AE188: 1 | AF188: COUPE | AH188: 22 | AO188: SUECIA | AV188: 364716 | AW188: 1
C189: SHERLOC 36 | D189: 36.34 | E189: =+D200*24 -> 806.4 | K189: BALSAS | Q189: HABANO | S189: 23 | Z189: HYUNDAI | AA189: 10 | AB189: AUSTIN | AC189: 26 | AD189: MINI CORD | AE189: 2 | AF189: COUPE | AH189: 23 | AO189: VENEZUELA | AV189: 364717 | AW189: 1
C190: SHERLOC 48 | D190: 31.9 | E190: =+D201*36 -> 1169.28 | K190: BALZAR | Q190: MARRÓN | S190: 24 | Z190: INTERNATIONAL | AA190: 44 | AB190: BMW | AC190: 2 | AD190: 318 | AE190: 1 | AF190: SEDAN | AH190: 24 | AO190: YUGOSLAVIA | AV190: 364719 | AW190: 16
C191: SHERLOC 60 | D191: 29.23 | E191: =+D202*48 -> 3064.32 | F191: =+E186/48 -> 29.30666667 | K191: BAÑOS | Q191: STRATO | S191: 25 | Z191: ISUZU | AA191: 34 | AB191: BMW | AC191: 2 | AD191: 330I | AE191: 2 | AF191: SEDAN | AH191: 25 | AV191: 365001 | AW191: 16
C192: HUNTER LOJACK 12 | D192: 41.888 | K192: BIBLIAN | Q192: VIOLETA | S192: 26 | Z192: JAGUAR | AA192: 35 | AB192: BMW | AC192: 2 | AD192: 328I | AE192: 3 | AF192: SEDAN | AH192: 26 | AV192: 365147 | AW192: 16
C193: HUNTER LOJACK 24 | D193: 33.6 | K193: BOLÍVAR | Q193: TURQUESA | S193: 27 | Z193: JEEP | AA193: 71 | AB193: BMW | AC193: 2 | AD193: 325I | AE193: 4 | AF193: SEDAN | AH193: 27 | AV193: 365166 | AW193: 1
C194: HUNTER LOJACK 36 | D194: 30.24 | K194: BUENA FE | Q194: ROSADO | S194: 28 | Z194: KIA | AA194: 11 | AB194: BMW | AC194: 2 | AD194: X5 4X4 5P | AE194: 5 | AF194: JEEP | AH194: 28 | AV194: 365167 | AW194: 1
C195: HUNTER LOJACK 48 | D195: 29.12 | K195: CALUMA | Q195: ARENA | S195: 29 | Z195: LADA | AA195: 13 | AB195: BMW | AC195: 2 | AD195: 528I | AE195: 6 | AF195: SEDAN | AH195: 29 | AV195: 365168 | AW195: 16
C196: HUNTER LOJACK 60 | D196: 28 | K196: CAÑAR | Q196: ILUSIÓN | S196: 30 | Z196: LANCIA | AA196: 36 | AB196: BMW | AC196: 2 | AD196: 316I | AE196: 7 | AF196: SEDAN | AH196: 30 | AV196: 365169 | AW196: 1
C197: H. MONITOREO BASICO 12 | D197: 51.52 | K197: CARIAMANGA | Q197: ROBLE | S197: 31 | Z197: LAND ROVER | AA197: 12 | AB197: BMW | AC197: 2 | AD197: 320I | AE197: 8 | AF197: SEDAN | AH197: 31 | AV197: 365181 | AW197: 1
C198: H. MONITOREO BASICO 24 | D198: 39.2 | K198: CATAMAYO | Q198: MOSTAZA | S198: 32 | Z198: LEXUS | AA198: 37 | AB198: BMW | AC198: 2 | AD198: 323I | AE198: 9 | AF198: SEDAN | AV198: 365420 | AW198: 1
C199: H. MONITOREO BASICO 36 | D199: 35.84 | K199: CAYAMBE | Z199: LINCOLN | AA199: 38 | AB199: BMW | AC199: 2 | AD199: 523I | AE199: 10 | AF199: SEDAN | AV199: 365421 | AW199: 16
C200: H. MONITOREO BASICO 48 | D200: 33.6 | K200: CELICA | Z200: MAHINDRA | AA200: 101 | AB200: BMW | AC200: 2 | AD200: 525I | AE200: 11 | AF200: SEDAN | AV200: 365422 | AW200: 1
C201: H. MONITOREO BASICO 60 | D201: 32.48 | K201: CHICA | Z201: MAZDA | AA201: 14 | AB201: BMW | AC201: 2 | AD201: Z3 | AE201: 12 | AF201: COUPE | AV201: 365423 | AW201: 16
C202: H. MONITOREO BÁSICO GOLDEN 12 | D202: 63.84 | K202: CHIMBO | Z202: MERCEDES BENZ | AA202: 15 | AB202: BMW | AC202: 2 | AD202: Z8 | AE202: 13 | AF202: COUPE | AV202: 365424 | AW202: 16
C203: H. MONITOREO BÁSICO GOLDEN 24 | D203: 45.92
C204: H. MONITOREO BÁSICO GOLDEN 36 | D204: 40.32 | K204: CHONE | Z204: MITSUBISHI | AA204: 16 | AB204: BMW | AC204: 2 | AD204: M3 | AE204: 14 | AF204: COUPE | AV204: 365425 | AW204: 1
C205: H. MONITOREO BÁSICO GOLDEN 48 | D205: 36.96 | K205: COCA | Z205: NISSAN | AA205: 17 | AB205: BMW | AC205: 2 | AD205: M5 | AE205: 15 | AF205: COUPE | AV205: 365427 | AW205: 1
C206: H. MONITOREO BÁSICO GOLDEN 60 | D206: 35.168 | K206: CONCORDIA | Z206: OLDSMOBIL | AA206: 73 | AB206: BMW | AC206: 2 | AD206: 520 | AE206: 16 | AF206: SEDAN | AV206: 365428 | AW206: 1
C207: MARESA SATELITAL BY HUNTER 12 | D207: 50.4 | K207: COTACACHI | Z207: OLTCIT | AA207: 40 | AB207: BMW | AC207: 2 | AD207: 530IA | AE207: 17 | AF207: SEDAN | AV207: 365429 | AW207: 16
C208: MARESA SATELITAL BY HUNTER 24 | D208: 40.32 | K208: CUMBAYÁ | Z208: PEUGEOT | AA208: 18 | AB208: BMW | AC208: 2 | AD208: 318TI | AE208: 18 | AF208: COUPE | AV208: 365453 | AW208: 16
C209: MARESA SATELITAL BY HUNTER 36 | D209: 36.96 | K209: DAULE | Z209: PLYMOUTH | AA209: 54 | AB209: BMW | AC209: 2 | AD209: 740 | AE209: 19 | AF209: SEDAN | AV209: 365454 | AW209: 16
C210: MARESA SATELITAL BY HUNTER 48 | D210: 35.84 | K210: DURAN | Z210: PORCHE | AA210: 56 | AB210: BMW | AC210: 2 | AD210: 1602 | AE210: 21 | AF210: SEDAN
C211: MARESA SATELITAL BY HUNTER 60 | D211: 34.72 | K211: EL ÁNGEL | Z211: RENAULT | AA211: 19 | AB211: BMW | AC211: 2 | AD211: 366 | AE211: 22 | AF211: SEDAN
K212: EL CARMEN | Z212: SAAB | AA212: 45 | AB212: BMW | AC212: 2 | AD212: 530 | AE212: 23 | AF212: SEDAN
K213: EL CORAZÓN | Z213: SAEHAN | AA213: 57 | AB213: BMW | AC213: 2 | AD213: 540 | AE213: 25 | AF213: SEDAN
K214: EL EMPALME | Z214: SAMSUNG | AA214: 74 | AB214: BMW | AC214: 2 | AD214: 318IS | AE214: 26 | AF214: SEDAN
K215: EL GUABO | Z215: SANGYONG | AA215: 42 | AB215: BMW | AC215: 2 | AD215: 318I LIMUSIN | AE215: 27 | AF215: SEDAN
C216: Sin Dispositivo | K216: EL NARANJAL | Z216: SEAT | AA216: 105 | AB216: BMW | AC216: 2 | AD216: Z4 | AE216: 29 | AF216: COUPE
C217: TRACKLINK INTERACTIVO | K217: EL TAMBO | Z217: SKODA | AA217: 20 | AB217: BMW | AC217: 2 | AD217: X3 | AE217: 31 | AF217: JEEP
C218: TRACKLINK CONTROL | K218: EL TRIUNFO | Z218: SUBARU | AA218: 58 | AB218: BUICK | AC218: 81 | AD218: CENTURY | AE218: 1 | AF218: SEDAN
C219: TRACKLINK CONTROL PLUS | K219: ESMERALDAS | Z219: SUZUKI | AA219: 60 | AB219: CHANGAN | AC219: 83 | AD219: SC1011CG | AE219: 1 | AF219: PICK-UP
C220: TRACKLINK CONTROL TOTAL | K220: FLAVIO ALFARO | Z220: TALBOT | AA220: 59 | AB220: CHANGAN | AC220: 83 | AD220: MINI VAN | AE220: 2 | AF220: MINI VAN
C221: SHERLOC | K221: GIRÓN | Z221: TATA | AA221: 75 | AB221: CHANGAN | AC221: 83 | AD221: SC1018AA100 | AE221: 3 | AF221: PICK-UP
C222: HUNTER LOJACK | K222: GONZALO PIZARRO | Z222: TOYOTA | AA222: 21 | AB222: CHEVROLET | AC222: 3 | AD222: FORSA | AE222: 1 | AF222: COUPE
C223: H. MONITOREO BASICO | K223: GUALACEO | Z223: VOLKSWAGEN | AA223: 22 | AB223: CHEVROLET | AC223: 3 | AD223: CORSA 3P | AE223: 2 | AF223: COUPE
C224: H. MONITOREO BÁSICO GOLDEN | K224: GUALAQUIZA | Z224: VOLVO | AA224: 23 | AB224: CHEVROLET | AC224: 3 | AD224: CORSA 4P | AE224: 3 | AF224: SEDAN
C225: MARESA SATELITAL BY HUNTER | K225: GUAMOTE | Z225: WORLDSTAR | AA225: 99 | AB225: CHEVROLET | AC225: 3 | AD225: CORSA 5P | AE225: 4 | AF225: SEDAN
K226: GUANO | Z226: ZASTAVA | AA226: 61 | AB226: CHEVROLET | AC226: 3 | AD226: CORSA SPORT | AE226: 5 | AF226: SEDAN
K227: GUARANDA | AB227: CHEVROLET | AC227: 3 | AD227: CORSA P/U 1600 | AE227: 6 | AF227: PICK-UP
K228: GUAYLLABAMBA | AB228: CHEVROLET | AC228: 3 | AD228: SAN REMO | AE228: 7 | AF228: SEDAN
K229: HUAQUILLAS | AB229: CHEVROLET | AC229: 3 | AD229: MONZA | AE229: 8 | AF229: SEDAN
K230: JIPIJAPA | AB230: CHEVROLET | AC230: 3 | AD230: SWIFT | AE230: 9 | AF230: SEDAN
K231: JUNIN | AB231: CHEVROLET | AC231: 3 | AD231: SWIFT EMOTION | AE231: 10 | AF231: SEDAN
K232: LA CONCORDIA | AB232: CHEVROLET | AC232: 3 | AD232: ESTEEM 4P | AE232: 11 | AF232: SEDAN
K233: LA MANA | AB233: CHEVROLET | AC233: 3 | AD233: ESTEEM S. WAGON | AE233: 12 | AF233: STATION WAGON
K234: LA UNIÓN | AB234: CHEVROLET | AC234: 3 | AD234: LUV 4X2 C/S | AE234: 13 | AF234: PICK-UP
K235: LAGO AGRIO | AB235: CHEVROLET | AC235: 3 | AD235: LUV 4X2 D/C | AE235: 14 | AF235: PICK-UP
K236: LAS LAJAS | AB236: CHEVROLET | AC236: 3 | AD236: LUV 4X4 C/S | AE236: 15 | AF236: PICK-UP
K237: LASSO | AB237: CHEVROLET | AC237: 3 | AD237: LUV 4X4 D/C | AE237: 16 | AF237: PICK-UP
K238: LATACUNGA | AB238: CHEVROLET | AC238: 3 | AD238: VITARA 3P | AE238: 17 | AF238: JEEP
K239: LIBERTAD | AB239: CHEVROLET | AC239: 3 | AD239: VITARA 5P | AE239: 18 | AF239: JEEP
K240: LIMÓN | AB240: CHEVROLET | AC240: 3 | AD240: RODEO 4X2 | AE240: 19 | AF240: JEEP
K241: QUEVEDO | AB241: CHEVROLET | AC241: 3 | AD241: RODEO 4X4 | AE241: 20 | AF241: JEEP
K242: LOS BANCOS | AB242: CHEVROLET | AC242: 3 | AD242: CAVALIER STD | AE242: 21 | AF242: SEDAN
K243: MACARA | AB243: CHEVROLET | AC243: 3 | AD243: CAVALIER DLX | AE243: 22 | AF243: SEDAN
K244: MACAS | AB244: CHEVROLET | AC244: 3 | AD244: SÚPER CARRY PICK UP | AE244: 23 | AF244: PICK-UP
K245: MACHACHI | AB245: CHEVROLET | AC245: 3 | AD245: GRAND BLAZER 3P | AE245: 26 | AF245: JEEP
K246: MÉNDEZ | AB246: CHEVROLET | AC246: 3 | AD246: GRAND BLAZER 5P | AE246: 27 | AF246: JEEP
K247: MILAGRO | AB247: CHEVROLET | AC247: 3 | AD247: TAHOE 5P. USA | AE247: 28 | AF247: JEEP
K248: MIRA | AB248: CHEVROLET | AC248: 3 | AD248: BLAZER 4X4 | AE248: 29 | AF248: JEEP
K249: MOCACHE | AB249: CHEVROLET | AC249: 3 | AD249: BLAZER 4X2 | AE249: 30 | AF249: JEEP
K250: MONTALVO | AB250: CHEVROLET | AC250: 3 | AD250: SILVERADO | AE250: 31 | AF250: PICK-UP
K251: MONTECRISTI | AB251: CHEVROLET | AC251: 3 | AD251: CHEYENNE | AE251: 32 | AF251: PICK-UP
K252: MONTUFAR | AB252: CHEVROLET | AC252: 3 | AD252: TROOPER 2.300 3P. | AE252: 33 | AF252: JEEP
K253: MUISNE | AB253: CHEVROLET | AC253: 3 | AD253: TROOPER 3P | AE253: 34 | AF253: JEEP
K254: NARANJITO | AB254: CHEVROLET | AC254: 3 | AD254: TROOPER 5P | AE254: 35 | AF254: JEEP
K255: NUEVA LOJA | AB255: CHEVROLET | AC255: 3 | AD255: GRAND VITARA 3P | AE255: 36 | AF255: JEEP
K256: OTAVALO | AB256: CHEVROLET | AC256: 3 | AD256: GRAND VITARA 5P | AE256: 37 | AF256: JEEP
K257: PAJAN | AB257: CHEVROLET | AC257: 3 | AD257: ALTO 5P | AE257: 38 | AF257: SEDAN
K258: PALENQUE | AB258: CHEVROLET | AC258: 3 | AD258: ASTRA 2P | AE258: 39 | AF258: COUPE
K259: PALESTINA | AB259: CHEVROLET | AC259: 3 | AD259: ASTRA 4P | AE259: 40 | AF259: SEDAN
K260: PALLATANGA | AB260: CHEVROLET | AC260: 3 | AD260: ASKA | AE260: 41 | AF260: SEDAN
K261: PASAJE | AB261: CHEVROLET | AC261: 3 | AD261: ASTROVAN | AE261: 42 | AF261: MINI VAN
K262: PASTAZA | AB262: CHEVROLET | AC262: 3 | AD262: CHEVETTE | AE262: 44 | AF262: COUPE
K263: PATATE | AB263: CHEVROLET | AC263: 3 | AD263: CONDOR | AE263: 45 | AF263: COUPE
K264: PAUTE | AB264: CHEVROLET | AC264: 3 | AD264: CORSICA | AE264: 46 | AF264: SEDAN
K265: PEDERNALES | AB265: CHEVROLET | AC265: 3 | AD265: GEMINI | AE265: 47 | AF265: SEDAN
K266: PEDRO CARBO | AB266: CHEVROLET | AC266: 3 | AD266: IMPALA | AE266: 48 | AF266: SEDAN
K267: PELILEO | AB267: CHEVROLET | AC267: 3 | AD267: VEGA | AE267: 49 | AF267: SEDAN
K268: PIFO | AB268: CHEVROLET | AC268: 3 | AD268: ZAFIRA 5P | AE268: 51 | AF268: MINI VAN
K269: PILLARO | AB269: CHEVROLET | AC269: 3 | AD269: CARGO | AE269: 52 | AF269: PICK-UP
K270: PIMAMPIRO | AB270: CHEVROLET | AC270: 3 | AD270: CHEVY VAN | AE270: 53 | AF270: MINI VAN
K271: PINDAL | AB271: CHEVROLET | AC271: 3 | AD271: MINI BLAZER 4X2 | AE271: 55 | AF271: JEEP
K272: PIÑAS | AB272: CHEVROLET | AC272: 3 | AD272: MINI BLAZER 4X4 | AE272: 56 | AF272: JEEP
K273: PLAYAS | AB273: CHEVROLET | AC273: 3 | AD273: CITATION | AE273: 57 | AF273: SEDAN
K274: PORTOVELO | AB274: CHEVROLET | AC274: 3 | AD274: C10 | AE274: 60 | AF274: PICK-UP
K275: PUEBLO VIEJO | AB275: CHEVROLET | AC275: 3 | AD275: CREW CAB 4X4 | AE275: 65 | AF275: PICK-UP
K276: PUEMBO | AB276: CHEVROLET | AC276: 3 | AD276: C1500 | AE276: 66 | AF276: PICK-UP
K277: PUERTO CAYO | AB277: CHEVROLET | AC277: 3 | AD277: AVALANCHE | AE277: 68 | AF277: PICK-UP
K278: PUERTO LOPEZ | AB278: CHEVROLET | AC278: 3 | AD278: CORSA EVOLUTION | AE278: 70 | AF278: SEDAN
K279: PUERTO QUITO | AB279: CHEVROLET | AC279: 3 | AD279: TRAIL BLAZER 4X4 | AE279: 71 | AF279: JEEP
K280: PUJILI | AB280: CHEVROLET | AC280: 3 | AD280: TRAIL BLAZER 4X2 | AE280: 72 | AF280: JEEP
K281: PUYANGO | AB281: CHEVROLET | AC281: 3 | AD281: ASTRA 3P | AE281: 73 | AF281: COUPE
K282: PUYO | AB282: CHEVROLET | AC282: 3 | AD282: CORSA WIND | AE282: 74 | AF282: SEDAN
K283: QUERO | AB283: CHEVROLET | AC283: 3 | AD283: JIMNY 4X4 | AE283: 75 | AF283: JEEP
K284: QUININDE | AB284: CHEVROLET | AC284: 3 | AD284: SPARK | AE284: 76 | AF284: SEDAN
K285: QUITO | AB285: CHEVROLET | AC285: 3 | AD285: CHEYENNE 4X2 | AE285: 77 | AF285: PICK-UP
K286: RIOBAMBA | AB286: CHEVROLET | AC286: 3 | AD286: CHEYENNE 4X4 | AE286: 78 | AF286: PICK-UP
K287: ROCAFUERTE | AB287: CHEVROLET | AC287: 3 | AD287: OPTRA | AE287: 79 | AF287: SEDAN
K288: SALCEDO | AB288: CHEVROLET | AC288: 3 | AD288: GRAND VITARA 5P XL7 4X4 | AE288: 80 | AF288: JEEP
K289: SALINAS | AB289: CHEVROLET | AC289: 3 | AD289: GRAND VITARA 5P XL7 4X2 | AE289: 81 | AF289: JEEP
K290: SAMBORONDON | AB290: CHEVROLET | AC290: 3 | AD290: LUV D-MAX C/S 4X2 | AE290: 82 | AF290: PICK-UP
K291: SAME | AB291: CHEVROLET | AC291: 3 | AD291: LUV D-MAX C/D 4X2 | AE291: 83 | AF291: PICK-UP
K292: SAN CAMILO | AB292: CHEVROLET | AC292: 3 | AD292: LUV D-MAX C/S 4X4 | AE292: 84 | AF292: PICK-UP
K293: SAN GABRIEL | AB293: CHEVROLET | AC293: 3 | AD293: LUV D-MAX C/D 4X4 | AE293: 85 | AF293: PICK-UP
K294: SAN LORENZO | AB294: CHRYSLER | AC294: 4 | AD294: GRAND CHEROKEE LAREDO 4X4 | AE294: 1 | AF294: JEEP
... 470 more rows

Sheet CERT
A2: CERTIFICADO PROVISIONAL DE SEGURO
A4: VEHÍCULOS | D4: PÓLIZA MAESTRA | G4: 73896 / 71140 / 50393
A6: Contratante: | C6: BANCO DINERS CLUB DEL ECUADOR S.A.
A7: Asegurado: | C7: =FORM!Q37 -> ANA CAROLINA DOMINGUEZ RUALES | G7: C.I o R.U.C: | H7: =+FORM!$F$39 -> 1234567890
A8: Dirección: | C8: =+FORM!$F$45 -> AV PEDRO DE ALVARADO N56-72 Y CARLOS V | G8: Teléfono 1: | H8: =+FORM!$F$37 -> 3188179
A9: Ciudad: | C9: =+FORM!$F$47 -> PORTOVIEJO | G9: Teléfono 2: | H9: =+FORM!$L$37 -> 0985352479
A11: A.I.G. METROPOLITANA COMPAÑÍA DE SEGUROS Y REASEGUROS S.A. hace constar por este medio que la Póliza de Seguro de Vehículos anteriormente mencionada, asegura a la siguiente propiedad:
A14: Conductor: | C14: =+DAT!$AG$2 -> DOMINGUEZ RUALES ANA CAROLINA | G14: Valor Asegurado US $: | I14: =+FORM!$F$100 -> 34483.5
A15: Licencia: | C15: =+DAT!$H$2 -> 1234567890 | G15: Prima US $: | I15: =IF(Cotizador!$F$41="PESADO HASTA 7.5 TN",Cotizador!$X$83,VLOOKUP(Cotizador!$F$31,Cotizador!$T$84:$AC$86,5,TRUE)) -> 86.21
A16: Marca: | C16: =+FORM!$F$77 -> MAZDA | G16: Súper de Bancos: | I16: =IF(Cotizador!$F$41="PESADO HASTA 7.5 TN",Cotizador!$Y$83,VLOOKUP(Cotizador!$F$31,Cotizador!$T$84:$AC$86,6,TRUE)) -> 3.02
A17: Modelo: | C17: =+FORM!$F$79 -> CX3 | G17: S.S. Campesino | I17: =IF(Cotizador!$F$41="PESADO HASTA 7.5 TN",Cotizador!$Z$83,VLOOKUP(Cotizador!$F$31,Cotizador!$T$84:$AC$86,7,TRUE)) -> 0.43105
A18: Tipo: | C18: =+FORM!$F$84 -> SEDAN | G18: I.V.A.: | I18: =IF(Cotizador!$F$41="PESADO HASTA 7.5 TN",Cotizador!$AA$83,VLOOKUP(Cotizador!$F$31,Cotizador!$T$84:$AC$86,8,TRUE)) -> 10.759326
A19: Año: | C19: =+FORM!$F$86 -> 2019 | G19: D / Emisión US $: | I19: =IF(Cotizador!$F$41="PESADO HASTA 7.5 TN",Cotizador!$AB$83,VLOOKUP(Cotizador!$F$31,Cotizador!$T$84:$AC$86,9,TRUE)) -> 0.04
A20: Color: | C20: =+FORM!$F$88 -> ROJO | G20: Prima Total: | I20: =IF(Cotizador!$F$41="PESADO HASTA 7.5 TN",Cotizador!$AC$83,VLOOKUP(Cotizador!$F$31,Cotizador!$T$84:$AC$86,10,TRUE)) -> 100.460376
A21: Placa: | C21: S / P | G21: Fecha Inicio: | I21: =+FORM!$F$8 -> 2018-05-21
A22: Número Motor: | C22: =+FORM!$F$90 -> BU456792826RE7 | G22: Fecha de Aniversario: | I22: =+SOLIC!$C$44 -> 2022-05-20
A23: Número Chasis: | C23: =+FORM!$F$92 -> CG5342892U | G23: Vigencia del Certificado: | I23: MENSUAL
A25: AMPAROS BÁSICOS | I25: LIMITES
A26: 1. Responsabilidad Civil Extracontractual | I26: =IF(FORM!$F$100>=25000,30000,IF(FORM!$F$100<25000," ")) -> 30000
A27: 1.1. Lesiones Corporales | I27: =IF(FORM!$F$100>=25000," ",IF(FORM!$F$100<25000,15000)) -> 
A28: 1.2. Daños a la Propiedad Ajena | I28: =IF(FORM!$F$100>=25000," ",IF(FORM!$F$100<25000,15000)) -> 
A29: 2. Perdida Total del Vehículo por Daños | I29: =+I14 -> 34483.5
A30: 3. Pérdida Parcial del Vehículo por Daños | I30: =+I14 -> 34483.5
A31: 4. Pérdida Total del vehículo por Robo | I31: =+I14 -> 34483.5
A32: 5. Pérdida Parcial del vehículo por Robo | I32: =+I14 -> 34483.5
A33: 6. Lesiones a Ocupantes del vehículo
A34: 6.1. Gastos Médicos por ocupante | I34: =IF(FORM!$F$100>=25000,3000,IF(FORM!$F$100<25000,2000)) -> 3000
A35: 6.2. Accidentes Personales por ocupante | I35: =IF(FORM!$F$100>=25000,5000,IF(FORM!$F$100<25000,4000)) -> 5000
A36: 7. Gastos de Grúa, Transporte y Protección del vehículos | I36: 200
A38: AMPAROS ADICIONALES | I38: LIMITES
A39: Perdida o robo de la llave del vehiculo máximo 1 evento al año | I39: 150
A40: Perdida o robo de documentos (Soat, Licencia, Matricula, Cédula de identidad) 1 evento al año | I40: 100
A41: Gastos de Transporte para el Asegurado / US$ 10,oo diarios | I41: 600
A42: Amparo jurídico en proceso penal | I42: 1000
A43: Cobertura para Conductores menores de 25 años | I43: =+I14 -> 34483.5
A44: Deducible:
A45: 10% del valor del siniestro, mínimo 1% del valor asegurado, no inferior a US$ | G45: =IF(I14>=25000,350,200) -> 350 | H45: por evento
A46: EL PRESENTE CERTIFICADO TIENE VIGENCIA MENSUAL Y PERMANECERÁ VIGENTE MIENTRAS EL CREDITO DEL CLIENTE CON DINERS CLUB ESTE CON VIGENCIA
A55: EL ASEGURADO | G55: LA COMPAÑÍA
A56: FECHA DE EMISIÓN: | C56: =+SOLIC!A44 -> 2018-05-21
A57: Quito: Av. Brasil 293 y Antonio Granda Centeno 5to piso Telef. (593-2) 395-5000 / 1800-AIG-AIG / fax: 2924-424 Guayaquil: Av. Rodrigo Chávez Gonzalez. Parque empresarial Colón, Edf. Corporativo II, 2do piso of. 203 - Telf. (593-4) 390-4177 / 390-4179 / 390-4180 Cuenca: Av. Ordoñez Lazo 5-42 y Laureles (Frente a Produbanco) - PBX: (593-7) 407-5814 / 407-5818
A66: En caso que necesite información adicional puede comunicarse con nuestras oficinas, nos será muy grato el poderle atender o directamente a: Banco Diners Club del Ecuador S.A.
A70: CONDICIONES GENERALES
A128: El presente certificado es un resumen de las Condiciones Generales de la Póliza, en caso de existir una diferencia entre el presente certificado y las Condiciones Generales, regirán las existentes en la Póliza

Sheet COB
A6: =FORM!F25 -> PORTOVIEJO | C6: =+CERT!C56 -> 2018-05-21
A8: Señor (a).- | B8: =FORM!Q37 -> ANA CAROLINA DOMINGUEZ RUALES
A10: Presente.
A13: GRACIAS POR DEPOSITAR SU CONFIANZA EN NOSOTROS!
A16: Estimado Cliente
A19: Porque sabemos lo importante que es para usted su seguridad, AIG Metropolitana se complace en entregarle su certificado provisional de seguro, el mismo que le servirá como respaldo en una eventualidad. Desde este momento usted se encuentra respaldado con la protección que AIG Metropolitana ha diseñado exclusivamente para usted, las 24 horas del día, los 365 días del año dentro del Pacto Andino, la cobertura que usted tiene ampara a su vehículo tanto por robo total, robo parcial, choque o pérdida total por choque además de lesiones a los ocupantes de su vehículo. En caso de accidente o daño de su vehículo por favor comuníquese a nuestra central de reclamos 2-990-711, estaremos gustosos de poder servirle y solventar cualquier inquietud. Si el valor del vehículo es igual o mayor a US$ 20.000, se deberá mantener instalado y en funcionamiento el dispositivo de seguridad requerido, para contar con la cobertura de PERDIDA TOTAL POR ROBO.
A20: Las coberturas de su seguro tiene validez durante el período de vigencia del crédito contratado y será extendido automáticamente de manera indefinida hasta que usted manifieste su voluntad de no seguir con el mismo o no esté al día en sus pagos.
A21: Confiamos que la tranquilidad y el respaldo que este seguro brindará a su familia y a su patrimonio, será de su completo agrado.
A23: Una vez más agradecemos su preferencia y lo invitamos a seguir disfrutando de sus beneficios como cliente de AIG Metropolitana; oportunamente le haremos llegar el certificado de seguro definitivo.
A25: ATENTAMENTE
A30: FRANKLIN VALDIVIESO
A31: GERENTE DE VEHICULOS
A34: Quito: Av. Brasil 293 y Antonio Granda Centeno 5to piso Telef. (593-2) 395-5000 / 1800-AIG-AIG / fax: 2924-424 Guayaquil: Av. Rodrigo Chávez Gonzalez. Parque empresarial Colón, Edf. Corporativo II, 2do piso of. 203 - Telf. (593-4) 390-4177 / 390-4179 / 390-4180 Cuenca: Av. Ordoñez Lazo 5-42 y Laureles (Frente a Produbanco) - PBX: (593-7) 407-5814 / 407-5818

Sheet SOLIC
K5: POLIZA MAESTRA: | M5: =+CERT!G4 -> 73896 / 71140 / 50393
A9: SOLICITUD DE SEGURO DE VEHÍCULOS FINANCIADOS
A11: ASEGURADO: | B11: =FORM!Q37 -> ANA CAROLINA DOMINGUEZ RUALES | K11: C.I / R.U.C.: | M11: =FORM!$F$39 -> 1234567890
A13: DIRECCIÓN: | B13: =FORM!$F$45 -> AV PEDRO DE ALVARADO N56-72 Y CARLOS V | K13: TELÉFONO: | M13: =+FORM!$F$37 -> 3188179
A15: CIUDAD: | B15: =FORM!$F$47 -> PORTOVIEJO | K15: TELFONO ADICIONAL: | M15: =+FORM!$L$37 -> 0985352479
A17: TIPO LICENCIA: | K17: FAX:
A19: No. LICENCIA: | B19: =+FORM!$F$39 -> 1234567890 | K19: CADUCA. LIC.:
A21: DATOS DEL USUARIO (INCLUIR SOLICITANTE Y CUALQUIER DEPENDIENTE MAYOR DE 18 AÑOS DE EDAD)
A23: NOMBRE | B23: FECHA NACMTO | E23: SEXO (M/F) | I23: ESTADO CIVIL | J23: PARENTESCO | L23: AÑOS VIGENCIA LICENCIA | N23: % DE USO
A25: =IF(FORM!C122=0," ",FORM!C122) -> ANA DOMINGUEZ | B25: =IF(FORM!F122=0," ",FORM!F122) -> 1974-06-25 | E25: =IF(FORM!I122=0," ",FORM!I122) -> FEMENINO | I25: =IF(FORM!L122=0," ",FORM!L122) -> CASADO | N25: =IF(FORM!O122=0," ",FORM!O122) -> 20
A26: =IF(FORM!C123=0," ",FORM!C123) -> PEDRO CALVACHE | B26: =IF(FORM!F123=0," ",FORM!F123) -> 2004-03-31 | E26: =IF(FORM!I123=0," ",FORM!I123) -> MASCULINO | I26: =IF(FORM!L123=0," ",FORM!L123) -> SOLTERO | N26: =IF(FORM!O123=0," ",FORM!O123) -> 30
A27: =IF(FORM!C124=0," ",FORM!C124) -> DAVID CALVACHE | B27: =IF(FORM!F124=0," ",FORM!F124) -> 1972-08-30 | E27: =IF(FORM!I124=0," ",FORM!I124) -> MASCULINO | I27: =IF(FORM!L124=0," ",FORM!L124) -> CASADO | N27: =IF(FORM!O124=0," ",FORM!O124) -> 50
A28: =IF(FORM!C125=0," ",FORM!C125) ->  | B28: =IF(FORM!F125=0," ",FORM!F125) ->  | E28: =IF(FORM!I125=0," ",FORM!I125) ->  | I28: =IF(FORM!L125=0," ",FORM!L125) ->  | N28: =IF(FORM!O125=0," ",FORM!O125) -> 
A29: =IF(FORM!C126=0," ",FORM!C126) ->  | B29: =IF(FORM!F126=0," ",FORM!F126) ->  | E29: =IF(FORM!I126=0," ",FORM!I126) ->  | I29: =IF(FORM!L126=0," ",FORM!L126) ->  | N29: =IF(FORM!O126=0," ",FORM!O126) -> 
A31: LUGAR DE TRAB. DEL USUARIO PRINCIPAL | G31: USO PRINCIPAL DEL VEHIC. | K31: KILOMETRAJE VEHÍCULO
A33: LUGAR TRABAJO: | B33: =FORM!$F$51 -> INTERDIN | G33: OF / TRAB: | K33: KM. IDA Y VUELTA:
A35: CARGO: | B35: =+FORM!$F$57 -> INGENIRA | G35: PLACER: | K35: KM. ANUAL:
A37: TIEMPO FCTO (AÑOS): | B37: =+FORM!$F$104 -> 4 | G37: OTRO: | K37: KM. ANUAL:
A40: VIGENCIA | G40: DESCRIPCIÓN DEL VEHÍCULO
A42: DESDE | C42: HASTA | G42: MARCA: | I42: =+CONCATENATE(FORM!$F$77,"-",FORM!$F$79,"-",FORM!$F$84) -> MAZDA-CX3-SEDAN | M42: VALOR: | N42: =FORM!$F$100 -> 34483.5
A44: =+FORM!F8 -> 2018-05-21 | C44: =IF(FORM!F104=1,'TAB AMORT'!B32)+IF(FORM!F104=2,'TAB AMORT'!B44)+IF(FORM!F104=3,'TAB AMORT'!B56)+IF(FORM!F104=4,'TAB AMORT'!B68)+IF(FORM!F104=5,'TAB AMORT'!B80) -> 2022-05-20 | G44: AÑO FAB.: | I44: =FORM!$F$86 -> 2019 | M44: TASA: | N44: =IF(Cotizador!$F$41="PESADO HASTA 7.5 TN",Cotizador!$V$83,VLOOKUP(Cotizador!$F$31,Cotizador!$T$84:$AC$86,3,TRUE))% -> 0.03
A46: USO / DESTINO: | G46: # MOTOR: | I46: =FORM!$F$90 -> BU456792826RE7 | M46: COLOR: | N46: =FORM!$F$88 -> ROJO
A48: SEGURIDADES: | G48: # CHASIS: | I48: =FORM!$F$92 -> CG5342892U | M48: Prima Mensual | N48: =+CERT!I20 -> 100.460376
A50: BENEFICIARIO ACREEDOR A FAVOR DE: | G50: BANCO DINERS CLUB DEL ECUADOR S.A. | K50: CONCESIONARIO: | M50: =FORM!$F$13 -> AUTOMOTORES CONTINENTAL
K52: VENDEDOR | M52: =Cotizador!F13 -> PEDRO SALINAS
K54: CI. VENDEDOR | M54: =FORM!F29 -> 1524885547
G56: NUMERO DE TARJETA: | K56: =DAT!AR2 -> 36502325370040
G57: FECHA DE EXPIRACIÓN | K57: =+FORM!F148 -> 2022-05-01
A60: Declaro Conocer y Aceptar que El Seguro del Vehículo Permanece Vigente durante el Tiempo de Crédito y que el vehículo aquí detallado y asegurado sea endosado a favor de Banco Diners Club S.A. mientras esté vigente el crédito.
A61: Todo vehículo tipo camioneta y todo vehículo cuyo valor sea igual o superior a US $20.000,00, deberá mantener instalado y en funcionamiento el dispositivo de seguridad, para contar con la cobertura de robo total.
A62: Adicionalmente La Compañía de Seguros acepta los vehículos que vengan instalados de fábrica,los dispositivos Chevystar Silver,Gold o Platinum y Maresa Satelital.
A63: Autorizo a AIG Metropolitana Renovar Automaticamente el Seguro de mi Vehículo cuando Finalice el Crédito.
A65: Debo y pagaré incondicionalmente y sin protesto al Emisor el total de esta Orden de Cargo más los intereses impuestos legales así como los intereses y cargos por servicio, en el lugar y fecha que se convenga .
A66: En caso de mora pagaré la tasa máxima autorizada por el Emisor. Desde ya renuncio a cualquier reclamación y a iniciar cualquier acción legal en contral del emisor, el mismo que no requerirá de otro instrumento o documento para procesar en mi tarjeta de crédito, los valores generados, los mismos que desde ya los acepto y reconozco como obligación.
A67: De igual manera autorizo que en caso de pérdida, hurto, robo o cualquier circunstancia por el que fuera cambiado el número de la tarjeta de crédito antes singularizada, se cuenta con el nuevo número que se me asigne para efectuar todos los pagos de manera incondicional dentro del período correspondiente, de tal manera que el cambio del número indicado no sea causa para no cancelar los valores que adeude.
G71: FIRMA
A73: FECHA | F73: CIUDAD
A75: =+FORM!F8 -> 2018-05-21 | F75: =+FORM!F25 -> PORTOVIEJO
A81: ESTA SOLICITUD ES PARTE INTEGRANTE DE LA PÓLIZA
A82: Quito: Av. Brasil 293 y Antonio Granda Centeno 5to piso Telef. (593-2) 395-5000 / 1800-AIG-AIG / fax: 2924-424 Guayaquil: Av. Rodrigo Chávez Gonzalez. Parque empresarial Colón, Edf. Corporativo II, 2do piso of. 203 - Telf. (593-4) 390-4177 / 390-4179 / 390-4180 Cuenca: Av. Ordoñez Lazo 5-42 y Laureles (Frente a Produbanco) - PBX: (593-7) 407-5814 / 407-5818

Sheet DECLARACION
A2: DECLARACION
A4: =+FORM!F25 -> PORTOVIEJO | J4: , | K4: =+FORM!F8 -> 2018-05-21
A8: Señores:
A9: BANCO DINERS CLUB DEL ECUADOR S.A.
A10: Presente
A13: De mis consideraciones:
A15: Yo, | C15: =FORM!Q37 -> ANA CAROLINA DOMINGUEZ RUALES | Z15: , portador de la cédula de
A16: ciudadanía No. | F16: =+FORM!F39 -> 1234567890 | T16: , declaro que el vehículo:
A18: Marca: | F18: =+FORM!F77 -> MAZDA
A19: Modelo: | F19: =+FORM!F79 -> CX3
A20: Año: | F20: =+FORM!F86 -> 2019
A21: Que he adquirido a la compañía: | L21: =+FORM!F13 -> AUTOMOTORES CONTINENTAL | Z21: mediante contrato de venta
A22: con Reserva de Dominio suscrito con fecha: | P22: =+K4 -> 2018-05-21 | Y22: =CONCATENATE(","," ",+FORM!F59) -> , Si | AA22: es el único de uso
A23: personal o familiar.
A25: Declaro asimismo que la información aquí consignada es veraz y exacta, sobre lo cual asumo toda la respon-
A26: sabilidad que fuere del caso.
A28: Atentamente,
A34: =+C15 -> ANA CAROLINA DOMINGUEZ RUALES
A35: No. CEDULA
A36: =+FORM!F39 -> 1234567890

Sheet AUT CAR
A2: AUTORIZACIÓN DE CARGO
A4: =+FORM!F25 -> PORTOVIEJO | J4: , | K4: =+FORM!F8 -> 2018-05-21
A8: Señores:
A9: BANCO DINERS CLUB DEL ECUADOR S.A.
A10: Presente
A13: De mis consideraciones:
A15: Yo, | C15: =FORM!Q37 -> ANA CAROLINA DOMINGUEZ RUALES | Z15: , en calidad de titular principal
A16: de la tarjeta de crédito Diners Club No. | N16: =CONCATENATE(FORM!F146,FORM!L146) -> 36502325370040 | T16: , autorizo libre y voluntariamente a BANCO DINERS
A17: CLUB DEL ECUADOR S.A., se cargue a mi señalada tarjeta el valor de US$ | Y17: =+FORM!$F$132 -> 419.8175 | AC17: que corresponde
A18: al costo de inscripción del contrato de venta con Reserva de Dominio que he suscrito, y al trámite de levantamiento del respectivo gravamen, una vez que la obligación contraída en virtud del mismo haya sido cancelada en su totalidad, valor que me comprometo a cancelar de manera incondicional en la siguiente forma:
J20: X | K20: =+FORM!F134 -> 3 MESES SIN INTERESES
A22: Expresamente me obligo a no revocar la presente autorización, y a la vez libero de toda responsabilidad a BANCO DINERS CLUB DEL ECUADOR S.A. por los cargos efectuados en base a la presente autorización. De igual manera autorizo que en caso de pérdida, hurto, robo o cualquier otra circunstancia, que merezca ser cambiado mi actual número de tarjeta, se cuente con el nuevo que se me asigne para cancelar todos mis consumos de manera incondicional, de tal forma que mis obligaciones no queden en mora por los conceptos antes mencionados y hasta su total cancelación.
A27: Atentamente,
A33: =+C15 -> ANA CAROLINA DOMINGUEZ RUALES
A34: No. CEDULA
A35: =+FORM!F39 -> 1234567890

Sheet Adhesión
A1: CONTRATO DE ADHESIÓN A ENCARGO FIDUCIARIO
A4: CLÁUSULA PRIMERA: COMPARECIENTES.- Comparecen a la celebración del presente contrato: a)
A5: =VLOOKUP(H95,FORM!K167:M175,2,FALSE) -> ERNEST FERDINAND VALLEJO COBOS | Q5: , en calidad de Apoderado Especial de la compañía FIDEVAL S.A.
A6: ADMINISTRADORA DE FONDOS Y FIDEICOMISOS, parte a la que en adelante se la denominará “FIDEVAL”
A7: o la “FIDUCIARIA”; y, | L7: b) el(la-los) señor(ita-a-es) | V7: =+'CO RE DOM 48'!A11 -> ANA CAROLINA DOMINGUEZ RUALES
A8: y | B8: =+'CO RE DOM 48'!T11 -> DAVID EDUARDO CLVACHE ONTANEDA | T8: , por sus propios y personales derechos, parte a la que se
A9: la denominará el “DEUDOR” y/o “CONSTITUYENTE ADHERENTE”.
A10: CLÁUSULA SEGUNDA: ANTECEDENTES.- a) Con fecha 29 de junio de 2018 se suscribió un contrato de Encargo Fiduciario denominado “ENCARGO FIDUCIARIO DINERS-FDV”, en virtud del cual el Banco Diners Club del Ecuador S.A. encargó a la FIDUCIARIA la administración e instrumentación operativa CONTRATOS DE GARANTIA para créditos por financiamiento vehicular. b) El referido contrato de ENCARGO FIDUCIARIO prevé la posibilidad de que terceras personas se adhieran al mismo en calidad de CONSTITUYENTES ADHERENTES, con el objeto de sumarse al objeto e instrucciones establecidas en dicho contrato, aceptando y ratificando todas y cada una de las
A16: cláusulas contenidas en el mismo. c) Con fecha: | P16: =+'CO RE DOM 48'!S4 -> 2018-05-21 | Q16: de | R16: =+'CO RE DOM 48'!Z4 -> 2018-05-21 | W16: del año | AB16: =+'CO RE DOM 48'!AJ4 -> 2018-05-21 | AD16: , el DEUDOR adquirió
A17: un vehículo mediante la suscripción de un CONTRATO DE GARANTIA (Venta con Reserva de Dominio/Prenda Industrial), a fin de garantizar las OBLIGACIONES contraídas para este fin con el Banco Diners Club del Ecuador S.A. en su calidad de ACREEDOR. Las características del vehículo se hallan detalladas en la respectiva cláusula del CONTRATO DE GARANTÍA. CLÁUSULA TERCERA: ADHESION Y MANDATO IRREVOCABLE.- Con los antecedentes expuestos, el DEUDOR se adhiere al ENCARGO FIDUCIARIO en calidad de CONSTITUYENTE ADHERENTE, a efectos de sumarse y aceptar el objeto e instrucciones contenidas en el referido contrato de ENCARGO, específicamente otorga mandato expreso e irrevocable a la FIDUCIARIA para que a su nombre y representación proceda a: UNO.- En caso de ser necesario, suscribir a su nombre y representación el respectivo CONTRATO DE GARANTIA (Venta con Reserva de Dominio/Prenda Industrial), así como las cesiones de derechos o contratos accesorios que de este contrato, de ser el caso, se requieran. Asimismo, la FIDUCIARIA queda facultada a comparecer a nombre y en representación del CONSTITUYENTE ADHERENTE al respectivo reconocimiento de firmas del CONTRATO DE GARANTIA ante un Notario Público o Juez, según corresponda. DOS.- Inscribir, por su cuenta y por cuenta del ACREEDOR, el CONTRATO DE GARANTIA, y las cesiones que del mismo se hagan, en el Registro Mercantil del cantón correspondiente, para lo cual realizará la coordinación integral y los trámites legales que sean del caso para el perfeccionamiento e inscripción del CONTRATO DE GARANTIA, hasta su entrega al DEUDOR y/o al ACREEDOR. TRES.- Aceptar a nombre y en representación del CONSTITUYENTE ADHERENTE la notificación de las cesiones de derechos que llegaren a hacerse del CONTRATO DE GARANTÍA. CUATRO.- Una vez cancelada la totalidad de las OBLIGACIONES contraídas con el ACREEDOR, y previa instrucción expresa de éste, realizar y suscribir todos los documentos que se requieran para dar por terminado el CONTRATO DE GARANTÍA y cancelar o levantar el respectivo gravamen o limitación al dominio impuesto al VEHICULO, así como llevar a cabo la inscripción y registro de los mismos. CINCO.- De manera general, el DEUDOR se suma a las instrucciones establecidas en la presente cláusula, está de acuerdo y acepta que la FIDUCIARIA lleve un control, manejo y administración del CONTRATO DE GARANTIA, en los términos expuestos. CLÁUSULA CUARTA: VIGENCIA DEL ENCARGO.- El presente encargo otorgado por el DEUDOR se mantendrá mientras se encuentre vigente el CONTRATO DE GARANTIA. Una vez canceladas las OBLIGACIONES contraídas con el ACREEDOR, el presente mandato se entenderá terminado por haberse cumplido su objeto. En este caso la FIDUCIARIA terminará el mandato respecto al CONSTITUYENTE ADHERENTE, y rendirá cuentas finales de su gestión. CLÁUSULA QUINTA: HONORARIOS DE LA FIDUCIARIA.- Por el cumplimiento del presente encargo, la FIDUCIARIA tendrá derecho a percibir los honorarios que se hallan detallados en la cláusula décimo quinta del contrato de ENCARGO FIDUCIARIO, y que serán cancelados por el CONSTITUYENTE ADHERENTE. CLÁUSULA SEXTA: DECLARACIONES.- Las partes de manera expresa efectúan las siguientes declaraciones: UNO.- EL CONSTITUYENTE ADHERENTE declara bajo juramento que en virtud de la constitución del presente encargo fiduciario no intenta perjudicar o causar daños a terceros. DOS.- el CONSTITUYENTE ADHERENTE declara bajo juramento que los recursos que entregue para el desarrollo del presente contrato no provienen de actividades relacionadas o vinculadas al tráfico de sustancias psicotrópicas o estupefacientes, ni están relacionados con delitos de lavado de activos y financiamiento del terrorismo, obligándose a mantener indemne a la FIDUCIARIA y al ENCARGO FIDUCIARIO contra cualquier reclamo o acción que a este respecto se iniciare en contra suya. TRES.- EL CONSTITUYENTE ADHERENTE declara expresamente conocer que la naturaleza del ENCARGO FIDUCIARIO es de medio y no de resultado, y que podrían existir eventos y/o circunstancias ajenas que impidan o compliquen su cumplimiento, todo lo cual ha sido debidamente comunicado y expuesto a las partes, por lo que éstas no podrán alegar desconocimiento o reclamos en tal sentido. El presente ENCARGO FIDUCIARIO no constituye garantía o mecanismo de pago de las OBLIGACIONES contraídas por el CONSTITUYENTE ADHERENTE con el ACREEDOR, ni establece procesos judiciales o extrajudiciales para el cobro o ejecución de garantías, todo lo cual es expresamente conocido y aceptado por el CONSTITUYENTE ADHERENTE. CUATRO.- La suscripción del presente contrato no implica responsabilidad alguna ni garantía sobre el objetivo y finalidad del contrato por parte de la Superintendencia de Compañías y de los miembros del Consejo Nacional de Valores.- CINCO.- EL CONSTITUYENTE ADHERENTE declara conocer el contenido del contrato de ENCARGO FIDUCIARIO, sus estipulaciones y los derechos y obligaciones establecidos el mismo, a los cuales se somete expresamente. SEIS.- EL CONSTITUYENTE ADHERENTE instruye a la FIDUCIARIA mantener las rendiciones de cuentas que le correspondan en las oficinas de la FIDUCIARIA para que pueda retirarlos en cualquier momento. SIETE.- La FIDUCIARIA asume la calidad de mandataria irrevocable del CONSTITUYENTE ADHERENTE con la finalidad de dar cumplimiento a las instrucciones irrevocables impartidas por éste, por lo cual el CONSTITUYENTE ADHERENTE no podrá oponerse ni impedir que la FIDUCIARIA dé cumplimiento al presente contrato. CLÁUSULA SÉPTIMA: TÉRMINOS Y DEFINICIONES.- Los términos en mayúscula y frases utilizadas en el presente contrato se entienden e interpretan de conformidad con las definiciones señaladas en el glosario de términos del contrato de ENCARGO FIDUCIARIO. CLÁUSULA OCTAVA: DOMICILIO.- Para los propósitos y efectos del presente contrato las partes señalan como domicilio la ciudad de Quito, en las siguientes direcciones: UNO: FIDUCIARIA.- Avenida Coruña y Manuel Iturrey, Edificio Torre Santa Fe, Piso 3, Quito. DOS: CONSTITUYENTE ADHERENTE.-
A79: =+'CO RE DOM 48'!K59 -> AV PEDRO DE ALVARADO N56-72 Y CARLOS V
A80: CLÁUSULA NOVENA: CONTROVERSIAS.- Toda controversia o diferencia derivada de este contrato será resuelta con la asistencia de un mediador del Centro de Arbitraje y Mediación de la Cámara de Comercio de Quito. Si el procedimiento de mediación no diere resultado favorable para cualquiera de las partes en el plazo de diez días calendario a contarse desde su inicio, pudiendo prorrogarse por mutuo acuerdo este plazo, entonces las partes renuncian fuero y domicilio, y acuerdan someter sus controversias a la resolución de un Tribunal de Arbitraje que se sujetará a lo dispuesto en la Ley de Arbitraje y Mediación, el Reglamento del Centro de Arbitraje y Mediación de la Cámara de Comercio de Quito y las siguientes normas: a) Los árbitros serán seleccionados conforme a lo establecido en la Ley de Arbitraje y Mediación; b) Las partes renuncian a la jurisdicción ordinaria, se obligan a acatar el laudo que expida el Tribunal Arbitral y se comprometen a no interponer ningún tipo de recurso en contra del laudo arbitral; c) Para la ejecución de medidas cautelares el Tribunal Arbitral está facultado para solicitar el auxilio de los funcionarios públicos judiciales, policiales y administrativos sin que sea necesario recurrir a juez ordinario alguno; d) El Tribunal Arbitral estará integrado por tres árbitros; e) El procedimiento arbitral será confidencial; f) Los árbitros deberán decidir en derecho y el arbitraje será administrado; y, g) El lugar del arbitraje será en las instalaciones del Centro de Arbitraje y Mediación de la Cámara de Comercio de Quito. La reconvención, de haberla, se someterá igualmente al arbitraje.
A94: Para constancia de lo convenido, las partes firman el presente instrumento en tres ejemplares del mismo tenor y valor
A95: legal, en la ciudad de | H95: =+'CO RE DOM 48'!G4 -> PORTOVIEJO | O95: , a los | Q95: =+'CO RE DOM 48'!S4 -> 2018-05-21 | S95: días del mes de | Y95: =+'CO RE DOM 48'!Z4 -> 2018-05-21 | AD95: del año | AG95: =+'CO RE DOM 48'!AJ4 -> 2018-05-21 | AJ95: .
A101: f.)
A103: NOMBRE: | J103: =VLOOKUP(H95,FORM!K167:M175,2,FALSE) -> ERNEST FERDINAND VALLEJO COBOS
A104: CARGO: | J104: APODERADO ESPECIAL
A105: C.C. | J105: =VLOOKUP(H95,FORM!K167:M175,3,FALSE) -> 0926201138
A106: FIDEVAL S.A. ADMINISTRADORA DE FONDOS Y FIDEICOMISOS
A111: f.)
A113: NOMBRE: | J113: =CONCATENATE(FORM!Q35," ",FORM!Q33) -> ANA CAROLINA DOMINGUEZ RUALES
A114: DIREC.: | J114: =+FORM!F45 -> AV PEDRO DE ALVARADO N56-72 Y CARLOS V
A115: C.C. | J115: =+FORM!F39 -> 1234567890
A116: CONSTITUYENTE ADHERENTE
A121: f.)
A123: NOMBRE CÓNYUGE: | J123: =+'CO RE DOM 48'!J123:AJ123 -> DAVID EDUARDO CLVACHE ONTANEDA
A124: DIREC.: | J124: =IF(FORM!F63=0,"",J114) -> AV PEDRO DE ALVARADO N56-72 Y CARLOS V
A125: C.C. | J125: =IF(FORM!F63=0,"",FORM!F67) -> 1239876589
A126: CONSTITUYENTE ADHERENTE

Sheet CE DER
A1: CESIÓN DE DERECHOS
A3: En virtud de este documento cedemos y traspasamos por valor recibido y sin nuestra responsabilidad a favor de BANCO DINERS CLUB DEL ECUADOR S.A. todos los derechos y acciones sin reserva de ninguna clase que nos corresponde y emanan del Contrato de Compra Venta con reserva de Dominio suscrito.
A4: en la ciudad de | G4: =+'CO RE DOM 48'!G4 -> PORTOVIEJO | O4: con fecha | S4: =+FORM!F8 -> 2018-05-21
A6: Lugar y Fecha: | G6: =+G4 -> PORTOVIEJO | O6: , | P6: =+S4 -> 2018-05-21
A13: CEDENTE | X13: CESIONARIO
B14: =+A23 -> AUTOMOTORES CONTINENTAL | X14: BANCO DINERS CLUB DEL ECUADOR S.A.
B15: Nombre: | F15: =FORM!F15 -> GERARDO DORFFLINGER | X15: Nombre:
B16: Cargo: | F16: =FORM!F19 -> GERENTE GENERAL | X16: Cargo:
B17: Ruc: | F17: =FORM!F21 -> 1713882247001 | X17: Ruc: | Z17: 179028338000-1
A20: NOTIFICACIÓN Y ACEPTACIÓN
A22: Hemos sido debidamente notificados y aceptamos plenamente la cesión de derechos del Contrato de Compraventa con reserva de Dominio que antecede de conformidad con el artículo 11 y 1842 del Código Civil realizado por :
A23: =FORM!F13 -> AUTOMOTORES CONTINENTAL | V23: a favor de BANCO DINERS CLUB DEL
A24: ECUADOR S.A
A25: Declaramos adicionalmente que DINERS no será responsable del saneamiento por evicción ni por los vicios redhibitorios del bien adquirido en virtud del Contrato de Compraventa con Reserva de Dominio mencionado.
A32: Nombre: | D32: =FORM!Q37 -> ANA CAROLINA DOMINGUEZ RUALES | V32: Nombre: | Y32: =IF(FORM!F63=0,"",CONCATENATE(FORM!Q65," ",FORM!Q63)) -> DAVID EDUARDO CLVACHE ONTANEDA
A33: COMPRADOR(A) Y/O DEUDOR(A) | V33: COMPRADOR(A) Y/O DEUDOR(A)
A34: Cédula: | D34: =FORM!F39 -> 1234567890 | V34: Cédula: | Y34: =IF(FORM!F63=0,"",FORM!F67) -> 1239876589

Sheet TAB AMORT
A1: FINANCIAMIENTO DE VEHÍCULOS - Tabla de amortización | Y1: 364171 | Z1: 1
A2: Tabla simple de amortizaciones que cubre n períodos de pago de un préstamo. | Y2: 365166 | Z2: 1
A3: 1) Para usar la tabla, simplemente cambie cualquiera de los valores en el área "Datos iniciales". | Y3: 365167 | Z3: 1
A4: 2) Para imprimir la tabla, elija Imprimir en el menú Archivo. El área de impresión ya está definida. | Y4: 365169 | Z4: 1
A5: Datos iniciales | Y5: 365181 | Z5: 1
Y6: 365420 | Z6: 1
A7: Monto: | C7: =+FORM!F100-FORM!F102 -> 26483.5 | D7: Nombre del Cliente: | F7: =CONCATENATE(FORM!Q35," ",FORM!Q33) -> ANA CAROLINA DOMINGUEZ RUALES | Y7: 365422 | Z7: 1
A8: Tasa de interés anual: | C8: =+FORM!F106 -> 0.1606 | D8: Cédula de Identidad: | F8: =+FORM!F39 -> 1234567890 | Y8: 365425 | Z8: 1
A9: Plazo, en años: | C9: =+FORM!F104 -> 4 | D9: Fecha del crédito: | F9: =+FORM!F8 -> 2018-05-21 | Y9: 365427 | Z9: 1
A10: Pagos por año: | C10: 12 | D10: Vencimiento primer pago: | F10: =+F9+30 -> 2018-06-20 | Y10: 365428 | Z10: 1
O11: 1 | Y11: 365023 | Z11: 1
O12: 1.5 | Y12: 365025 | Z12: 1
O13: 2 | Y13: 365026 | Z13: 1
B14: CUOTA MENSUAL | C14: =PMT(ROUNDDOWN((Tasa_interés_anual/360*365),4)/12,Plazo_en_años*Pagos_por_año,-Monto_préstamo) -> 754.353057 | E14: NUMERO DE CUOTAS: | F14: =Pagos_por_año*Plazo_en_años -> 48 | I14: =+Pago_calculado*Pagos_por_año -> 9052.236685 | O14: 3 | Y14: 364173 | Z14: 1
Y15: 362620 | Z15: 1
B16: Usar el pago: | C16: =(IF(Pago_introducido=0,Pago_calculado,Pago_introducido)) -> 754.353057 | F16: ="Saldo inicial antes del pago: "&TEXT(Núm_primer_pago,"0")&":" -> Saldo inicial antes del pago: 1: | G16: =FV(Tasa_interés_anual/Pagos_por_año,Núm_primer_pago-1,Pago_a_usar,-Monto_préstamo) -> 26483.5 | I16: =SUM(Saldo_inicial_tabla+G44) -> 33469.01739 | K16: =+Pago_a_usar*Pagos_por_año*Plazo_en_años -> 36208.94674 | Y16: 362621 | Z16: 1
B17: Primer pago en la tabla: | C17: 1 | F17: ="Interés acumulado antes del pago: "&TEXT(Núm_primer_pago,"0")&":" -> Interés acumulado antes del pago: 1: | G17: =Pago_a_usar*(Núm_primer_pago-1)-(Monto_préstamo-Saldo_inicial_tabla) -> 0 | K17: =+K16-Saldo_inicial_tabla -> 9725.446738 | O17: 15 de c/mes | Y17: 362062 | Z17: 1
A18: Tabla | O18: 30 de c/mes | Y18: 364444 | Z18: 1
B19: Fecha de | C19: Saldo | F19: Saldo | G19: Interés | O19: =+B21-$F$9 -> 30 | P19: =+B21-F9 -> 30 | Y19: 361349 | Z19: 1
A20: Nº | B20: Pago* | C20: inicial | D20: Interés | E20: Capital | F20: final | G20: acumulado | O20: 30 | P20: 30 | Y20: 364700 | Z20: 1
A21: =IF(Núm_primer_pago<Total_de_pagos,Núm_primer_pago,"") -> 1 | B21: =Mostrar.fecha -> 2018-06-20 | C21: =IF(A21<>"",IF(Saldo_inicial_tabla<0,0,Saldo_inicial_tabla),"") -> 26483.5 | D21: =Interés -> 359.2928167 | E21: =Capital -> 395.0602404 | F21: =Saldo.final -> 26088.43976 | G21: =IF(A21<>"",D21+Interés_previo_tabla,"") -> 359.2928167 | I21: =+Pago_a_usar*25000 -> 18858826.43 | O21: =+O20-O19 -> 0 | P21: =+P20-P19 -> 0 | Y21: 364703 | Z21: 1
A22: =Núm.pago -> 2 | B22: 2018-07-20 | C22: =Saldo.inicial -> 26088.43976 | D22: =Interés -> 353.9331661 | E22: =Capital -> 400.419891 | F22: 25688.01987 | G22: =Interés.acumulado -> 713.2259827 | K22: ene | L22: 2001 | O22: =+Monto_préstamo -> 26483.5 | P22: =Monto_préstamo -> 26483.5 | Y22: 364717 | Z22: 1
A23: 3 | B23: 2018-08-20 | C23: 25688.01987 | D23: =Interés -> 348.5008029 | E23: 405.8522542 | F23: 25282.16761 | G23: 1061.726786 | K23: feb | O23: =+Tasa_interés_anual -> 0.1606 | P23: =Tasa_interés_anual -> 0.1606 | Y23: 364716 | Z23: 1
A24: 4 | B24: 2018-09-20 | C24: =Saldo.inicial -> 25282.16761 | D24: =Interés -> 342.9947406 | E24: 411.3583164 | F24: 24870.8093 | G24: 1404.721526 | K24: mar | O24: 360 | P24: 360 | Y24: 360138 | Z24: 1
A25: 5 | B25: 2018-10-20 | C25: 24870.8093 | D25: =Interés -> 337.4139795 | E25: 416.9390776 | F25: 24453.87022 | G25: 1742.135506 | K25: abr | Y25: 360218 | Z25: 1
A26: 6 | B26: 2018-11-20 | C26: 24453.87022 | D26: =Interés -> 331.757506 | E26: 422.5955511 | F26: 24031.27467 | G26: 2073.893012 | K26: abr | Y26: 360219 | Z26: 1
A27: 7 | B27: 2018-12-20 | C27: 24031.27467 | D27: =Interés -> 326.024293 | E27: 428.328764 | F27: 23602.94591 | G27: 2399.917305 | K27: may | Y27: 364170 | Z27: 16
A28: 8 | B28: 2019-01-20 | C28: 23602.94591 | D28: =Interés -> 320.2132994 | E28: 434.1397576 | F28: 23168.80615 | G28: 2720.130604 | K28: jun | Y28: 364234 | Z28: 16
A29: 9 | B29: 2019-02-20 | C29: 23168.80615 | D29: =Interés -> 314.3234701 | E29: 440.029587 | F29: 22728.77656 | G29: 3034.454074 | K29: jul | Y29: 365147 | Z29: 16
A30: 10 | B30: 2019-03-20 | C30: 22728.77656 | D30: =Interés -> 308.3537353 | E30: 445.9993217 | F30: 22282.77724 | G30: 3342.80781 | K30: jul | Y30: 365168 | Z30: 16
A31: 11 | B31: 2019-04-20 | C31: 22282.77724 | D31: =Interés -> 302.3030112 | E31: 452.0500458 | F31: 21830.72719 | G31: 3645.110821 | K31: ago | Y31: 365421 | Z31: 16
A32: 12 | B32: 2019-05-20 | C32: 21830.72719 | D32: =Interés -> 296.1701989 | E32: 458.1828581 | F32: 21372.54434 | G32: 3941.28102 | K32: sep | Y32: 365423 | Z32: 16
A33: 13 | B33: 2019-06-20 | C33: 21372.54434 | D33: =Interés -> 289.9541848 | E33: 464.3988722 | F33: 20908.14546 | G33: 4231.235205 | K33: oct | Y33: 365424 | Z33: 16
A34: 14 | B34: 2019-07-20 | C34: 20908.14546 | D34: =Interés -> 283.6538401 | E34: 470.6992169 | F34: 20437.44625 | G34: 4514.889045 | K34: nov | Y34: 365429 | Z34: 16
A35: 15 | B35: 2019-08-20 | C35: 20437.44625 | D35: =Interés -> 277.2680207 | E35: 477.0850363 | F35: 19960.36121 | G35: 4792.157065 | K35: dic | Y35: 365453 | Z35: 16
A36: 16 | B36: 2019-09-20 | C36: 19960.36121 | D36: =Interés -> 270.7955671 | E36: 483.55749 | F36: 19476.80372 | G36: 5062.952632 | K36: dic | Y36: 365454 | Z36: 16
A37: 17 | B37: 2019-10-20 | C37: 19476.80372 | D37: =Interés -> 264.2353038 | E37: 490.1177533 | F37: 18986.68597 | G37: 5327.187936 | K37: ene | L37: 2002 | Y37: 365001 | Z37: 16
A38: 18 | B38: 2019-11-20 | C38: 18986.68597 | D38: =Interés -> 257.5860396 | E38: 496.7670174 | F38: 18489.91895 | G38: 5584.773976 | K38: ene | Y38: 365256 | Z38: 16
A39: 19 | B39: 2019-12-20 | C39: 18489.91895 | D39: =Interés -> 250.8465671 | E39: 503.50649 | F39: 17986.41246 | G39: 5835.620543 | K39: feb | Y39: 364172 | Z39: 16
A40: 20 | B40: 2020-01-20 | C40: 17986.41246 | D40: =Interés -> 244.0156624 | E40: 510.3373947 | F40: 17476.07506 | G40: 6079.636205 | K40: mar | Y40: 364261 | Z40: 16
A41: 21 | B41: 2020-02-20 | C41: 17476.07506 | D41: =Interés -> 237.092085 | E41: 517.260972 | F41: 16958.81409 | G41: 6316.72829 | K41: abr | Y41: 363999 | Z41: 16
A42: 22 | B42: 2020-03-20 | C42: 16958.81409 | D42: =Interés -> 230.0745779 | E42: 524.2784792 | F42: 16434.53561 | G42: 6546.802868 | K42: abr | Y42: 362622 | Z42: 16
A43: 23 | B43: 2020-04-20 | C43: 16434.53561 | D43: =Interés -> 222.9618665 | E43: 531.3911906 | F43: 15903.14442 | G43: 6769.764735 | K43: may | Y43: 361329 | Z43: 16
A44: 24 | B44: 2020-05-20 | C44: 15903.14442 | D44: =Interés -> 215.7526593 | E44: 538.6003977 | F44: 15364.54402 | G44: 6985.517394 | K44: jun | Y44: 364701 | Z44: 16
A45: 25 | B45: 2020-06-20 | C45: 15364.54402 | D45: =Interés -> 208.4456473 | E45: 545.9074098 | F45: 14818.63662 | G45: 7193.963041 | K45: jul | Y45: 364702 | Z45: 16
A46: 26 | B46: 2020-07-20 | C46: 14818.63662 | D46: =Interés -> 201.0395034 | E46: 553.3135536 | F46: 14265.32306 | G46: 7395.002545 | K46: jul | Y46: 364719 | Z46: 16
A47: 27 | B47: 2020-08-20 | C47: 14265.32306 | D47: =Interés -> 193.5328829 | E47: 560.8201742 | F47: 13704.50289 | G47: 7588.535428 | K47: ago | Y47: 364190 | Z47: 16
A48: 28 | B48: 2020-09-20 | C48: 13704.50289 | D48: =Interés -> 185.9244225 | E48: 568.4286345 | F48: 13136.07425 | G48: 7774.45985 | K48: sep | Y48: 364522 | Z48: 16
A49: 29 | B49: 2020-10-20 | C49: 13136.07425 | D49: =Interés -> 178.2127407 | E49: 576.1403164 | F49: 12559.93394 | G49: 7952.672591 | K49: oct | Y49: 360041 | Z49: 16
A50: 30 | B50: 2020-11-20 | C50: 12559.93394 | D50: =Interés -> 170.3964371 | E50: 583.95662 | F50: 11975.97732 | G50: 8123.069028 | K50: nov | Y50: 361868 | Z50: 16
A51: 31 | B51: 2020-12-20 | C51: 11975.97732 | D51: =Interés -> 162.4740923 | E51: 591.8789648 | F51: 11384.09835 | G51: 8285.54312 | K51: dic
A52: 32 | B52: 2021-01-20 | C52: 11384.09835 | D52: =Interés -> 154.4442676 | E52: 599.9087894 | F52: 10784.18956 | G52: 8439.987388 | K52: dic
A53: 33 | B53: 2021-02-20 | C53: 10784.18956 | D53: =Interés -> 146.3055051 | E53: 608.047552 | F53: 10176.14201 | G53: 8586.292893 | K53: ene | L53: 2003
A54: 34 | B54: 2021-03-20 | C54: 10176.14201 | D54: =Interés -> 138.0563266 | E54: 616.2967304 | F54: 9559.84528 | G54: 8724.349219 | K54: ene
A55: 35 | B55: 2021-04-20 | C55: 9559.84528 | D55: =Interés -> 129.6952343 | E55: 624.6578228 | F55: 8935.187457 | G55: 8854.044454 | K55: feb
A56: 36 | B56: 2021-05-20 | C56: 8935.187457 | D56: =Interés -> 121.2207098 | E56: 633.1323472 | F56: 8302.05511 | G56: 8975.265164 | K56: mar
A57: 37 | B57: 2021-06-20 | C57: 8302.05511 | D57: =Interés -> 112.6312143 | E57: 641.7218427 | F57: 7660.333267 | G57: 9087.896378
A58: 38 | B58: 2021-07-20 | C58: 7660.333267 | D58: =Interés -> 103.925188 | E58: 650.4278691 | F58: 7009.905398 | G58: 9191.821566
A59: 39 | B59: 2021-08-20 | C59: 7009.905398 | D59: =Interés -> 95.1010499 | E59: 659.2520071 | F59: 6350.653391 | G59: 9286.922616
A60: 40 | B60: 2021-09-20 | C60: 6350.653391 | D60: =Interés -> 86.15719767 | E60: 668.1958594 | F60: 5682.457531 | G60: 9373.079813
A61: 41 | B61: 2021-10-20 | C61: 5682.457531 | D61: =Interés -> 77.09200718 | E61: 677.2610499 | F61: 5005.196482 | G61: 9450.171821
A62: 42 | B62: 2021-11-20 | C62: 5005.196482 | D62: =Interés -> 67.90383227 | E62: 686.4492248 | F62: 4318.747257 | G62: 9518.075653
A63: 43 | B63: 2021-12-20 | C63: 4318.747257 | D63: =Interés -> 58.59100445 | E63: 695.7620526 | F63: 3622.985204 | G63: 9576.666657
A64: 44 | B64: 2022-01-20 | C64: 3622.985204 | D64: =Interés -> 49.1518326 | E64: 705.2012244 | F64: 2917.78398 | G64: 9625.81849
A65: 45 | B65: 2022-02-20 | C65: 2917.78398 | D65: =Interés -> 39.58460266 | E65: 714.7684544 | F65: 2203.015525 | G65: 9665.403093
A66: 46 | B66: 2022-03-20 | C66: 2203.015525 | D66: =Interés -> 29.88757729 | E66: 724.4654798 | F66: 1478.550046 | G66: 9695.29067
A67: 47 | B67: 2022-04-20 | C67: 1478.550046 | D67: =Interés -> 20.05899562 | E67: 734.2940614 | F67: 744.2559842 | G67: 9715.349665
A68: 48 | B68: 2022-05-20 | C68: 744.2559842 | D68: =Interés -> 10.09707285 | E68: 744.2559842 | F68: 0 | G68: 9725.446738
D69: =Interés -> 
D70: =Interés -> 
D71: =Interés -> 
D72: =Interés -> 
D73: =Interés -> 
D74: =Interés -> 
D75: =Interés -> 
D76: =Interés -> 
D77: =Interés -> 
D78: =Interés -> 
D79: =Interés -> 
D80: =Interés -> 
B87: FIRMA CLIENTE | E87: FIRMA CÓNYUGE
A89: Nombre: | B89: =+F7 -> ANA CAROLINA DOMINGUEZ RUALES | E89: Nombre: | F89: =IF(FORM!F63=0,"",CONCATENATE(FORM!Q65," ",FORM!Q63," ")) -> DAVID EDUARDO CLVACHE ONTANEDA
A90: C.C.: | B90: =+FORM!F39 -> 1234567890 | E90: C.C.: | F90: =IF(FORM!F63=0,"",FORM!F67) -> 1239876589 | K90: sep
B92: * Fecha a ser facturada en su estado de cuenta de la Tarjeta Diners Club.

Sheet COM VEND
B1: FORMULARIO DE COMISIÓN PARA VENDEDORES
A2: Tipo de Compra | B2: VEHÍCULO NUEVO
A3: Fecha de Compra | B3: =+FORM!F8 -> 2018-05-21
A4: Nombre del Vendedor | B4: =+FORM!F27 -> PEDRO SALINAS
A5: Cédula de Identidad del Vendedor | B5: =+FORM!F29 -> 1524885547
A6: Concesionario | B6: =+FORM!F13 -> AUTOMOTORES CONTINENTAL
A7: Ciudad | B7: =+FORM!F25 -> PORTOVIEJO
A8: Nro. de tarjeta del socio | B8: =CONCATENATE(FORM!F146,FORM!L146) -> 36502325370040
A9: Nombre del Socio | B9: =FORM!Q37 -> ANA CAROLINA DOMINGUEZ RUALES
A10: Valor del Vale | B10: =+'PAG ORD'!D5 -> 36208.94674
A11: Plazo | B11: =+FORM!F104*12 -> 48
A12: CHECK LIST DE DOCUMENTOS (Confirme que esté enviando completa la documentación)
A13: Documentos para entregar al Socio | B13: Carta AIG
B14: Certificado de Cobertura Provisional
B15: Certificado de Seguro Colectivo Vida Deudores
B16: 1 Solicitud - Certificado Seguro de Desgravamen
B17: Orden de instalación de dispositivos de rastreo (si aplica)
A18: Documentos para entregar Diners Club | B18: 4 Contratos de Reserva de Dominio
B19: 4 Cesiones de Derecho
B20: 1 Pagaré
B21: 1 Declaración Unico Vehículo Uso familiar.
B22: 3 Autorización de Cargo
B23: 3 Contrato de Adhesión
B24: 4 Tabla de Amortización
B25: Solicitud de Seguro Vehículo
B26: Solicitud de Seguro Desgravamen
B27: 3 Fiel Copia de la Factura del Vehículo
B28: 3 Copia de Cédula del Socio
B29: 3 Copia de Cédula del Cónyuge
B30: Voucher lleno con el número de autorización y Recap.
B31: 1 Solicitud - Certificado Seguro de Desgravamen
B32: Formulario de dispositivo de rastreo (si aplica)
A33: POR FAVOR ADJUNTE ESTE FORMULARIO A LOS CONTRATOS Y DEMÁS DOCUMENTOS QUE REMITE A DINERS CLUB.

Sheet CO RE DOM 48
A1: CONTRATO DE VENTA CON RESERVA DE DOMINIO
A4: En la ciudad de | G4: =+FORM!F25 -> PORTOVIEJO | Q4: , a los | S4: =+FORM!F8 -> 2018-05-21 | T4: días del mes de | Z4: =+S4 -> 2018-05-21 | AE4: del año | AJ4: =+Z4 -> 2018-05-21
A5: comparecen, por una parte, | K5: =+FORM!F13 -> AUTOMOTORES CONTINENTAL | AD5: , legalmente representada
A6: por el (la) señor(ita-a) | I6: =+FORM!F15 -> GERARDO DORFFLINGER | AG6: , de nacionalidad
A7: =FORM!F17 -> ECUATORIANO | P7: , en su calidad de Representante Legal y/o Apoderado Especial del
A8: Representante Legal, con domicilio principal en la ciudad de | U8: =FORM!F25 -> PORTOVIEJO | AC8: , en la dirección
A9: =FORM!F23 -> AV 10 DE AGOSTO Y AV GASPAR DE VILLAROEL ESQUINA | V9: , parte a la que en adelante y para efectos de este
A10: contrato se podrá denominar también como “VENDEDORA” o “ACREEDORA”; y por otra, el(la-los) señor(ita-a-es)
A11: =FORM!Q37 -> ANA CAROLINA DOMINGUEZ RUALES | S11: y | T11: =IF(FORM!$F$65=0," ",CONCATENATE(FORM!F65," ",FORM!L65," ",FORM!F63," ",FORM!L63)) -> DAVID EDUARDO CLVACHE ONTANEDA
A12: de nacionalidad | F12: =FORM!F41 -> ECUATORIANA | Q12: y | R12: =FORM!F69 -> COLOMBIANO | AC12: respectivamente,
A13: por sus propios y personales derechos y (por los que representan en la sociedad conyugal que tienen formada por el
A14: vínculo del matrimonio), de profesión u ocupación | S14: =FORM!F57 -> INGENIRA | AA14: y | AB14: =FORM!F73 -> INGENIERO
A15: respectivamente, domiciliado (a-o-s) en la ciudad de | T15: =FORM!F47 -> PORTOVIEJO | AC15: , en la dirección
A16: =FORM!F45 -> AV PEDRO DE ALVARADO N56-72 Y CARLOS V | U16: a quien(es) en adelante y para los efectos de este
A17: contrato se podrá denominar también como “DEUDOR(A-ES)” O “COMPRADOR(A-ES)”.
A19: PRIMERA.- ANTECEDENTES: a) La VENDEDORA, es una sociedad legalmente constituida bajo el amparo de las leyes ecuatorianas, dedicada a la venta y distribución de vehículos, y es legítima y única propietaria del vehículo cuyas características se detallan más adelante. b) El (La-Los) COMPRADOR(A-ES), ha(n) manifestado su deseo de adquirir el vehículo descrito en este instrumento, mediante compra a plazo, por el cual la propiedad del mismo se la reservará la VENDEDORA hasta la total cancelación de las obligaciones adquiridas por el(la-los) COMPRADOR(A-ES).
A21: SEGUNDA.- OBJETO: La VENDEDORA, reservándose el dominio para sí, vende en virtud de este contrato en favor de(l) (la-los) COMPRADOR(A-ES), quien(es) a su vez compra(n) y recibe(n) en esta fecha a su entera y total satisfacción, el VEHÍCULO de las características que se detallan a continuación:
A23: MARCA: | L23: =+FORM!F77 -> MAZDA
A24: CLASE: | L24: =+FORM!F81 -> AUTOMOVIL
A25: TIPO: | L25: =+FORM!F84 -> SEDAN
A26: AÑO DE FABRICACIÓN: | L26: =+FORM!F86 -> 2019
A27: MODELO: | L27: =+FORM!F79 -> CX3
A28: PAÍS DE ORIGEN: | L28: =+FORM!F94 -> KOREA
A29: MOTOR: | L29: =+FORM!F90 -> BU456792826RE7
A30: CHASIS: | L30: =+FORM!F92 -> CG5342892U
A31: COLOR: | L31: =+FORM!F88 -> ROJO
A32: TONELAJE: | L32: =+FORM!F96 -> 0,45
A33: CILINDRAJE: | L33: =+FORM!F98 -> 2000
A35: Al bien anteriormente especificado, para los efectos del presente contrato, se lo podrá denominar simplemente el “VEHICULO”. La indicada reserva de dominio subsistirá para asegurar el pago de la deuda contraída en atención de este contrato por el(la-los) DEUDOR(A-ES) a favor de la VENDEDORA por la compra del VEHICULO, y luego asegurará el pago de dichos valores a BANCO DINERS CLUB DEL ECUADOR S.A., a favor de la cual la VENDEDORA cederá oportunamente este contrato. La reserva de dominio se mantendrá vigente hasta que se haya cancelado la totalidad del precio, impuestos, intereses correspondientes y demás valores que llegare(n) el(la-los) COMPRADOR(A-ES) a adeudar a la VENDEDORA.
A37: Cedido el presente contrato a BANCO DINERS CLUB DEL ECUADOR S.A., asumirá todos los derechos y obligaciones de la VENDEDORA, en consecuencia cuando en este contrato se estipule o se mencione a la VENDEDORA, una vez cedido el presente contrato, se entenderá como BANCO DINERS CLUB DEL ECUADOR S.A.
A38: TERCERA.- PRECIO: El precio al contado del VEHICULO, especificado en la cláusula precedente es de
A39: US$ | C39: =+FORM!F100 -> 34483.5 | H39: . | I39: Como el(la-los) COMPRADOR(A-ES) no puede(n) satisfacerlo de contado, conviene(n) en
A40: pagarlo en el plazo de | I40: =+FORM!F104*12 -> 48 | K40: meses, acudiendo a la intermediación financiera de BANCO DINERS CLUB DEL
A41: ECUADOR S.A., en adelante “DINERS”, por lo cual la cancelación del precio, se realizará de la siguiente forma:
A43: a) A la suscripción del presente contrato, por concepto de la cuota inicial, la suma de US$ | AE43: =+FORM!F102 -> 8000 | AJ43: que la
A44: VENDEDORA declara recibirlos a su entera satisfacción, dicha suma corresponde al | AE44: =+Cotizador!$AU$83 -> 0.2319950121 | AH44: del valor total
A45: del VEHICULO;
A46: b) Al saldo, que comprende al | L46: =+Cotizador!$AV$83 -> 0.7680049879 | O46: restante, esto es el valor de US$ | Z46: =+Cotizador!$AW$83 -> 26483.5 | AE46: , se le sumarán los
A47: intereses legales acorde a la tasa dispuesta por la Autoridad Monetaria pertinente, por lo que no habrá reajustes de
A48: intereses a la tabla de amortización correspondiente.
A49: c) El pago incondicional e irrevocable del presente crédito, al que se obliga el(la-los) COMPRADOR(A-ES) a través de este
A50: instrumento, a favor de la VENDEDORA, se hará mediante | U50: =+FORM!F104*12 -> 48 | W50: dividendos mensuales de conformidad con la
A51: tabla de amortización adjunta, la misma que suscrita por los comparecientes, formará parte integrante de este contrato,
A52: venciendo la primera el | I52: =+'TAB AMORT'!F10 -> 2018-06-20 | R52: y la última el | W52: =IF(FORM!F104=1,'TAB AMORT'!B32)+IF(FORM!F104=2,'TAB AMORT'!B44)+IF(FORM!F104=3,'TAB AMORT'!B56)+IF(FORM!F104=4,'TAB AMORT'!B68)+IF(FORM!F104=5,'TAB AMORT'!B80) -> 2022-05-20
A53: y para el efecto suscribirá el correspondiente pagaré a la orden.
A55: Los gastos legales, administrativos y del seguro del vehículo, deberán ser cancelados por el (la-los) COMPRADOR
A56: (A-ES) al VENDEDOR. "
A58: CUARTA.- RECEPCION Y UBICACION DEL BIEN VENDIDO: La VENDEDORA entrega al(los) COMPRADOR(A-ES), el VEHICULO objeto de este contrato en perfecto estado de funcionamiento, mecánico y pintura. Sin perjuicio de la indicada reserva de dominio, el (la-los) COMPRADOR(A-ES) asume(n) desde este momento de manera incondicional e irrevocable los riesgos generados por el uso, conservación, mantenimiento y tenencia del VEHICULO. El(La-Los) COMPRADOR(A-ES) declaran que ha(n) recibido el VEHICULO materia del presente contrato en perfectas condiciones y a su entera satisfacción y se obliga(n) a conservarlo en buen estado, salvo los deterioros normales por el uso particular, normal y ordinario al que se destina este tipo de bienes y a mantenerlo en su domicilio, en la siguiente dirección:
A59: su domicilio, situado en las calles | K59: =+FORM!F45 -> AV PEDRO DE ALVARADO N56-72 Y CARLOS V
A60: en la ciudad de | G60: =+FORM!F47 -> PORTOVIEJO
A62: QUINTA.- OBLIGACIONES DEL (LA-LOS) COMPRADOR(A-ES): Sin perjuicio de las obligaciones del (la-los) COMPRADOR(A-ES) previstas en el presente contrato, éste(os) se obliga(n) incondicional e irrevocablemente a lo siguiente: a) A notificar debidamente por escrito a la VENDEDORA, el cambio de domicilio o residencia, a más tardar, dentro de ocho días posteriores a dicho hecho; b) A comunicar a la VENDEDORA, cualquier medida preventiva o de ejecución que judicialmente se intentare sobre el VEHICULO, con el objeto de que la VENDEDORA pueda hacer valer sus derechos;
A63: c) A no verificar contrato alguno de venta, permuta, arrendamiento, prenda o comodato sobre el VEHICULO, sin haber pagado la totalidad del precio y todos los valores que llegue(n) a adeudar a la VENDEDORA, salvo el caso de que la VENDEDORA por intermedio de su representante legal, le(s) autorizare(n) expresamente por escrito para ello; el incumplimiento a esta obligación acarreará las consecuencias previstas en el artículo octavo innumerado, Sección V, de la Venta con Reserva de Dominio, Título Segundo del Código de Comercio;
A64: d) A no sacar en ningún caso fuera del país el VEHICULO objeto de este contrato, ni entregarlo a terceras personas, sin autorización expresa del Representante Legal de la VENDEDORA;
A65: e) A permitir y brindar facilidades para que la VENDEDORA, inspeccione el VEHICULO cuando lo crea conveniente con cargo y costa del (la-los) COMPRADOR(A-ES); y,
A66: f) Las demás obligaciones constantes en la Sección V, de la Venta con Reserva de Dominio, Título Segundo del Código de Comercio.
A68: SEXTA.- RESERVA DE DOMINIO.- La VENDEDORA se reserva el dominio del VEHICULO vendido en virtud de este contrato hasta que el(la-los) COMPRADOR(A-ES) haya(n) pagado la totalidad de las obligaciones contraídas. El(La-Los) COMPRADOR(A-ES) adquirirá(n) el dominio, esto es, será(n) dueño(s) de la cosa vendida, únicamente cuando haya(n) pagado la totalidad de las obligaciones, y podrá(n) entonces solicitar a la VENDEDORA le(s) otorgue el correspondiente título de propiedad. Sin embargo, el(la- los) COMPRADOR(A-ES) asume(n) los riesgos de la cosa a partir de la presente fecha por haberla recibido de la VENDEDORA.
A69: SEPTIMA.- VENCIMIENTO DEL PLAZO.- La VENDEDORA tendrá pleno derecho para dar por vencido el plazo del presente contrato y exigir el pago de la totalidad de las obligaciones de el(la-los) COMPRADOR(A-ES) y/o solicitar la devolución del VEHICULO. El(Los-La) COMPRADOR(A-ES) renuncia(n) al beneficio de plazo que se le(s) haya otorgado, reservándose la VENDEDORA el derecho de proceder como si toda la deuda se encontrare de plazo vencido, en los siguientes casos:
A70: a) Si el(la-los) COMPRADOR(A-ES), vendiere(n) o enajenare(n) o gravare(n) u ocultare(n) su tenencia a terceros, bien por su propia voluntad o por disposición de otras personas, o si el VEHICULO sufriere daños o deterioros, no cumpliere(n) con el compromiso de pago que asume(n) en virtud de las cláusulas de este contrato;
A71: b) Si alguno de los acreedores de(l) (la-los) COMPRADOR(A-ES), llegare(n) a constituir sobre uno cualesquiera de sus bienes providencias precautorias o de ejecución, tales como embargos, secuestros, retenciones o prohibiciones de enajenar, o les iniciare(n) juicio de insolvencia o se le(s) declarare en quiebra;
A72: c) Si el(las-los) COMPRADOR(A-ES) dejare(n) de pagar, a la fecha exacta del vencimiento, una o parte de una cualesquiera de las cuotas;
A73: d) Si el(la-los) COMPRADOR(A-ES) adeudare(n) a personas naturales o jurídicas que gocen, de acuerdo con la ley, de mejor privilegio en la prelación de créditos, de tal suerte que a juicio de la VENDEDORA se ponga en peligro la efectividad de la preferencia del crédito a favor de la VENDEDORA;
A74: e) Si el(la-los) COMPRADOR(A-ES) no cumpliere(n) o retardare(n) el cumplimiento de cualquiera de las obligaciones estipuladas en las cláusulas de este contrato;
A75: f) Si el(la-los) COMPRADOR(A-ES) se constituye(n) en fiador(es) o deudor(es) de personas sujetas a jurisdicción coactiva;
A76: g) Si el(la-los) COMPRADOR(A-ES) suspendiere(n) los trabajos a los que actualmente se dedica(n), bien por su voluntad o por disposición de terceros; h) Si un conflicto individual o colectivo de trabajo amenazare, a criterio de la VENDEDORA, el normal desenvolvimiento de los negocios de el(la-los) COMPRADOR(A-ES); i) Si se iniciare acción judicial en contra del(la-los) COMPRADOR(A-ES), en relación con el vehículo objeto del presente contrato;
A77: j) Si, al solo criterio de la VENDEDORA, el(la-los) COMPRADOR(A-ES) estuvieren en riesgo de ser declarado(s) en quiebra, insolvencia o liquidación; k) Si el (la-los) COMPRADOR(A-ES), de estar casados o tener unión de hecho, disolviere(n) la sociedad conyugal o de bienes que tienen formada entre sí; l) Si el (la-los) COMPRADOR(A-ES) fuere(n) puesto(s) en interdicción de administrar sus bienes;
A78: m) Si el(la-los) COMPRADOR(A-ES) no usare(n) o conservare(n) el VEHICULO con el debido cuidado, o si se apartare(n) de las instrucciones que para el efecto le(s) ha dado la VENDEDORA; n) Si el (la-los) COMPRADOR(A-ES) se viere(n) involucrado(s) en tráfico de sustancias psicotrópicas y estupefacientes o en lavado de activos; o) Si el (la-los) COMPRADOR(A-ES) no estuviere(n) al día en sus obligaciones con el Instituto Ecuatoriano de Seguridad Social;
A79: p) Si se comprobare que hubo falsedad por parte del (la-los) COMPRADOR(A-ES) en los estados financieros, si los tuviere(n); q) La VENDEDORA podrá además iniciar su acción de cobro contra el (la-los) COMPRADOR(A-ES) en caso de que este (a-os) sea(n) admitido (a-os) a concurso preventivo; r) En los demás casos establecidos en la legislación u otros que en su oportunidad la VENDEDORA determine unilateralmente.
A80: En todos estos casos, la VENDEDORA podrá en cualquier momento ejercer cualquier acción o acciones legales que le competen para el cobro de la totalidad de las obligaciones que le correspondan.
A81: OCTAVA.- SEGURO.- El (La-Los) COMPRADOR(A-ES) está(n) obligado(s) a contratar un seguro sobre el VEHÍCULO objeto de este contrato, así como un seguro de vida o de desgravamen por cuenta, cargo, riesgo y orden del tarjetahabiente principal, y cuya contratación la podrá hacer por intermedio de BANCO DINERS CLUB DEL ECUADOR S.A. o por cuenta propia. Dichos seguros tendrán como beneficiario a BANCO DINERS CLUB DEL ECUADOR S.A. Si eventualmente llegare a reclamarse el pago de los montos asegurados, los valores correspondientes se imputarán al crédito de financiamiento vehicular otorgado por BANCO DINERS CLUB DEL ECUADOR S.A., y cubrirán incluso los valores pendientes de pago de los consumos corrientes y diferidos realizados con su tarjeta de crédito Diners Club. En el caso de haber remanente, éste será entregado a los sucesores o herederos declarados como tales mediante los documentos legales correspondientes.
A82: Las pólizas deberán permanecer vigentes hasta la cancelación total de las obligaciones contraídas por el (la-los) COMPRADOR(A-ES). Los gastos en que incurra BANCO DINERS CLUB DEL ECUADOR S.A. por la consecución de los antedichos seguros serán cubiertos por el (la-los) COMPRADOR(A-ES) en forma mensual, conjuntamente con la cuota que le(es) corresponda cancelar por el VEHÍCULO, obligándose además a pagar los intereses de mora en caso de retraso a partir de la fecha de vencimiento de la obligación, según las liquidaciones que para el efecto elaborará BANCO DINERS CLUB DEL ECUADOR S.A. (la-los) COMPRADOR(A-ES) autorizará(n) incondicional e irrevocablemente para que, en caso de siniestro, su valor se abone a las obligaciones que por este contrato adquiere(n).
A83: NOVENA.- MATRÍCULA: El (La-Los) COMPRADOR(A-ES) se obliga(n) a matricular de conformidad con las disposiciones legales vigentes el VEHICULO materia del presente contrato, en el plazo de treinta días a partir de la presente fecha, y a entregar en forma inmediata una copia de la matrícula a la VENDEDORA y al CESIONARIO de este contrato, y hará lo propio en los años siguientes hasta el pago total de las obligaciones contraídas.
A85: DECIMA.- INDEMNIZACION: En cualquiera de los casos especificados en las cláusulas anteriores, cuando la VENDEDORA dé por terminado anticipadamente el plazo del presente contrato, quedarán en beneficio de la VENDEDORA las cuotas parciales canceladas por el(la-los) COMPRADOR(A-ES), cuyo valor no podrá exceder de la tercera parte del precio a crédito del VEHICULO, incluida la cuota de contado. Se estipula asimismo que quedarán en beneficio de la VENDEDORA los aumentos o mejoras que por cualquier concepto se hubieren adherido o incorporado al VEHICULO, todo lo cual de conformidad con los artículos innumerados noveno y décimo primero de la Sección V, de la Venta con Reserva de Dominio, Título Segundo del Código de Comercio, pudiendo también la VENDEDORA pedir que se disponga y proceda con el remate del VEHICULO, o que se disponga su adjudicación.
A86: DECIMA PRIMERA.- NOTIFICACIÓN Y ACEPTACIÓN DE CESIÓN: El(Los) DEUDOR(ES) o COMPRADOR(ES), según corresponda, y su(s) Garante(s), de haberlo(s), que suscriben el presente contrato, acepta(n) desde luego que el VENDEDOR o ACREEDOR pueda realizar la(s) cesión(es) del presente Contrato de Venta con Reserva de Dominio a su sola discreción y conveniencia, por lo cual se da(n) por notificado(s) de la(s) misma(s). En tal virtud, la(s) cesión(es) que se realice(n) surtirá(n) pleno efecto respecto al DEUDOR(ES) o COMPRADOR(ES) y su(s) Garante(s) y contra terceros, y será(n) informada(s) al DEUDOR(ES) o COMPRADOR(ES) por los medios que el VENDEDOR o ACREEDOR considere apropiado.
A87: DECIMA SEGUNDA.- CONSIDERACIONES ADICIONALES
A88: 1. APLICABILIDAD: Si alguna estipulación de este contrato o su aplicación llegare a ser considerada como inválida, inoperativa, o inaplicable, esto no significará la inaplicabilidad de todo el contrato, sino únicamente de la estipulación que corresponda.
A89: 2. ENCABEZAMIENTOS: Los títulos o encabezamientos contenidos en este contrato son únicamente referenciales, y no afectarán en ningún modo el contenido o interpretación de cada cláusula o del contrato en general.
A90: 3. LEGISLACION APLICABLE: En todo lo que no se encuentre estipulado en este contrato, las partes convienen en que sean aplicadas las disposiciones pertinentes del Código de Comercio, Código Civil, Código Orgánico Integral Penal, y demás disposiciones orgánicas y ordinarias de la legislación de la República del Ecuador.
A91: 4. DECLARACION LICITA DE FONDOS: Todos los valores que destine(n) el(los) COMPRADOR(A-ES)(ES) para cumplir las obligaciones que emanan del presente contrato, provendrán de actividades lícitas o morales, y en consecuencia no serán de ninguna actividad relacionada con la producción, consumo, comercialización, transporte de sustancias estupefacientes y psicotrópicas, o cualquier otra actividad tipificada en la Ley de Sustancias Estupefacientes y Psicotrópicas.
A92: DECIMA TERCERA.- JURISDICCION Y COMPETENCIA: Para el caso de controversia relacionadas con la
A93: interpretación o cumplimiento del presente contrato, las partes renuncian domicilio y fijan el suyo en la ciudad de
A94: =G4 -> PORTOVIEJO | I94: y se someten a la jurisdicción de sus jueces y al trámite legal que escoja el actor de la acción.
A95: DECIMA CUARTA.- ACEPTACION: Las partes aceptan y ratifican en todos sus términos las estipulaciones constantes en las cláusulas precedentes, en razón de lo cual firman en unidad de acto, en cuatro ejemplares de igual tenor y valor, en la ciudad y fecha indicadas, comprometiéndose a reconocer sus firmas y rúbricas al pie del presente contrato.
A100: f.)
A102: NOMBRE: | J102: =+FORM!F15 -> GERARDO DORFFLINGER
A103: CARGO: | J103: =+FORM!F19 -> GERENTE GENERAL
A104: RUC: | J104: =+FORM!F21 -> 1713882247001
A105: REPRESENTANTE LEGAL Y/O
A106: APODERADO ESPECIAL DEL REPRESENTANTE LEGAL
A111: f.)
A113: NOMBRE: | J113: =CONCATENATE(FORM!Q35," ",FORM!Q33) -> ANA CAROLINA DOMINGUEZ RUALES
A114: DIREC.: | J114: =+FORM!F45 -> AV PEDRO DE ALVARADO N56-72 Y CARLOS V
A115: C.C. | J115: =+FORM!F39 -> 1234567890
A116: COMPRADOR
A121: f.)
A123: NOMBRE CÓNYUGE: | J123: =+T11 -> DAVID EDUARDO CLVACHE ONTANEDA
A124: DIREC.: | J124: =IF(FORM!F63=0,"",J114) -> AV PEDRO DE ALVARADO N56-72 Y CARLOS V
A125: C.C. | J125: =IF(FORM!F63=0,"",FORM!F67) -> 1239876589
A126: COMPRADOR

Sheet PAG ORD
A2: PAGARE A LA ORDEN
A3: (Con vencimientos sucesivos)
A5: POR: USD$ | D5: =(X9*N10) -> 36208.94674
A7: Debo (emos) y pagaré (mos) solidaria e incondicionalmente a la orden de BANCO DINERS CLUB DEL ECUADOR S.A.,
A8: en la ciudad de | E8: =+H27 -> PORTOVIEJO | J8: ,o en el lugar donde me(nos) reconvenga, la cantidad de | V8: =+D5 -> 36208.94674
A9: DOLARES DE LOS ESTADOS UNIDOS DE AMERICA obligándome(nos) a pagar irrevocablemente | V9: en | X9: =+FORM!F104*12 -> 48
A10: cuotas mensuales cuotas mensuales iguales y sucesivas de US$ | N10: =+'TAB AMORT'!C16 -> 754.353057 | Q10: DOLARES DE LOS ESTADOS
A11: UNIDOS DE AMERICA, cada una, y que serán pagadas a partir del | N11: =+DAY('TAB AMORT'!F10) -> 20 | O11: de | P11: =+'TAB AMORT'!F10 -> 2018-06-20 | U11: del | W11: =+P11 -> 2018-06-20 | Z11: y asi
A12: sucesivamente hasta su pago total, esto es hasta el | L12: =IF(FORM!F104=1,'TAB AMORT'!B32)+IF(FORM!F104=2,'TAB AMORT'!B44)+IF(FORM!F104=3,'TAB AMORT'!B56)+IF(FORM!F104=4,'TAB AMORT'!B68)+IF(FORM!F104=5,'TAB AMORT'!B80) -> 2022-05-20 | M12: de | N12: =+L12 -> 2022-05-20 | R12: del | T12: =+N12 -> 2022-05-20 | V12: .
A14: Declaro(amos) que la falta de pago oportuno de cualquiera de las cuotas mensuales antes detalladas o de parte de alguna de ellas, permitirá al Acreedor anticipar y declarar de plazo vencido las cuotas posteriores y exigir al(los) Deudor(es) y/o Aval(es) el pago total de la obligación contenida en este pagaré, más los gastos y costas a que hubiere lugar.
A16: En caso de mora, pagaré (mos) desde su vencimiento hasta su total cancelación, sobre los valores no pagados, la máxima tasa de interés de mora que para el efecto haya dispuesto la Autoridad Monetaria correspondiente, vigentes a la respectiva fecha de vencimiento.
A17: Además, pagaré (mos) todos los gastos judiciales, extra judiciales, y honorarios profesionales que ocasione el cobro, bastando para determinar el monto de tales gastos, la sola aseveración del Acreedor.
A19: Se deja constancia que BANCO DINERS CLUB DEL ECUADOR S.A a su sola decisión podrá ceder todos los derechos emanados de este Pagaré a la Orden a cualquier persona natural y/o jurídica, por los que el (la/los) suscriptor (es) desde ya acepta (n) la pertinente cesión de derechos, incluso se da(n) por notificado(s) del traspaso del crédito. En tal virtud, la o las cesiones que se realicen, surtirán pleno efecto respecto al deudor (es), sus avalistas solidarios y respecto de terceros.
A21: Renuncio (amos) fuero y domicilio y quedo (amos) expresamente sometido (s) a los jueces competentes de la ciudad
A22: de | B22: =+E8 -> PORTOVIEJO | F22: o del lugar en que se nos reconvenga, y al trámite legal correspondiente, a elección del
A23: demandante; obligándome (nos) irrevocablemente al fiel cumplimiento de lo aquí estipulado con todos mis (nuestros) bienes presentes y futuros. El pago no podrá hacerse por partes ni aún por mis (nuestros) herederos.
A25: Sin protesto. Exímese al Acreedor de este Pagaré a la Orden, de su presentación para el pago al (los) suscriptor(es) del mismo, así como realizar los avisos por falta de pago.
A27: Lugar y Fecha de suscripción: | H27: =+'CO RE DOM 48'!G4 -> PORTOVIEJO | L27: =+'TAB AMORT'!F9 -> 2018-05-21
A32: f) | O32: f)
A33: NOMBRES: | E33: =CONCATENATE(FORM!Q35," ",FORM!Q33) -> ANA CAROLINA DOMINGUEZ RUALES | O33: =IF(FORM!F63=0,"",CONCATENATE(FORM!Q65," ",FORM!Q63)) -> DAVID EDUARDO CLVACHE ONTANEDA
A34: Dirección: | E34: =FORM!F45 -> AV PEDRO DE ALVARADO N56-72 Y CARLOS V | O34: =IF(FORM!F63=0,"",'PAG ORD'!E34) -> AV PEDRO DE ALVARADO N56-72 Y CARLOS V
A35: RUC o CC | E35: =FORM!F39 -> 1234567890 | O35: =IF(FORM!F63=0,"",FORM!F67) -> 1239876589
A36: Teléfono: | E36: =+FORM!F37 -> 3188179 | O36: =IF(FORM!F63=0,"",'PAG ORD'!E36) -> 3188179
A41: VISTO BUENO
A43: Lugar y Fecha de suscripción: | H43: =+H27 -> PORTOVIEJO | M43: =+L27 -> 2018-05-21
A47: f) | O47: f)
A48: NOMBRES: | E48: =+E33 -> ANA CAROLINA DOMINGUEZ RUALES | O48: =+O33 -> DAVID EDUARDO CLVACHE ONTANEDA
A49: Dirección: | E49: =+E34 -> AV PEDRO DE ALVARADO N56-72 Y CARLOS V | O49: =+O34 -> AV PEDRO DE ALVARADO N56-72 Y CARLOS V
A50: RUC o CC | E50: =+E35 -> 1234567890 | O50: =+O35 -> 1239876589
A51: Teléfono: | E51: =+E36 -> 3188179 | O51: =+O36 -> 3188179

Sheet HUNTER
A1: PLAN EXCLUSIVO PARA SOCIOS DINERS CLUB
A5: GUAYAQUIL : Cdla. Vernaza Norte MZ 21 Solar 2,6,7 y 8 Telef. ( 04) 2291065. QUITO : Av. 10 de Agosto 5023 y Los Cedros. Esq. PBX : (02) 805170-805180. TUMBACO : CC. Ventura Mall. Local 5 B. PBX : (02) 2375308. MACHALA : Marcel Laniado 105 y Circunvalación Norte. PBX : (07) 2980379. MANTA : Av. 113 y Calle 119 esq. PBX : (05) 2925584. QUEVEDO : Malecón 302 y Tercera Esq. (05)2761370. STO. DOMINGO : Av. Quevedo. Km. 3/12 No. 1516 y Av. Bombolí. AMBATO : Montalvo 0236 y Los Capulíes. PBX : 2829941. LOJA: 24 de Mayo y Azuay. Esq. PBX : 2574291. CUENCA: Circunvalación Sur y J. Núñez. PBX : (07) 2819080. IBARRA : Av. Cristóbal de Troya 661 y J. M. Lequerica. PBX : (06) 2955517. SALINAS : Calle Segunda ( Junto a Mi Comisariato Jr.) PBX : 2761370.
A9: ORDEN DE INSTALACIÓN DEL SISTEMA HUNTER
A10: FECHA: | F10: =FORM!F8 -> 2018-05-21 | P10: VALOR VEHICULO: | W10: =FORM!F100 -> 34483.5
A11: NOMBRE: | F11: =FORM!Q37 -> ANA CAROLINA DOMINGUEZ RUALES
A12: DIRECCIÓN: | F12: =FORM!F45 -> AV PEDRO DE ALVARADO N56-72 Y CARLOS V
A13: TELEFONOS: | F13: =CONCATENATE(FORM!F37," ",FORM!L37) -> 3188179 0985352479 | R13: CIUDAD: | V13: =+FORM!F25 -> PORTOVIEJO
A14: CONCESIONARIO: | H14: =+FORM!F13 -> AUTOMOTORES CONTINENTAL
A15: PLAN | D15: =+A34 -> MARESA SATELITAL BY HUNTER
A16: DATOS DEL VEHICULO
A17: MARCA: | D17: =+FORM!F77 -> MAZDA | J17: MODELO: | N17: =+FORM!F79 -> CX3 | T17: TIPO: | W17: =+FORM!F84 -> SEDAN
A18: COLOR: | D18: =+FORM!F88 -> ROJO | J18: AÑO: | N18: =+FORM!F86 -> 2019 | T18: PLACA: | W18: N/A
A19: MOTOR: | D19: =+FORM!F90 -> BU456792826RE7 | J19: CHASIS: | N19: =+FORM!F92 -> CG5342892U | T19: USO: | W19: PERSONAL/FAMILIAR
A20: El asegurado deberá llevar el vehículo para la instalación del sistema Hunter, en un plazo de 8 días posteriores a la compra del vehículo. De no hacerlo, pierde el derecho a indemnización en el caso de un eventual robo total.
F26: CONCESIONARIO | V26: TARJETAHABIENTE
A28: AUTORIZACIÓN ORDEN DE CARGO
A29: =+FORM!F25 -> PORTOVIEJO | L29: , | M29: =+F10 -> 2018-05-21
A31: En mi calidad de socio Diners Club No. | O31: =CONCATENATE(FORM!F146,FORM!L146) -> 36502325370040 | W31: autorizo libre y voluntariamente | AS31: =CONCATENATE([4]FORM!AL147,[4]FORM!AR147) ->  | AZ31: autorizo libre y voluntariamente a | BL31: En mi calidad de socio Diners Club No. | BY31: =CONCATENATE([4]FORM!BR147,[4]FORM!BX147) ->  | CF31: autorizo libre y voluntariamente a | CR31: En mi calidad de socio Diners Club No. | DE31: =CONCATENATE([4]FORM!CX147,[4]FORM!DD147) ->  | DL31: autorizo libre y voluntariamente a | DX31: En mi calidad de socio Diners Club No. | EK31: =CONCATENATE([4]FORM!ED147,[4]FORM!EJ147) ->  | ER31: autorizo libre y voluntariamente a | FD31: En mi calidad de socio Diners Club No. | FQ31: =CONCATENATE([4]FORM!FJ147,[4]FORM!FP147) ->  | FX31: autorizo libre y voluntariamente a | GJ31: En mi calidad de socio Diners Club No. | GW31: =CONCATENATE([4]FORM!GP147,[4]FORM!GV147) ->  | HD31: autorizo libre y voluntariamente a | HP31: En mi calidad de socio Diners Club No. | IC31: =CONCATENATE([4]FORM!HV147,[4]FORM!IB147) ->  | IJ31: autorizo libre y voluntariamente a
A32: a BANCO DINERS CLUB DEL ECUADOR S.A., se cargue a mi señalada tarjeta de manera mensual el
A33: valor de US$ | F33: =+FORM!F138 -> 35.58333333 | I33: durante | L33: =+FORM!F104*12 -> 48 | O33: meses, que corresponde a la compra de un sistema
A34: =+FORM!F112 -> MARESA SATELITAL BY HUNTER | N34: de conformidad al acuerdo que he llegado con CARSEG S.A. | AV34: durante | AY34: =+[4]FORM!AL107*12 -> 0 | BA34: meses, que corresponde a la | BL34: de manera mensual el valor de US$ | CB34: durante | CE34: =+[4]FORM!BR107*12 -> 0 | CG34: meses, que corresponde a la | CR34: de manera mensual el valor de US$ | DH34: durante | DK34: =+[4]FORM!CX107*12 -> 0 | DM34: meses, que corresponde a la | DX34: de manera mensual el valor de US$ | EN34: durante | EQ34: =+[4]FORM!ED107*12 -> 0 | ES34: meses, que corresponde a la | FD34: de manera mensual el valor de US$ | FT34: durante | FW34: =+[4]FORM!FJ107*12 -> 0 | FY34: meses, que corresponde a la | GJ34: de manera mensual el valor de US$ | GZ34: durante | HC34: =+[4]FORM!GP107*12 -> 0 | HE34: meses, que corresponde a la | HP34: de manera mensual el valor de US$ | IF34: durante | II34: =+[4]FORM!HV107*12 -> 0 | IK34: meses, que corresponde a la
A35: esto es, un crédito diferido a | L35: =+L33 -> 48 | O35: meses plazo sin intereses, valores que me comprometo a
A36: cancelar de manera incondicional y dentro de los plazos estipulados.
A37: Asímismo, expresamente me obligo a no revocar la presente autorización, sin previo consentimiento por escrito de CARSEG S.A, por lo que libero de toda responsabilidad a BANCO DINERS CLUB DEL ECUADOR S.A. por los cargos efectuados en base a la presente autorización. | BL37: Asímismo, expresamente me obligo a no revocar la presente autorización, sin previo consentimiento por | CR37: Asímismo, expresamente me obligo a no revocar la presente autorización, sin previo consentimiento por | DX37: Asímismo, expresamente me obligo a no revocar la presente autorización, sin previo consentimiento por | FD37: Asímismo, expresamente me obligo a no revocar la presente autorización, sin previo consentimiento por | GJ37: Asímismo, expresamente me obligo a no revocar la presente autorización, sin previo consentimiento por | HP37: Asímismo, expresamente me obligo a no revocar la presente autorización, sin previo consentimiento por
A38: De igual manera, autorizo en caso de pérdida, hurto, robo o cualquier otra circunstancia que merezca ser cambiado mi actual número de tarjeta, se cuenta con el nuevo que se me asigne para cancelar todos mis consumos de manera incondicional dentro del periodo respectivo, de tal forma de que mis obligaciones no queden en mora por los conceptos antes mencionados y hasta su total cancelación. | BL38: De igual manera, autorizo en caso de pérdida, hurto, robo o cualquier otra circunstancia que merezca | CR38: De igual manera, autorizo en caso de pérdida, hurto, robo o cualquier otra circunstancia que merezca | DX38: De igual manera, autorizo en caso de pérdida, hurto, robo o cualquier otra circunstancia que merezca | FD38: De igual manera, autorizo en caso de pérdida, hurto, robo o cualquier otra circunstancia que merezca | GJ38: De igual manera, autorizo en caso de pérdida, hurto, robo o cualquier otra circunstancia que merezca | HP38: De igual manera, autorizo en caso de pérdida, hurto, robo o cualquier otra circunstancia que merezca
BL39: hasta su total cancelación. | CR39: hasta su total cancelación. | DX39: hasta su total cancelación. | FD39: hasta su total cancelación. | GJ39: hasta su total cancelación. | HP39: hasta su total cancelación.
A40: Atentamente,
A43: =+F11 -> ANA CAROLINA DOMINGUEZ RUALES
A44: =+FORM!F39 -> 1234567890
A45: Caducidad Tarjeta: | I45: =+FORM!F148 -> 2022-05-01
A46: DECLARACION ADICIONAL
A48: =A43 -> ANA CAROLINA DOMINGUEZ RUALES | P48: , mayor de edad, de estado civil | AA48: =+IF(FORM!F63<>"","CASADO","SOLTERO") -> CASADO
A49: , portador de la cédula de ciudadanía o pasaporte No. | T49: =+A44 -> 1234567890 | X49: , por medio de la presente
A50: realizo la siguiente declaración:
A51: Declaro de manera expresa que autorizo a la compañía CARSEG S.A, para que en el evento de que la compañía Banco Diners Club del Ecuador S.A., lo requiera, haga conocer la información en relación a la ubicación del vehículo, así mismo podrá bloquear el vehículo a la sola solicitud de Banco Diners Club del Ecuador S.A.
A55: Por tratarse de una autorización realizada de manera libre y voluntaria, declaro que no interpondré contra Banco Diners Club del Ecuador S.A., o la compañía Hunter, ningún tipo de acción judicial o administrativa por la ejecución de las acciones descritas en el presente documento.
A60: Atentamente,
A63: =A43 -> ANA CAROLINA DOMINGUEZ RUALES
A64: =A44 -> 1234567890

Sheet DAT (hidden)
A1: PÓLIZA | B1: CERTIFICADO | C1: CONTRATANTE | D1: FECHA INGRESO | E1: APELLIDO 1 | F1: APELLIDO 2 | G1: NOMBRES | H1: CEDULA/RUC | I1: DIRECCIÓN DOMICILIO | J1: TELÉFONO 1 | K1: CODIGO TELEF | L1: TELÉFONO 2 | M1: CODIGO TELEF | N1: PAIS | O1: CODIGO PAIS | P1: PROVINCIA | Q1: CODIGO PROVINCIA | R1: CIUDAD | S1: CODIGO CIUDAD | T1: LUGAR DE TRABAJO | U1: CARGO | V1: MARCA | W1: marca sise | X1: MODELO | Y1: modelo sise | Z1: TIPO | AA1: AÑO | AB1: COLOR | AC1: color sise | AD1: MOTOR | AE1: CHASIS | AF1: PLACA | AG1: CONDUCTOR | AH1: VIGENCIA INICIAL | AI1: ANIVERSARIO | AJ1: VALOR AUTO | AK1: TASA | AL1: PRIMA NETA | AM1: SÚPER BANCOS | AN1: DERECHOS EMISIÓN | AO1: IVA | AP1: PRIMA TOTAL | AQ1: FECHA DE EMISIÓN | AR1: NUMERO DE TARJETA | AS1: CONCESIONARIO | AT1: STATUS | AU1: FECHA DE CANCELACIÓN | AV1: MOTIVOS | AW1: MARCA EXTRAS 1 | AX1: MODELO EXTRAS 1 | AY1: VALOR EXTRAS 1 | AZ1: MARCA EXTRAS 2 | BA1: MODELO EXTRAS 2 | BB1: VALOR EXTRAS 2 | BC1: MARCA EXTRAS 3 | BD1: MODELO EXTRAS 3 | BE1: VALOR EXTRAS 3 | BF1: MARCA EXTRAS 4 | BG1: MODELO EXTRAS 4 | BH1: VALOR EXTRAS 4 | BI1: MARCA EXTRAS 5 | BJ1: MODELO EXTRAS 5 | BK1: VALOR EXTRAS 5 | BL1: MARCA EXTRAS 6 | BM1: MODELO EXTRAS 6 | BN1: VALOR EXTRAS 6 | BO1: TOTAL EXTRAS | BP1: PRIMA EXTRAS | BQ1: FECHA FIN FINANCTO
A2: 51237 | B2: 1 | C2: DINERS CLUB DEL ECUADOR | D2: =CONCATENATE(FORM!F9," ",FORM!J9," ",FORM!M9) ->  | E2: =+FORM!$F$33 -> DOMINGUEZ | F2: =+FORM!L33 -> RUALES | G2: =+FORM!Q35 -> ANA CAROLINA | H2: =+FORM!F39 -> 1234567890 | I2: =+FORM!F45 -> AV PEDRO DE ALVARADO N56-72 Y CARLOS V | J2: =+FORM!F37 -> 3188179 | K2: 2 | L2: =+FORM!L37 -> 0985352479 | M2: 1 | N2: ECUADOR | O2: 1 | R2: =+FORM!F47 -> PORTOVIEJO | T2: =+FORM!#REF! ->  | U2: =+FORM!#REF! ->  | V2: =+FORM!F77 -> MAZDA | W2: =VLOOKUP(V2,FORM!#REF!,2) ->  | X2: =+FORM!F79 -> CX3 | Z2: =+FORM!F84 -> SEDAN | AA2: =+FORM!F86 -> 2019 | AB2: =+FORM!F88 -> ROJO | AD2: =+FORM!F90 -> BU456792826RE7 | AE2: =+FORM!F92 -> CG5342892U | AF2: S / N | AG2: =CONCATENATE(FORM!Q33," ",FORM!F35," ",FORM!L35) -> DOMINGUEZ RUALES ANA CAROLINA | AH2: =CONCATENATE(FORM!J9," ",FORM!F9," ",FORM!M9) ->  | AI2: =+AH2+365 ->  | AJ2: =+ROUND(FORM!F100,0) -> 34484 | AK2: =+FORM!#REF! ->  | AL2: =+FORM!#REF! ->  | AM2: =+FORM!#REF! ->  | AN2: =+FORM!#REF! ->  | AO2: =+FORM!#REF! ->  | AP2: =+FORM!#REF! ->  | AQ2: =+D2 ->  | AR2: =CONCATENATE(FORM!F146,,FORM!L146) -> 36502325370040 | AS2: =+FORM!F13 -> AUTOMOTORES CONTINENTAL | BQ2: =IF(FORM!F104=1,'TAB AMORT'!B32,IF(FORM!F104=1.5,'TAB AMORT'!B38,IF(FORM!F104=2,'TAB AMORT'!B44,IF(FORM!F104=3,'TAB AMORT'!B56)))) -> FALSE

Sheet TRACKLINK CONTROL
A1: PLAN EXCLUSIVO PARA SOCIOS DINERS CLUB
A5: QUITO : Av. Gaspar de Villaroel E9-39 y Av. de los Shyris. PBX : (02) 2439920-2439945. GUAYAQUIL : Av. Juan Tanca Marengo km. 2.5 (frente a EICA). PBX : (04) 2610338. CUENCA : Av. Miguel Cordero 167 y Av. Paucarbamba. PBX : (07) 2812773-2885560. MACHALA : Av. Juan Montalvo 2309 entre Pichincha y Arízaga. PBX : (07) 2938008. AMBATO : AV. Cevallos 2328 y Filomentor Cuesta. PBX : (03) 2424104. MANTA : Av. 4 de Noviembre y Calle 313 frente a Solca. PBX : (05) 2924287-2922699.
A9: ORDEN DE INSTALACIÓN DEL SISTEMA TRACKLINK CONTROL
A10: FECHA: | F10: =+HUNTER!F10 -> 2018-05-21 | P10: VALOR VEHICULO: | W10: =FORM!F100 -> 34483.5
A11: NOMBRE: | F11: =FORM!Q37 -> ANA CAROLINA DOMINGUEZ RUALES
A12: DIRECCIÓN: | F12: =+HUNTER!F12 -> AV PEDRO DE ALVARADO N56-72 Y CARLOS V
A13: TELEFONOS: | F13: =+HUNTER!F13 -> 3188179 0985352479 | R13: CIUDAD: | V13: =+HUNTER!V13 -> PORTOVIEJO
A14: CONCESIONARIO: | H14: =+HUNTER!H14 -> AUTOMOTORES CONTINENTAL
A15: PLAN: | D15: =+A34 -> MARESA SATELITAL BY HUNTER
A16: DATOS DEL VEHICULO
A17: MARCA: | D17: =+HUNTER!D17 -> MAZDA | J17: MODELO: | N17: =+HUNTER!N17 -> CX3 | T17: TIPO: | W17: =+HUNTER!W17 -> SEDAN
A18: COLOR: | D18: =+HUNTER!D18 -> ROJO | J18: AÑO: | N18: =+HUNTER!N18 -> 2019 | T18: PLACA: | W18: N/A
A19: MOTOR: | D19: =+HUNTER!D19 -> BU456792826RE7 | J19: CHASIS: | N19: =+HUNTER!N19 -> CG5342892U | T19: USO: | W19: PERSONAL/FAMILIAR
A20: El asegurado deberá llevar el vehículo para la instalación del sistema Tracklink Control, en un plazo de 8 días posteriores a la compra del vehículo. De no hacerlo, pierde el derecho a indemnización en el caso de un eventual robo total.
F26: CONCESIONARIO | V26: TARJETAHABIENTE
A28: AUTORIZACIÓN ORDEN DE CARGO
A29: =+FORM!F25 -> PORTOVIEJO | L29: , | M29: =+F10 -> 2018-05-21
A31: En mi calidad de socio Diners Club No. | O31: =CONCATENATE(FORM!F146,FORM!L146) -> 36502325370040 | U31: autorizo libre y voluntariamente
A32: a BANCO DINERS CLUB DEL ECUADOR S.A., se cargue a mi señalada tarjeta de manera mensual
A33: el valor de US$ | G33: =+FORM!F138 -> 35.58333333 | J33: durante | M33: =+FORM!F104*12 -> 48 | O33: meses, que corresponde a la compra de un sistema
A34: =+FORM!F112 -> MARESA SATELITAL BY HUNTER | M34: de conformidad al acuerdo que he llegado con
A35: AUDIOAUTO S.A. esto es, un crédito diferido a | R35: =+M33 -> 48 | T35: meses plazo sin intereses, valores
A36: que me comprometo a cancelar de manera incondicional y dentro de los plazos estipulados.
A37: Asímismo, expresamente me obligo a no revocar la presente autorización, sin previo consentimiento por escrito de AUDIOAUTO S.A, por lo que libero de toda responsabilidad a BANCO DINERS CLUB DEL ECUADOR S.A. por los cargos efectuados en base a la presente autorización.
A38: De igual manera, autorizo en caso de pérdida, hurto, robo o cualquier otra circunstancia que merezca ser cambiado mi actual número de tarjeta, se cuenta con el nuevo que se me asigne para cancelar todos mis consumos de manera incondicional dentro del periodo respectivo, de tal forma de que mis obligaciones no queden en mora por los conceptos antes mencionados y hasta su total cancelación.
A41: Atentamente,
A44: =F11 -> ANA CAROLINA DOMINGUEZ RUALES
A45: =+FORM!F39 -> 1234567890
A46: Caducidad Tarjeta: | I46: =+FORM!F148 -> 2022-05-01
A47: DECLARACION ADICIONAL
A49: =A44 -> ANA CAROLINA DOMINGUEZ RUALES | O49: , mayor de edad, de estado civil | Z49: =+IF(FORM!F63<>"","CASADO","SOLTERO") -> CASADO
A50: , portador de la cédula de ciudadanía o pasaporte No. | Q50: =A45 -> 1234567890 | V50: , por medio de la presente
A51: realizo la siguiente declaración:
A52: Declaro de manera expresa que autorizo a la compañía AUDIOAUTO S.A para que en el evento de que la compañía Diners Club del Ecuador S.A., lo requiera, haga conocer la información en relación a la ubicación del vehículo, así mismo podrá bloquear el vehículo a la sola solicitud de Banco Diners Club del Ecuador S.A.
A56: Por tratarse de una autorización realizada de manera libre y voluntaria, declaro que no interpondré contra Banco Diners Club del Ecuador S.A., o la compañía AUDIOAUTO S.A. ningún tipo de acción judicial o administrativa por la ejecución de las acciones descritas en el presente documento.
A61: Atentamente,
A64: =A44 -> ANA CAROLINA DOMINGUEZ RUALES
A65: =A45 -> 1234567890

Sheet MARESA SATELITAL
A1: PLAN EXCLUSIVO PARA SOCIOS DINERS CLUB
A5: QUITO: Calle Francisco Andrade Marín E 6-101 y Av. Eloy Alfaro. Telf. 600-9390
A7: ORDEN DE INSTALACIÓN DEL SISTEMA MARESA SATELITAL
A8: FECHA: | F8: =+FORM!F8 -> 2018-05-21 | P8: VALOR VEHICULO: | W8: =FORM!F100 -> 34483.5
A9: NOMBRE: | F9: =FORM!Q37 -> ANA CAROLINA DOMINGUEZ RUALES
A10: DIRECCIÓN: | F10: =+FORM!F45 -> AV PEDRO DE ALVARADO N56-72 Y CARLOS V
A11: TELEFONOS: | F11: =CONCATENATE(FORM!F37," ",FORM!L37) -> 3188179 0985352479 | R11: CIUDAD: | V11: =+FORM!F25 -> PORTOVIEJO
A12: CONCESIONARIO: | H12: =+FORM!F13 -> AUTOMOTORES CONTINENTAL
A13: PLAN | D13: =+A32 -> MARESA SATELITAL BY HUNTER
A14: DATOS DEL VEHICULO
A15: MARCA: | D15: =+FORM!F77 -> MAZDA | J15: MODELO: | N15: =+FORM!F79 -> CX3 | T15: TIPO: | W15: =+FORM!F84 -> SEDAN
A16: COLOR: | D16: =+FORM!F88 -> ROJO | J16: AÑO: | N16: =+FORM!F86 -> 2019 | T16: PLACA: | W16: N/A
A17: MOTOR: | D17: =+FORM!F90 -> BU456792826RE7 | J17: CHASIS: | N17: =+FORM!F92 -> CG5342892U | T17: USO: | W17: PERSONAL/FAMILIAR
A18: El asegurado deberá llevar el vehículo para la instalación del sistema Maresa Satelital, en un plazo de 8 días posteriores a la compra del vehículo. De no hacerlo, pierde el derecho a indemnización en el caso de un eventual robo total.
F24: CONCESIONARIO | V24: TARJETAHABIENTE
A26: AUTORIZACIÓN ORDEN DE CARGO
A27: =+FORM!F25 -> PORTOVIEJO | L27: , | M27: =+F8 -> 2018-05-21
A29: En mi calidad de socio Diners Club No. | O29: =CONCATENATE(FORM!F146,FORM!L146) -> 36502325370040 | U29: autorizo libre y voluntariamente | AT29: =CONCATENATE(FORM!AP142,FORM!AV142) ->  | BA29: autorizo libre y voluntariamente a | BM29: En mi calidad de socio Diners Club No. | BZ29: =CONCATENATE(FORM!BV142,FORM!CB142) ->  | CG29: autorizo libre y voluntariamente a | CS29: En mi calidad de socio Diners Club No. | DF29: =CONCATENATE(FORM!DB142,FORM!DH142) ->  | DM29: autorizo libre y voluntariamente a | DY29: En mi calidad de socio Diners Club No. | EL29: =CONCATENATE(FORM!EH142,FORM!EN142) ->  | ES29: autorizo libre y voluntariamente a | FE29: En mi calidad de socio Diners Club No. | FR29: =CONCATENATE(FORM!FN142,FORM!FT142) ->  | FY29: autorizo libre y voluntariamente a | GK29: En mi calidad de socio Diners Club No. | GX29: =CONCATENATE(FORM!GT142,FORM!GZ142) ->  | HE29: autorizo libre y voluntariamente a | HQ29: En mi calidad de socio Diners Club No. | ID29: =CONCATENATE(FORM!HZ142,FORM!IF142) ->  | IK29: autorizo libre y voluntariamente a
A30: a BANCO DINERS CLUB DEL ECUADOR S.A., se cargue a mi señalada tarjeta de manera mensual
A31: el valor de US$ | G31: =+FORM!F138 -> 35.58333333 | J31: durante | M31: =+FORM!F104*12 -> 48 | O31: meses, que corresponde a la compra de un sistema
A32: =+FORM!F112 -> MARESA SATELITAL BY HUNTER | N32: de conformidad al acuerdo que he llegado con | AW32: durante | AZ32: =+FORM!AP102*12 -> 0 | BB32: meses, que corresponde a la | BM32: de manera mensual el valor de US$ | CC32: durante | CF32: =+FORM!BV102*12 -> 0 | CH32: meses, que corresponde a la | CS32: de manera mensual el valor de US$ | DI32: durante | DL32: =+FORM!DB102*12 -> 0 | DN32: meses, que corresponde a la | DY32: de manera mensual el valor de US$ | EO32: durante | ER32: =+FORM!EH102*12 -> 0 | ET32: meses, que corresponde a la | FE32: de manera mensual el valor de US$ | FU32: durante | FX32: =+FORM!FN102*12 -> 0 | FZ32: meses, que corresponde a la | GK32: de manera mensual el valor de US$ | HA32: durante | HD32: =+FORM!GT102*12 -> 0 | HF32: meses, que corresponde a la | HQ32: de manera mensual el valor de US$ | IG32: durante | IJ32: =+FORM!HZ102*12 -> 0 | IL32: meses, que corresponde a la
A33: CARSEG S.A. esto es, un crédito diferido a | P33: =+M31 -> 48 | R33: meses plazo sin intereses, valores que me
A34: comprometo a cancelar de manera incondicional y dentro de los plazos estipulados.
A35: Asímismo, expresamente me obligo a no revocar la presente autorización, sin previo consentimiento por escrito de CARSEG S.A., por lo que libero de toda responsabilidad a BANCO DINERS CLUB DEL ECUADOR S.A. por los cargos efectuados en base a la presente autorización. | BM35: Asímismo, expresamente me obligo a no revocar la presente autorización, sin previo consentimiento por | CS35: Asímismo, expresamente me obligo a no revocar la presente autorización, sin previo consentimiento por | DY35: Asímismo, expresamente me obligo a no revocar la presente autorización, sin previo consentimiento por | FE35: Asímismo, expresamente me obligo a no revocar la presente autorización, sin previo consentimiento por | GK35: Asímismo, expresamente me obligo a no revocar la presente autorización, sin previo consentimiento por | HQ35: Asímismo, expresamente me obligo a no revocar la presente autorización, sin previo consentimiento por
A36: De igual manera, autorizo en caso de pérdida, hurto, robo o cualquier otra circunstancia que merezca ser cambiado mi actual número de tarjeta, se cuenta con el nuevo que se me asigne para cancelar todos mis consumos de manera incondicional dentro del periodo respectivo, de tal forma de que mis obligaciones no queden en mora por los conceptos antes mencionados y hasta su total cancelación. | BM36: De igual manera, autorizo en caso de pérdida, hurto, robo o cualquier otra circunstancia que merezca | CS36: De igual manera, autorizo en caso de pérdida, hurto, robo o cualquier otra circunstancia que merezca | DY36: De igual manera, autorizo en caso de pérdida, hurto, robo o cualquier otra circunstancia que merezca | FE36: De igual manera, autorizo en caso de pérdida, hurto, robo o cualquier otra circunstancia que merezca | GK36: De igual manera, autorizo en caso de pérdida, hurto, robo o cualquier otra circunstancia que merezca | HQ36: De igual manera, autorizo en caso de pérdida, hurto, robo o cualquier otra circunstancia que merezca
BM37: hasta su total cancelación. | CS37: hasta su total cancelación. | DY37: hasta su total cancelación. | FE37: hasta su total cancelación. | GK37: hasta su total cancelación. | HQ37: hasta su total cancelación.
A38: Atentamente,
A42: =F9 -> ANA CAROLINA DOMINGUEZ RUALES
A43: =S48 -> 1234567890
A44: Caducidad Tarjeta: | I44: =+FORM!F148 -> 2022-05-01
A45: DECLARACION ADICIONAL
A47: =A42 -> ANA CAROLINA DOMINGUEZ RUALES | O47: , mayor de edad, de estado civil | Z47: =+IF(FORM!F63<>"","CASADO","SOLTERO") -> CASADO
A48: , portador de la cédula de ciudadanía o pasaporte No. | S48: =FORM!F39 -> 1234567890 | X48: , por medio de la presente
A49: realizo la siguiente declaración:
A50: Declaro de manera expresa que autorizo a la compañía CARSEG S.A., para que en el evento de que la compañía Banco Diners Club del Ecuador S.A., lo requiera, haga conocer la información en relación a la ubicación del vehículo, así mismo podrá bloquear el vehículo a la sola solicitud de Banco Diners Club del Ecuador S.A.
A54: Por tratarse de una autorización realizada de manera libre y voluntaria, declaro que no interpondré contra Banco Diners Club del Ecuador S.A., o la compañía CARSEG S.A., ningún tipo de acción judicial o administrativa por la ejecución de las acciones descritas en el presente documento.
A59: Atentamente,
A63: =A42 -> ANA CAROLINA DOMINGUEZ RUALES
A64: =A43 -> 1234567890

Sheet SHERLOC
A1: PLAN EXCLUSIVO PARA SOCIOS DINERS CLUB
A5: Av. Colon 1740 y Av. 10 de Agosto Telf. 290-4290
A7: ORDEN DE INSTALACIÓN DEL SISTEMA SHERLOC
A8: FECHA: | F8: =+FORM!F8 -> 2018-05-21 | P8: VALOR VEHICULO: | W8: =FORM!F100 -> 34483.5
A9: NOMBRE: | F9: =FORM!Q37 -> ANA CAROLINA DOMINGUEZ RUALES
A10: DIRECCIÓN: | F10: =+FORM!F45 -> AV PEDRO DE ALVARADO N56-72 Y CARLOS V
A11: TELEFONOS: | F11: =CONCATENATE(FORM!F37," ",FORM!L37) -> 3188179 0985352479 | R11: CIUDAD: | V11: =+FORM!F25 -> PORTOVIEJO
A12: CONCESIONARIO: | H12: =+FORM!F13 -> AUTOMOTORES CONTINENTAL
A13: PLAN | D13: =+G32 -> MARESA SATELITAL BY HUNTER
A14: DATOS DEL VEHICULO
A15: MARCA: | D15: =+FORM!F77 -> MAZDA | J15: MODELO: | N15: =+FORM!F79 -> CX3 | T15: TIPO: | W15: =+FORM!F84 -> SEDAN
A16: COLOR: | D16: =+FORM!F88 -> ROJO | J16: AÑO: | N16: =+FORM!F86 -> 2019 | T16: PLACA: | W16: N/A
A17: MOTOR: | D17: =+FORM!F90 -> BU456792826RE7 | J17: CHASIS: | N17: =+FORM!F92 -> CG5342892U | T17: USO: | W17: PERSONAL/FAMILIAR
A18: El asegurado deberá llevar el vehículo para la instalación del sistema Sherloc, en un plazo de 8 días posteriores a la compra del vehículo. De no hacerlo, pierde el derecho a indemnización en el caso de un eventual robo total.
F24: CONCESIONARIO | V24: TARJETAHABIENTE
A26: AUTORIZACIÓN ORDEN DE CARGO
A27: =+FORM!F25 -> PORTOVIEJO | L27: , | M27: =+F8 -> 2018-05-21
A29: En mi calidad de socio Diners Club No. | O29: =CONCATENATE(FORM!F146,FORM!L146) -> 36502325370040 | U29: autorizo libre y voluntariamente | AT29: =CONCATENATE(FORM!AP142,FORM!AV142) ->  | BA29: autorizo libre y voluntariamente a | BM29: En mi calidad de socio Diners Club No. | BZ29: =CONCATENATE(FORM!BV142,FORM!CB142) ->  | CG29: autorizo libre y voluntariamente a | CS29: En mi calidad de socio Diners Club No. | DF29: =CONCATENATE(FORM!DB142,FORM!DH142) ->  | DM29: autorizo libre y voluntariamente a | DY29: En mi calidad de socio Diners Club No. | EL29: =CONCATENATE(FORM!EH142,FORM!EN142) ->  | ES29: autorizo libre y voluntariamente a | FE29: En mi calidad de socio Diners Club No. | FR29: =CONCATENATE(FORM!FN142,FORM!FT142) ->  | FY29: autorizo libre y voluntariamente a | GK29: En mi calidad de socio Diners Club No. | GX29: =CONCATENATE(FORM!GT142,FORM!GZ142) ->  | HE29: autorizo libre y voluntariamente a | HQ29: En mi calidad de socio Diners Club No. | ID29: =CONCATENATE(FORM!HZ142,FORM!IF142) ->  | IK29: autorizo libre y voluntariamente a
A30: a BANCO DINERS CLUB DEL ECUADOR S.A., se cargue a mi señalada tarjeta de manera mensual
A31: el valor de US | I31: =+FORM!F138 -> 35.58333333 | N31: durante | P31: =+FORM!F104*12 -> 48 | S31: meses, que corresponde a la compra
A32: de un sistema | G32: =+FORM!F112 -> MARESA SATELITAL BY HUNTER | L32: de conformidad al acuerdo que he llegado con SHERLOC, | AW32: durante | AZ32: =+FORM!AP102*12 -> 0 | BB32: meses, que corresponde a la | BM32: de manera mensual el valor de US$ | CC32: durante | CF32: =+FORM!BV102*12 -> 0 | CH32: meses, que corresponde a la | CS32: de manera mensual el valor de US$ | DI32: durante | DL32: =+FORM!DB102*12 -> 0 | DN32: meses, que corresponde a la | DY32: de manera mensual el valor de US$ | EO32: durante | ER32: =+FORM!EH102*12 -> 0 | ET32: meses, que corresponde a la | FE32: de manera mensual el valor de US$ | FU32: durante | FX32: =+FORM!FN102*12 -> 0 | FZ32: meses, que corresponde a la | GK32: de manera mensual el valor de US$ | HA32: durante | HD32: =+FORM!GT102*12 -> 0 | HF32: meses, que corresponde a la | HQ32: de manera mensual el valor de US$ | IG32: durante | IJ32: =+FORM!HZ102*12 -> 0 | IL32: meses, que corresponde a la
A33: esto es, un crédito diferido a | L33: =+P31 -> 48 | N33: meses plazo sin intereses, valores que me comprometo
A34: a cancelar de manera incondicional y dentro de los plazos estipulados.
A35: Asímismo, expresamente me obligo a no revocar la presente autorización, sin previo consentimiento por escrito de SHERLOC S.A., por lo que libero de toda responsabilidad a BANCO DINERS CLUB DEL ECUADOR S.A. por los cargos efectuados en base a la presente autorización. | BM35: Asímismo, expresamente me obligo a no revocar la presente autorización, sin previo consentimiento por | CS35: Asímismo, expresamente me obligo a no revocar la presente autorización, sin previo consentimiento por | DY35: Asímismo, expresamente me obligo a no revocar la presente autorización, sin previo consentimiento por | FE35: Asímismo, expresamente me obligo a no revocar la presente autorización, sin previo consentimiento por | GK35: Asímismo, expresamente me obligo a no revocar la presente autorización, sin previo consentimiento por | HQ35: Asímismo, expresamente me obligo a no revocar la presente autorización, sin previo consentimiento por
A36: De igual manera, autorizo en caso de pérdida, hurto, robo o cualquier otra circunstancia que merezca ser cambiado mi actual número de tarjeta, se cuenta con el nuevo que se me asigne para cancelar todos mis consumos de manera incondicional dentro del periodo respectivo, de tal forma de que mis obligaciones no queden en mora por los conceptos antes mencionados y hasta su total cancelación. | BM36: De igual manera, autorizo en caso de pérdida, hurto, robo o cualquier otra circunstancia que merezca | CS36: De igual manera, autorizo en caso de pérdida, hurto, robo o cualquier otra circunstancia que merezca | DY36: De igual manera, autorizo en caso de pérdida, hurto, robo o cualquier otra circunstancia que merezca | FE36: De igual manera, autorizo en caso de pérdida, hurto, robo o cualquier otra circunstancia que merezca | GK36: De igual manera, autorizo en caso de pérdida, hurto, robo o cualquier otra circunstancia que merezca | HQ36: De igual manera, autorizo en caso de pérdida, hurto, robo o cualquier otra circunstancia que merezca
BM37: forma de que mis obligaciones no queden en mora por los conceptos antes mencionados y | CS37: forma de que mis obligaciones no queden en mora por los conceptos antes mencionados y | DY37: forma de que mis obligaciones no queden en mora por los conceptos antes mencionados y | FE37: forma de que mis obligaciones no queden en mora por los conceptos antes mencionados y | GK37: forma de que mis obligaciones no queden en mora por los conceptos antes mencionados y | HQ37: forma de que mis obligaciones no queden en mora por los conceptos antes mencionados y
A39: Atentamente,
A43: =F9 -> ANA CAROLINA DOMINGUEZ RUALES
A44: =S49 -> 1234567890
A45: Caducidad Tarjeta: | I45: =+FORM!F148 -> 2022-05-01
A46: DECLARACION ADICIONAL
A48: =A43 -> ANA CAROLINA DOMINGUEZ RUALES | O48: , mayor de edad, de estado civil | AA48: =+IF(FORM!F63<>"","CASADO","SOLTERO") -> CASADO
A49: , portador de la cédula de ciudadanía o pasaporte No. | S49: =FORM!F39 -> 1234567890 | X49: , por medio de la presente
A50: realizo la siguiente declaración:
A51: Declaro de manera expresa que autorizo a la compañía SHERLOC, para que en el evento de que la compañía Banco Diners Club del Ecuador S.A., lo requiera, haga conocer la información en relación a la ubicación del vehículo, así mismo podrá bloquear el vehículo a la sola solicitud de Banco Diners Club del Ecuador S.A.
A55: Por tratarse de una autorización realizada de manera libre y voluntaria, declaro que no interpondré contra Banco Diners Club del Ecuador S.A., o la compañía SHERLOC, ningún tipo de acción judicial o administrativa por la ejecución de las acciones descritas en el presente documento.
A60: Atentamente,
A63: =A43 -> ANA CAROLINA DOMINGUEZ RUALES
A64: =A44 -> 1234567890

Sheet DESGRAV
I2: SEGURO DE VIDA MULTIRIESGO PERSONAL PAGO DE DEUDAS A LOS ACREEDORES DEL ASEGURADO POR MUERTE, INCAPACIDAD TOTAL Y PERMANENTE Y ENFERMEDADES CATASTRÓFICAS SOLICITUD - CERTIFICADO
A3: Poliza: Nª 5754
A4: DATOS DEL ASEGURADO TITULAR PRINCIPAL-DEUDOR | N4: CI | Q4: Pasaporte | X4: Nº | Y4: =+FORM!F39 -> 1234567890
A5: Apellidos: | C5: =CONCATENATE(Cotizador!F17," ",Cotizador!L17) -> DOMINGUEZ RUALES | M5: Nombres: | Q5: =CONCATENATE(Cotizador!F19," ",Cotizador!L19) -> ANA CAROLINA
A6: Día nacimiento: | D6: Mes: | I6: Año: | M6: Estado civil: | U6: Género: | W6: F | X6: M | Y6: Ocupación: | Z6: =+FORM!F57 -> INGENIRA
A7: Celular 1: | C7: =+FORM!F37 -> 3188179 | F7: Celular 2: | M7: Teléfono Particular: | W7: Mail: | X7: =+FORM!F49 -> ANADOMINGE@HOTMAIL.COM
A8: Dirección del domicilio: | J8: Calle Principal Nº: | V8: Transversal:
A9: Nº casa/ Departamento: | J9: Barrio/ Sector: | R9: Ciudad: | W9: Provincia:
A10: DATOS DEL TARJETA HABIENTE ADICIONAL | L10: CI | O10: Pasaporte | V10: Nº
A11: Apellidos: | M11: Nombres:
A12: Día nacimiento: | D12: Mes: | I12: Año:
A13: Yo, | B13: =CONCATENATE(Q5,C5) -> ANA CAROLINADOMINGUEZ RUALES | K13: identificado(a) con la cédula de identidad o pasaporte número: | Z13: =+FORM!F39 -> 1234567890
A14: Autorizo a Seguros del Pichincha debitar mensualmente de mi tarjeta de Crédito la prima correspondiente al producto Desgravamen Saldos:
B15: Diners | C15: No. | E15: =LEFT(FORM!F146,2) -> 36 | G15: x | H15: x | I15: x | J15: x | K15: x | L15: x | M15: x | N15: x | O15: =RIGHT(FORM!L146,4) -> 0040
B17: Discover | C17: No. | G17: x | H17: x | I17: x | J17: x | K17: x | L17: x | M17: x | N17: x | O17: x | P17: x
B19: Visa Titanium | C19: No. | G19: x | H19: x | I19: x | J19: x | K19: x | L19: x | M19: x | N19: x | O19: x | P19: x
A20: Cualquier instrucción para que se deje sin efecto esta autorización la presentaré a Seguros del Pichincha, con treinta (30) días de antelación al siguiente cobro y con copia al Asegurado establecido más adelante, adjuntando a dicha petición el recibido de la misma por parte del Asegurado. En caso que sea titular en más de una tarjeta, autorizo a que el valor total de la prima se cobre proporcionalmente al saldo de cada tarjeta.
B21: TABLA DE COBERTURAS
B22: COBERTURAS | M22: ASEGURADO | R22: VALOR ASEGURADO
B23: Muerte por cualquier causa No excluida | M23: Tarjeta habiente | R23: Saldo insoluto de la deuda, máximo $60.000
B24: Incapacidad total y permanente – (Enfermedades Catastróficas) | M24: Tarjeta habiente | R24: Saldo insoluto de la deuda, máximo $60.000
A25: CONDICIONES DEL SEGURO
A26: OBJETO DEL SEGURO: Proteger el saldo insoluto de la tarjeta habiente ante la entidad financiera cubriendo el riesgo que no pueda ser reembolsado a consecuencia de muerte por cualquier causa o incapacidad total y permanente o enfermedades catastróficas de la tarjeta habiente y/o sus adicionales en caso que los tuviera.
A27: COBERTURAS: MUERTE POR CUALQUIER CAUSA: Por la muerte del Asegurado, originada por cualquier causa, a excepción del suicidio voluntario o involuntario del Asegurado el cual se cubrirá transcurrido el primer año de vigencia del contrato, la Compañía pagará a la persona jurídica que tenga la calidad de beneficiario acreedor el saldo adeudado que el Asegurado mantenga con la tarjeta de crédito emitida por Banco Diners Club S.A. (Diners, Discover, Visa Titanium).
A28: INCAPACIDAD TOTAL Y PERMANENTE – ENFERMEDADES CATASTRÓFICAS Por la Incapacidad Total y Permanente por cualquier causa no excluida, sufrida por el Asegurado durante la vigencia de este seguro, la Compañía pagará a la persona jurídica que tenga la calidad de beneficiario acreedor el saldo adeudado que el Asegurado mantenga con la tarjeta de crédito emitida por Banco Diners Club S.A. (Diners, Visa Titanium, Discover). Para efectos de este seguro se entiende que se presenta incapacidad total y permanente, cuando el Asegurado de acuerdo a lo estipulado en el literal de límites de edad, sufra alteraciones funcionales, comprobables desde el punto de vista médico, que de por vida le impidan desempeñar cualquier actividad, ocupación o trabajo remunerativo o lucrativo para los cuales se encuentra razonablemente calificado en razón de su educación, entrenamiento o experiencia, siempre que dicha incapacidad haya existido por un período continuo no menor a ciento ochenta (180) días y no haya sido provocada por el Asegurado y sea superior al 50% calificada por la entidad de control.
A29: Enfermedades catastróficas: Con el diagnóstico médico que evidencie que el Asegurado sufre por primera ocasión durante la vigencia de la póliza, cualquiera de las siguientes enfermedades descritas a continuación y una vez certificado por la Institución médica autorizada y reconocida legalmente para ese fin, la Compañía pagará al beneficiario acreedor el saldo adeudado que el Asegurado mantenga con la tarjeta de crédito emitida por Banco Diners Club S.A. (Diners, Discover, Visa Titanium). Para efectos de esta cobertura se definen las enfermedades catastróficas o de alta complejidad así: • Todo tipo de malformaciones congénitas de corazón y todo tipo de valvulopatías cardiacas, Todo tipo de cáncer, Tumor cerebral en cualquier estado y de cualquier tipo, Insuficiencia renal crónica, Tumores en la piel; cáncer in situ no invasivo en cualquier órgano, Tumores cerebrales superficiales benignos, Acontecimientos catastróficos originados por reacciones nucleares, Quemaduras de primer y segundo grado, Trasplante de órganos (riñón, hígado, médula ósea.), Secuelas de quemaduras graves, Malformaciones arterio venosas cerebrales, Síndrome de Klippel Trenaunay, Aneurisma tóraco-abdominaI. EXCLUSIONES DE INCAPACIDAD TOTAL Y PERMANENTE: Para la cobertura de Incapacidad Total y Permanente aplican las siguientes exclusiones: • Cualquier enfermedad o accidente preexistente a la contratación del seguro. • Suicidio, tentativa de suicidio, o lesión intencionalmente causada a sí mismo, ya sea en estado de cordura o demencia • Guerra civil o internacional, motín, huelga, movimientos subversivos o en general conmociones civiles de cualquier clase. • Acontecimientos catastróficos originados por reacciones nucleares Para la cobertura de enfermedades catastróficas aplican las siguientes exclusiones: • Cualquier enfermedad preexistente a la contratación del seguro. DEFINICIONES: ASEGURADO PRINCIPAL. - El titular de la tarjeta de crédito otorgado por la entidad financiera y sus tarjetahabientes adicionales. BENEFICIARIO ACREEDOR.- La entidad financiera, con la cual el asegurado ha generado una obligación económica, en este caso hasta el saldo insoluto de la deuda. SALDO INSOLUTO.- La sumatoria de capital más intereses corrientes.
A30: PAGO DE PRIMAS: El presente seguro se mantendrá vigente siempre y cuando exista el pago respectivo y mientras tenga una deuda con la entidad financiera. En caso de presentarse un siniestro que afecte a la cobertura de muerte por cualquier causa de este certificado, el pago de primas se dará por terminado. VIGENCIA: Esta póliza adquiere fuerza legal desde el día y hora indicados en este certificado como comienzo de su vigencia y permanecerá en vigor por el período que se mantenga la deuda.
A32: AVISO Y COMPROBACION DEL SINIESTRO: Corresponde al Asegurado o al (o los) beneficiario (s) instituido (s):
A33: a) Denunciar la muerte, accidente, incapacidad, lesión corporal o enfermedad cubiertos por esta póliza dentro de los quince (15) días de la fecha en que haya ocurrido, salvo caso fortuito, fuerza mayor o imposibilidad de hecho, sin culpa o negligencia, so pena de perder todo derecho a la indemnización, de acuerdo con el artículo 24 de la sección 4ª del capítulo I, del Título XVII del Código de Comercio Ecuatoriano. b) Suministrar pruebas sobre la fecha y las causas del reclamo, como acerca de la manera y el lugar en que se produjo el hecho. c) Presentar a la Compañía el diagnóstico de la enfermedad, confirmado mediante evidencias médicas, exámenes de laboratorio clínico, químico o patológico efectuados por un profesional médico o médico legista (para muerte accidental), autorizado legalmente para el ejercicio de su profesión. d) Facilitar cualquier comprobación o aclaración, incluso hasta dos exámenes médicos por facultativos designados por la Compañía con gastos a cargo de ésta. e) Adoptar todas las medidas posibles conducentes a disminuir las consecuencias del accidente, enfermedad o lesión. La Compañía, en caso de muerte del Asegurado, se reserva el derecho de gestionar la exhumación del cadáver y practicar la autopsia en presencia de uno de sus facultativos, con gastos a cargo de la misma. El beneficiario prestará su conformidad y su concurso para la obtención de las correspondientes autorizaciones para realizarla.
A34: DOCUMENTACION MÍNIMA EN CASO DE SINIESTRO: Dentro del término legal, la Compañía pagará por conducto del Contratante al Asegurado o a los beneficiarios, o directamente a estos, la indemnización a que está obligada por esta póliza y sus amparos adicionales si los hubiere, al acreditar la ocurrencia del siniestro y la cuantía del mismo; para el efecto podrá utilizar todos los medios probatorios admitidos en la Ley ecuatoriana, y en especial la documentación mínima relacionada en el cuadro de documentos mínimos requeridos en caso de siniestro. Para que la Compañía pague la indemnización correspondiente a los diferentes amparos, el Asegurado y/o los Beneficiarios deberán presentar pruebas fehacientes que determinen la existencia del hecho amparado, de acuerdo con los términos de esta póliza. La Compañía se reserva el derecho de comprobar la veracidad y la exactitud de tales pruebas. La Compañía podrá hacer examinar al Asegurado tantas veces como lo estime conveniente, mientras se encuentre pendiente un reclamo bajo el presente amparo.
A35: PLAZO DE PRUEBA: La Compañía dentro de los treinta (30) días calendario de recibido el aviso y/o la respectiva prueba de la ocurrencia del siniestro y su cuantía, contados desde la fecha que sea posterior, deberá hacer saber al Asegurado la aceptación, postergación o rechazo del otorgamiento del beneficio. Si las comprobaciones a que se refiere el artículo vigésimo segundo no resultaran concluyentes, la Compañía podrá ampliar el plazo de prueba por un término no mayor de tres (3) meses, a fin de confirmar el diagnóstico.
A36: DUPLICADO DE POLIZA Y DE CERTIFICADOS – COPIAS: En caso de robo, pérdida o destrucción de esta póliza o de cualquier certificado individual, el Asegurado, podrá obtener su sustitución por un duplicado. Las modificaciones o suplementos que se incluyan en el duplicado, del Asegurado, serán los únicos válidos. El Asegurado tiene derecho a que se le entregue copia de su declaración efectuada con motivo de este contrato y copia no negociable de esta póliza o del correspondiente certificado individual. Serán por cuenta de los solicitantes los gastos que origine la extensión de duplicados y copias
A37: TERMINACION DEL SEGURO INDIVIDUAL: El seguro de cada Asegurado terminará en los siguientes casos:
A38: a) Por cancelación por parte del Asegurado; b) Por vencimiento de la vigencia de esta póliza o por caducidad del efecto vinculante; c) Por cumplir el Asegurado la edad señalada en la tabla de edades máximas; d) Por falta de pago de la prima o su contribución.
A39: La cancelación a que se refiere el punto a) deberá ser comunicada por escrito a la Compañía por intermedio del Contratante o por el propio Asegurado con cinco (5) días hábiles de antelación a la fecha en que se deba hacer el pago de prima correspondiente y tendrá efecto a partir de esa fecha de pago. En caso de que el aviso de cancelación no se reciba en el período establecido, la cancelación se hará efectiva a partir de la siguiente fecha de pago. En los casos previstos en los puntos b) y c) el seguro quedará rescindido a las veinticuatro (24) horas en que se haya producido la renuncia, o rescisión o caducidad, o el Asegurado haya cumplido la edad señalada en la tabla de edades máximas. Se presumirá que un Asegurado ha cancelado el seguro, sin admitirse prueba en contrario, cuando no pague la prima de este seguro o su contribución en la forma y plazo previsto en estas condiciones generales. En cualquier caso de vencimiento o caducidad de esta póliza, terminarán simultáneamente todos los seguros individuales cubiertos por ella salvo las obligaciones pendientes a cargo de la Compañía.
A40: DECLARACIONES Y AUTORIZACIONES DEL ASEGURADO PRINCIPAL: A. En el evento en que SEGUROS DEL PICHINCHA S.A. COMPAÑÍA DE SEGUROSY REASEGUROS otorgue el seguro de desgravamen, de acuerdo con la información suministrada en este tipo de seguro, la cobertura amparará a la persona que firma esta declaración. B. Acepto el valor de la prima del presente seguro sea cargado en el estado de cuenta de mi tarjeta. El valor de la prima se realizará en base al cálculo del 0.099% sobre mi deuda con Banco Diners Club del Ecuador.
A41: C. DECLARACIÓN DE INFORMACIÓN Declaro que la información contenida en el presente formulario es verdadera, completa y actualizada. Declaro conocer y aceptar que es mi obligación actualizar anualmente mis datos personales, comunicar y documentar de manera inmediata a SEGUROS DEL PICHINCHA S.A. COMPAÑÍA DE SEGUROSY REASEGUROS cualquier cambio en la información o documentación que he proporcionado. Durante la vigencia de la relación contractual con SEGUROS DEL PICHINCHA S.A. COMPAÑÍA DE SEGUROS Y REASEGUROS, me comprometo
A42: a proveer la información y la documentación que me sea solicitada. Así mismo entiendo que esta información podrá ser requerida por las autoridades de control respectivas para los efectos legales correspondientes. D. DECLARACIÓN DE LICITUD DE FONDOS Declaro que el dinero utilizado para realizar las transacciones con SEGUROS DEL PICHINCHA S.A. COMPAÑÍA DE SEGUROS Y REASEGUROS no proviene de ninguna actividad relacionada con el lavado de activos, el financiamiento del terrorismo, el financiamiento de otros delitos, ni es producto de algún delito. Así mismo declaro que realizo y realizaré operaciones lícitas con SEGUROS DEL PICHINCHA S.A. COMPAÑÍA DE SEGUROS Y REASEGUROS desde el inicio de la relación comercial hasta la finalización del contrato. E. AUTORIZACION Además, autorizo a SEGUROS DEL PICHINCHA S.A. COMPAÑÍA DE SEGUROS Y REASEGUROS a utilizar mi información personal proporcionada a la aseguradora o cualquier información que sea de conocimiento público conforme a la ley, con el objetivo de contactarme, por medio de llamada telefónica, mensaje de texto vía telefónica, correo electrónico, correo directo u otro medio. F. DECLARO HABER RECIBIDO LAS EXPLICACIONES CORRESPONDIENTES SOBRE ESTE SEGURO Y ACEPTO DE MANERA VOLUNTARIA EL MISMO.
A43: El Contratante y/o Asegurado podrá solicitar a la Superintendencia de Compañías, Valores y Seguros la verificación de este texto.
A48: Seguros del Pichincha S.A | Q48: Asegurado Principal
A50: IMPORTANTE: Lea cuidadosamente el extracto de las condiciones generales entregado; si tuviese alguna inquietud comuníquese al 1800-400-400 de SEGUROS DEL PICHINCHA.
